Workbook

Sheet Cover
B6: Fuel type | C6: Natural Gas
B8: Add the steam cost and units
B9: Cost of Steam | C9: 14 | D9: $/1000lbs
B11: Operating time: | C11: Days/Year | D11: Hrs/Day | E11: Operating factor
B12: All year | C12: 365 | D12: 24 | E12: =D12*C12 -> 8760
B13: Weekdays (8hrs) | C13: =52*5 -> 260 | D13: 8 | E13: 2080
B14: Weekdays (24hrs) | C14: =52*5 -> 260 | D14: 24 | E14: 6240
B15: Heating Season | C15: =7*30 -> 210 | D15: 24 | E15: 5040
E16: 0
B17: DEFAULT | C17: 365 | D17: 24 | E17: 8760
B18: Copy Rights: Not to be copied or distributed without specific permission from Inveno Engineering LLC; kelly.paffel@invenoeng.com

Sheet Summary Report
B2: Annual Loss and Emission Summary | L2: Steam Trap Summary
B3: Steam Loss | E3: =SUMPRODUCT(SUBTOTAL(9,OFFSET(Report_AmountSteamLoss,ROW(Report_AmountSteamLoss)-MIN(ROW(Report_AmountSteamLoss)),,1)))*1000/8760 -> 160.5707304 | G3: =IF(Cover_Select_SteamCostUnits="£/1000kg","kg/hr (average)","lbs/hr (average)") -> lbs/hr (average)
B4: Steam Loss | E4: =SUMPRODUCT(SUBTOTAL(9,OFFSET(Report_AmountSteamLoss,ROW(Report_AmountSteamLoss)-MIN(ROW(Report_AmountSteamLoss)),,1)))*1000 -> 1406599.598 | G4: =IF(Cover_Select_SteamCostUnits="£/1000kg","kg/annum","lbs/annum") -> lbs/annum
B5: Monetry Loss | E5: =SUMPRODUCT(SUBTOTAL(9,OFFSET(Report_CostSteamLoss,ROW(Report_CostSteamLoss)-MIN(ROW(Report_CostSteamLoss)),,1))) -> 19692.39438 | G5: =IF(Cover_Select_SteamCostUnits="£/1000kg","£/annum","$/annum") -> $/annum
B6: CO2 Emissions | E6: =SUM(Report_CO2) -> 290717.9405 | G6: =IF(Cover_Select_SteamCostUnits="£/1000kg","kg/annum","lbs/annum") -> lbs/annum
B7: NOX Emissions | E7: =SUM(Report_NOX) -> 798.5529433 | G7: =IF(Cover_Select_SteamCostUnits="£/1000kg","kg/annum","lbs/annum") -> lbs/annum | O7: Survey Date
B8: CH4 Emissions | E8: =SUM(Report_SO2) -> 307.0081699 | G8: =IF(Cover_Select_SteamCostUnits="£/1000kg","kg/annum","lbs/annum") -> lbs/annum | O8: 2015-12-16
B9: (*based on data provided of cost/1000 lbs steam and 365 days/year operation for steam mains and 7 month seasonal operation for various heating loads. Loss assumes that all steam is being vented to atmopshere at the receiver tank and delivered back to the boiler)
B12: Steam Trap Operation Summary
B13: Condition | F13: Count | G13: % of Total | H13: % of Total
B14: =Abbreviations!B48 -> PO | C14: =VLOOKUP(B14,Abb_Lookup_Status,2,FALSE) -> Proper Operation | F14: =SUMPRODUCT(SUBTOTAL(3,OFFSET(Report_Status,ROW(Report_Status)-MIN(ROW(Report_Status)),,1))*(Report_Status=B14)) -> 25 | G14: =F14/$F$26 -> 0.3012048193 | H14: =$F14/($F$26-$F$21-$F$24-$F$25) -> 0.3012048193
B15: =Abbreviations!B49 -> BLW | C15: Blowing Failure Mode | F15: 10 | G15: 0.1204819277 | H15: =$F15/($F$26-$F$21-$F$24-$F$25) -> 0.1204819277
B16: =Abbreviations!B50 -> LL | C16: =VLOOKUP(B16,Abb_Lookup_Status,2,FALSE) -> Large Leak | F16: 3 | G16: 0.03614457831 | H16: 0.03614457831
B17: =Abbreviations!B51 -> SL | C17: Small Leak | F17: 5 | G17: 0.06024096386 | H17: 0.06024096386
B18: =Abbreviations!B52 -> PRI | C18: Loss of Prime (IB Only) | F18: 0 | G18: 0 | H18: 0
B19: =Abbreviations!B53 -> LNK | C19: Linkage | F19: 4 | G19: 0.04819277108 | H19: 0.04819277108
B20: =Abbreviations!B54 -> CHK | C20: Check Valve Problem | F20: 0 | G20: 0 | H20: 0
B21: =Abbreviations!B55 -> ACC | C21: Could Not Access | F21: 0 | G21: 0
B22: =Abbreviations!B56 -> SBD | C22: Steam binding | F22: 0 | G22: 0 | H22: 0
B23: =Abbreviations!B57 -> CLD | C23: Cold - (below op temp) | F23: 36 | G23: 0.4337349398 | H23: 0.4337349398
B24: =Abbreviations!B58 -> NIS | C24: Not in Service (steam on) | F24: 0 | G24: 0
B25: =Abbreviations!B59 -> OFF | C25: Steam service was off | F25: 0 | G25: 0
E26: Total | F26: =SUM(F14:F25) -> 83 | G26: =SUM(G14:G25) -> 1 | H26: =SUM(H14:H25) -> 1
B30: Manufacturer Summary | J30: Steam Trap Summary
D31: Installed | E31: In Service | L31: Installed | M31: In Service
B32: Manufacturer | D32: Count | E32: Count | F32: Failed | G32: % Failed | J32: Steam Trap Type | L32: Count | M32: Count | N32: Failed | O32: % Failure
B33: =Abbreviations!B26 -> ARM | C33: =VLOOKUP(B33,Abb_Lookup_Manufacturer,2,FALSE) -> Armstrong | D33: =COUNTIF(Report_Manufacturers,B33) -> 83 | E33: =COUNTIF(Report_TrapManuInService,B33) -> 83 | F33: =COUNTIF(Report_TrapManuIsFailed,B33) -> 58 | G33: =IF(E33=0,0,F33/E33) -> 0.6987951807 | J33: =Abbreviations!B63 -> IB | K33: =VLOOKUP(J33,Abb_Lookup_TrapType,2,FALSE) -> Inverted Bucket | L33: =COUNTIF(Report_TrapType,J33) -> 56 | M33: =COUNTIF(Report_TrapTypeInService,J33) -> 56 | N33: =COUNTIF(Report_TrapTypeIsFailed,J33) -> 37 | O33: =IF(M33=0,0,N33/M33) -> 0.6607142857
B34: =Abbreviations!B27 -> BLO | C34: Blok Gouda | D34: 0 | E34: 0 | F34: 0 | G34: =IF(E34=0,0,F34/E34) -> 0 | J34: =Abbreviations!B64 -> FT | K34: Float & Thermostatic | L34: 27 | M34: 27 | N34: 21 | O34: 0.7777777778
B35: =Abbreviations!B28 -> COL | C35: Colton | D35: 0 | E35: 0 | F35: 0 | G35: 0 | J35: =Abbreviations!B65 -> FF | K35: Free Float | L35: 0 | M35: 0 | N35: 0 | O35: 0
B36: =Abbreviations!B29 -> ERW | C36: Erwell | D36: 0 | E36: 0 | F36: 0 | G36: 0 | J36: =Abbreviations!B66 -> TD | K36: Thermodynamic | L36: 0 | M36: 0 | N36: 0 | O36: 0
B37: =Abbreviations!B30 -> GES | C37: Gestra | D37: 0 | E37: 0 | F37: 0 | G37: 0 | J37: =Abbreviations!B67 -> TS | K37: Thermostatic | L37: 0 | M37: 0 | N37: 0 | O37: 0
B38: =Abbreviations!B31 -> HOF | C38: Hoffman | D38: 0 | E38: 0 | F38: 0 | G38: 0 | J38: =Abbreviations!B68 -> BM | K38: Bi-metallic | L38: 0 | M38: 0 | N38: 0 | O38: 0
B39: =Abbreviations!B32 -> NIC | C39: Nicholson | D39: 0 | E39: 0 | F39: 0 | G39: 0 | J39: =Abbreviations!B69 -> O | K39: Orifice | L39: 0 | M39: 0 | N39: 0 | O39: 0
B40: =Abbreviations!B33 -> JUK | C40: Jucker | D40: 0 | E40: 0 | F40: 0 | G40: 0 | L40: =SUM(L33:L39) -> 83 | M40: =SUM(M33:M39) -> 83 | N40: =SUM(N33:N39) -> 58 | O40: 0.6987951807
B41: =Abbreviations!B34 -> SPI | C41: Spirax Sarco | D41: 0 | E41: 0 | F41: 0 | G41: 0 | J41: (* In Service does not include NIS and OFF Steam Traps)
B42: =Abbreviations!B35 -> TLV | C42: TLV | D42: 0 | E42: 0 | F42: 0 | G42: 0
B43: =Abbreviations!B36 -> UNK | C43: Unknown or illegible | D43: 0 | E43: 0 | F43: 0 | G43: 0
B44: =Abbreviations!B37 -> TRA | C44: Trane | D44: 0 | E44: 0 | F44: 0 | G44: 0
B45: =Abbreviations!B38 -> VEL | C45: Velan | D45: 0 | E45: 0 | F45: 0 | G45: 0
B46: =Abbreviations!B39 -> WLW | C46: Watlow | D46: 0 | E46: 0 | F46: 0 | G46: =IF(E46=0,0,F46/E46) -> 0
B47: =Abbreviations!B40 -> YAR | C47: Yarway | D47: 0 | E47: 0 | F47: 0 | G47: =IF(E47=0,0,F47/E47) -> 0
C48: Total | D48: =SUM(D33:D47) -> 83 | E48: =SUM(E33:E47) -> 83 | F48: =SUM(F33:F47) -> 58 | G48: =IF(E48=0,0,F48/E48) -> 0.6987951807
B49: (* In Service does not include NIS and OFF Steam Traps)
B52: Steam Trap Type by Manufacturer
D53: IB | E53: FT | F53: FF | G53: TD | H53: TS | I53: BM | J53: O
B54: =Abbreviations!B26 -> ARM | C54: =VLOOKUP(B54,Abb_Lookup_Manufacturer,2,FALSE) -> Armstrong | D54: =COUNTIF(Report_ManuTrapType,$B54&D$53) -> 56 | E54: =COUNTIF(Report_ManuTrapType,$B54&E$53) -> 27 | F54: 0 | G54: 0 | H54: 0 | I54: 0 | J54: 0
B55: =Abbreviations!B27 -> BLO | C55: Blok Gouda | D55: 0 | E55: 0 | F55: 0 | G55: 0 | H55: 0 | I55: 0 | J55: 0
B56: =Abbreviations!B28 -> COL | C56: Colton | D56: 0 | E56: 0 | F56: 0 | G56: 0 | H56: 0 | I56: 0 | J56: 0
B57: =Abbreviations!B29 -> ERW | C57: Erwell | D57: 0 | E57: 0 | F57: 0 | G57: 0 | H57: 0 | I57: 0 | J57: 0
B58: =Abbreviations!B30 -> GES | C58: Gestra | D58: 0 | E58: 0 | F58: 0 | G58: 0 | H58: 0 | I58: 0 | J58: 0
B59: =Abbreviations!B31 -> HOF | C59: Hoffman | D59: 0 | E59: 0 | F59: 0 | G59: 0 | H59: 0 | I59: 0 | J59: 0
B60: =Abbreviations!B32 -> NIC | C60: Nicholson | D60: 0 | E60: 0 | F60: 0 | G60: 0 | H60: 0 | I60: 0 | J60: 0
B61: =Abbreviations!B33 -> JUK | C61: Jucker | D61: 0 | E61: 0 | F61: 0 | G61: 0 | H61: 0 | I61: 0 | J61: 0
B62: =Abbreviations!B34 -> SPI | C62: Spirax Sarco | D62: 0 | E62: 0 | F62: 0 | G62: 0 | H62: 0 | I62: 0 | J62: 0
B63: =Abbreviations!B35 -> TLV | C63: TLV | D63: 0 | E63: 0 | F63: 0 | G63: 0 | H63: 0 | I63: 0 | J63: 0
B64: =Abbreviations!B36 -> UNK | C64: Unknown or illegible | D64: 0 | E64: 0 | F64: 0 | G64: 0 | H64: 0 | I64: 0 | J64: 0
B65: =Abbreviations!B37 -> TRA | C65: Trane | D65: 0 | E65: 0 | F65: 0 | G65: 0 | H65: 0 | I65: 0 | J65: 0
B66: =Abbreviations!B38 -> VEL | C66: Velan | D66: 0 | E66: 0 | F66: 0 | G66: 0 | H66: 0 | I66: 0 | J66: 0
B67: =Abbreviations!B39 -> WLW | C67: Watlow | D67: 0 | E67: 0 | F67: 0 | G67: 0 | H67: 0 | I67: 0 | J67: 0
B68: =Abbreviations!B40 -> YAR | C68: Yarway | D68: 0 | E68: 0 | F68: 0 | G68: 0 | H68: 0 | I68: 0 | J68: 0
B69: Copy Rights: Not to be copied or distributed without specific permission from Inveno Engineering LLC; kelly.paffel@invenoeng.com

Sheet Report Sheet
A1: PLANT DETAILS | F1: Steam Trap Details | T1: INSTALLATION DETAILS | AF1: DRIP POCKET DETAILS | AJ1: NOTES | AK1: PHOTOS | AL1: EMISSIONS | AT1: CALCULATIONS DO NOT DELETE
A2: REVIEW DATE | B2: TRAP ID | C2: AREA | D2: SPECIFIC LOCATION | E2: DESCRIPTION | F2: MANUFACTURER | G2: MODEL | H2: TYPE | I2: ORIFACE DIAMETER | J2: TRAP CAPACITY | K2: APPLICATION | L2: OPERATIONAL STATUS | M2: CONNECTION TYPE | N2: CONNECTION SIZE (INCHES) | O2: INLET PRESSURE | P2: OUTLET PRESSURE | Q2: INLET TEMPERATURE | R2: OUTLET TEMPERATURE | S2: SUPERHEAT | T2: INSTALLED ELEVATION | U2: CONDENSATE RETURN | V2: CONDENSATE ELEVATION RISE | W2: UPSTREAM ISOLATION VALVE | X2: DOWNSTREAM ISOLATION VALVE | Y2: UNIVERSAL MOUNT | Z2: STRAINER | AA2: STRAINER BLOWDOWN | AB2: DOWNSTREAM PIPE SIZE INCREASE | AC2: CHECK VALVE | AD2: BYPASS | AE2: OPERATION TIME | AF2: HEADER SIZE | AG2: POCKET SIZE | AH2: POCKET LENGTH | AI2: BLOWDOWN | AJ2: COMMENTS / NOTES | AK2: PHOTO REFERENCE | AL2: =IF(Cover_Select_SteamCostUnits="£/1000kg", "kgs of CO2", "x1000lbs of CO2") -> x1000lbs of CO2 | AM2: =IF(Cover_Select_SteamCostUnits="£/1000kg", "kgs of NOX", "lbs of NOX") -> lbs of NOX | AN2: =IF(Cover_Select_SteamCostUnits="£/1000kg", "kgs of CH4", "lbs of SO2") -> lbs of SO2 | AO2: STEAM LOSS PER ANNUM x1000 | AP2: STEAM COST PER ANNUM | AQ2: RECOMMENDED TYPE (NOT IN USE) | AT2: Manufacturer in Service | AU2: Manufacturer in Service & Failed | AV2: Trap Type in Service | AW2: Trap Type in Service & Failed | AX2: Manufacturer & Trap Type | AY2: Trap Type Failed CLD | AZ2: Trap Type Failed SL | BA2: Trap Type Failed LL | BB2: Trap Type Failed BLW | BD2: EXXON | BE2: SS | BF2: TLV
A3: 2015-12-16 | B3: NA | D3: 507 Mech Room 124 | F3: ARM | H3: IB | I3: 5/32 | K3: UH | L3: BLW | M3: NPT | N3: 3/4 | O3: 100 | P3: 0 | W3: Y | X3: Y | Y3: N | Z3: Y | AE3: HEATING SEASON | AK3: 3078,914 | AL3: =IF(O3="130",2014.4*AO3*'CO2 Conversion Factors'!$D$20/0.8/1000,2096.16*AO3*'CO2 Conversion Factors'!$D$20/0.8/1000) -> 65037.57058 | AM3: =IF(O3="130",2014.4*AO3*'CO2 Conversion Factors'!$G$20/0.8/1000,2096.16*AO3*'CO2 Conversion Factors'!$G$20/0.8/1000) -> 178.6471909 | AN3: =IF(O3="130",2014.4*AO3*'CO2 Conversion Factors'!$J$20/0.8/1000,2096.16*AO3*'CO2 Conversion Factors'!$J$20/0.8/1000) -> 68.68191721 | AO3: =IFERROR(IF(OR(L3="BLW",L3="PRI",L3="LNK"),IF(Cover_Select_SteamCostUnits="£/1000kg",11.6*(VLOOKUP($I3,Abb_Lookup_OrifaceDia,2,FALSE)^2)*SQRT(($O3-$P3)*($O3+$P3)),25.57363*(VLOOKUP($I3,Abb_Lookup_OrifaceDia,2,FALSE)^2)*SQRT(($O3-$P3)*($O3+$P3)))*(VLOOKUP(AE3,Cover_Lookup_OpTime,4,FALSE)/1000),IF(L3="LL",IF(Cover_Select_SteamCostUnits="£/1000kg",11.6*(VLOOKUP($I3,Abb_Lookup_OrifaceDia,2,FALSE)^2)*SQRT(($O3-$P3)*($O3+$P3)),25.57363*(VLOOKUP($I3,Abb_Lookup_OrifaceDia,2,FALSE)^2)*SQRT(($O3-$P3)*($O3+$P3)))*(VLOOKUP(AE3,Cover_Lookup_OpTime,4,FALSE)/2000),IF(L3="SL",IF(Cover_Select_SteamCostUnits="£/1000kg",11.6*(VLOOKUP($I3,Abb_Lookup_OrifaceDia,2,FALSE)^2)*SQRT(($O3-$P3)*($O3+$P3)),25.57363*(VLOOKUP($I3,Abb_Lookup_OrifaceDia,2,FALSE)^2)*SQRT(($O3-$P3)*($O3+$P3)))*(VLOOKUP(AE3,Cover_Lookup_OpTime,4,FALSE)/4000),0))),0) -> 314.6755254 | AP3: =IFERROR(AO3*Cover_Select_SteamCost,0) -> 4405.457355 | AT3: =IF(NOT(OR(L3="NIS",L3="OFF")),F3) -> ARM | AU3: =IF(NOT(OR(L3="NIS",L3="OFF",L3="PO")),F3) -> ARM | AV3: =IF(NOT(OR(L3="NIS",L3="OFF")),H3) -> IB | AW3: =IF(NOT(OR(L3="NIS",L3="OFF",L3="PO")),H3) -> IB | AX3: =F3&H3 -> ARMIB | AY3: =IF(L3="CLD", H3) -> FALSE | AZ3: =IF(L3="SL", H3) -> FALSE | BA3: =IF(L3="LL", H3) -> FALSE | BB3: =IF(L3="BLW", H3) -> IB | BH3: =VLOOKUP(D3,#REF!,5) -> 
A4: 2015-12-16 | B4: NA | D4: 507 Mech Room 135 | F4: ARM | H4: IB | I4: 5/32 | K4: UH | L4: BLW | M4: NPT | N4: 3/4 | O4: 12 | P4: 0 | W4: Y | X4: Y | Y4: N | Z4: Y | AE4: HEATING SEASON | AK4: 3080,915 | AL4: =IF(O4="130",2014.4*AO4*'CO2 Conversion Factors'!$D$20/0.8/1000,2096.16*AO4*'CO2 Conversion Factors'!$D$20/0.8/1000) -> 7804.50847 | AM4: =IF(O4="130",2014.4*AO4*'CO2 Conversion Factors'!$G$20/0.8/1000,2096.16*AO4*'CO2 Conversion Factors'!$G$20/0.8/1000) -> 21.43766291 | AN4: =IF(O4="130",2014.4*AO4*'CO2 Conversion Factors'!$J$20/0.8/1000,2096.16*AO4*'CO2 Conversion Factors'!$J$20/0.8/1000) -> 8.241830065 | AO4: 37.76106305 | AP4: 528.6548827 | AT4: ARM | AU4: ARM | AV4: IB | AW4: IB | AX4: =F4&H4 -> ARMIB | AY4: =IF(L4="CLD", H4) -> FALSE | AZ4: =IF(L4="SL", H4) -> FALSE | BA4: =IF(L4="LL", H4) -> FALSE | BB4: =IF(L4="BLW", H4) -> IB | BH4: =VLOOKUP(D4,#REF!,5) -> 
A5: 2015-12-16 | B5: NA | D5: 507 N above Mech Room | F5: ARM | H5: FT | I5: 5/32 | K5: UH | L5: CLD | M5: NPT | N5: 1 | O5: 100 | P5: 0 | W5: Y | X5: Y | Y5: N | Z5: Y | AE5: HEATING SEASON | AK5: 3080,915 | AL5: =IF(O5="130",2014.4*AO5*'CO2 Conversion Factors'!$D$20/0.8/1000,2096.16*AO5*'CO2 Conversion Factors'!$D$20/0.8/1000) -> 0 | AM5: =IF(O5="130",2014.4*AO5*'CO2 Conversion Factors'!$G$20/0.8/1000,2096.16*AO5*'CO2 Conversion Factors'!$G$20/0.8/1000) -> 0 | AN5: =IF(O5="130",2014.4*AO5*'CO2 Conversion Factors'!$J$20/0.8/1000,2096.16*AO5*'CO2 Conversion Factors'!$J$20/0.8/1000) -> 0 | AO5: 0 | AP5: 0 | AT5: ARM | AU5: ARM | AV5: FT | AW5: FT | AX5: ARMFT | AY5: FT | AZ5: FALSE | BA5: FALSE | BB5: FALSE | BH5: =VLOOKUP(D5,#REF!,5) -> 
A6: 2015-12-16 | B6: NA | D6: 508 N above Mech Room | F6: ARM | H6: FT | I6: 5/32 | K6: UH | L6: CLD | M6: NPT | N6: 1 | O6: 100 | P6: 0 | W6: Y | X6: Y | Y6: N | Z6: Y | AE6: HEATING SEASON | AJ6: Incorrect installation | AK6: 3082,916 | AL6: =IF(O6="130",2014.4*AO6*'CO2 Conversion Factors'!$D$20/0.8/1000,2096.16*AO6*'CO2 Conversion Factors'!$D$20/0.8/1000) -> 0 | AM6: =IF(O6="130",2014.4*AO6*'CO2 Conversion Factors'!$G$20/0.8/1000,2096.16*AO6*'CO2 Conversion Factors'!$G$20/0.8/1000) -> 0 | AN6: =IF(O6="130",2014.4*AO6*'CO2 Conversion Factors'!$J$20/0.8/1000,2096.16*AO6*'CO2 Conversion Factors'!$J$20/0.8/1000) -> 0 | AO6: 0 | AP6: 0 | AT6: ARM | AU6: ARM | AV6: FT | AW6: FT | AX6: ARMFT | AY6: FT | AZ6: FALSE | BA6: FALSE | BB6: FALSE | BH6: =VLOOKUP(D6,#REF!,5) -> 
A7: 2015-12-16 | B7: NA | D7: 509 N above Mech Room | F7: ARM | G7: TVS811 | H7: IB | I7: 5/32 | K7: UH | L7: BLW | M7: NPT | N7: 1 | O7: 100 | P7: 0 | W7: Y | X7: Y | Y7: N | Z7: Y | AE7: HEATING SEASON | AK7: 3082,916 | AL7: =IF(O7="130",2014.4*AO7*'CO2 Conversion Factors'!$D$20/0.8/1000,2096.16*AO7*'CO2 Conversion Factors'!$D$20/0.8/1000) -> 65037.57058 | AM7: =IF(O7="130",2014.4*AO7*'CO2 Conversion Factors'!$G$20/0.8/1000,2096.16*AO7*'CO2 Conversion Factors'!$G$20/0.8/1000) -> 178.6471909 | AN7: =IF(O7="130",2014.4*AO7*'CO2 Conversion Factors'!$J$20/0.8/1000,2096.16*AO7*'CO2 Conversion Factors'!$J$20/0.8/1000) -> 68.68191721 | AO7: 314.6755254 | AP7: 4405.457355 | AT7: ARM | AU7: ARM | AV7: IB | AW7: IB | AX7: ARMIB | AY7: FALSE | AZ7: FALSE | BA7: FALSE | BB7: IB | BH7: =VLOOKUP(D7,#REF!,5) -> 
A8: 2015-12-16 | B8: 1872 | D8: NE 507 | F8: ARM | H8: IB | I8: 5/32 | K8: UH | L8: PO | M8: NPT | N8: 3/4 | O8: 25 | P8: 0 | W8: Y | X8: Y | Y8: N | Z8: Y | AE8: HEATING SEASON | AK8: 3084,917 | AL8: =IF(O8="130",2014.4*AO8*'CO2 Conversion Factors'!$D$20/0.8/1000,2096.16*AO8*'CO2 Conversion Factors'!$D$20/0.8/1000) -> 0 | AM8: =IF(O8="130",2014.4*AO8*'CO2 Conversion Factors'!$G$20/0.8/1000,2096.16*AO8*'CO2 Conversion Factors'!$G$20/0.8/1000) -> 0 | AN8: =IF(O8="130",2014.4*AO8*'CO2 Conversion Factors'!$J$20/0.8/1000,2096.16*AO8*'CO2 Conversion Factors'!$J$20/0.8/1000) -> 0 | AO8: 0 | AP8: 0 | AT8: ARM | AU8: FALSE | AV8: IB | AW8: FALSE | AX8: =F8&H8 -> ARMIB | AY8: FALSE | AZ8: FALSE | BA8: FALSE | BB8: FALSE | BH8: =VLOOKUP(D8,#REF!,5) -> 
A9: 2015-12-16 | B9: 2324 | D9: NE 507 | F9: ARM | G9: 1811 | H9: IB | I9: 5/32 | K9: UH | L9: PO | M9: NPT | N9: 3/4 | O9: 25 | P9: 0 | W9: Y | X9: Y | Z9: Y | AE9: HEATING SEASON | AK9: 3084,917 | AL9: =IF(O9="130",2014.4*AO9*'CO2 Conversion Factors'!$D$20/0.8/1000,2096.16*AO9*'CO2 Conversion Factors'!$D$20/0.8/1000) -> 0 | AM9: =IF(O9="130",2014.4*AO9*'CO2 Conversion Factors'!$G$20/0.8/1000,2096.16*AO9*'CO2 Conversion Factors'!$G$20/0.8/1000) -> 0 | AN9: =IF(O9="130",2014.4*AO9*'CO2 Conversion Factors'!$J$20/0.8/1000,2096.16*AO9*'CO2 Conversion Factors'!$J$20/0.8/1000) -> 0 | AO9: 0 | AP9: 0 | AT9: ARM | AU9: FALSE | AV9: IB | AW9: FALSE | AX9: ARMIB | AY9: FALSE | AZ9: FALSE | BA9: FALSE | BB9: FALSE | BH9: =VLOOKUP(D9,#REF!,5) -> 
A10: 2015-12-16 | B10: NA | D10: NE 507 | F10: ARM | H10: IB | I10: 5/32 | K10: UH | L10: PO | M10: NPT | N10: 3/4 | O10: 25 | P10: 0 | W10: Y | X10: Y | Z10: Y | AE10: HEATING SEASON | AK10: 3084,917 | AL10: =IF(O10="130",2014.4*AO10*'CO2 Conversion Factors'!$D$20/0.8/1000,2096.16*AO10*'CO2 Conversion Factors'!$D$20/0.8/1000) -> 0 | AM10: =IF(O10="130",2014.4*AO10*'CO2 Conversion Factors'!$G$20/0.8/1000,2096.16*AO10*'CO2 Conversion Factors'!$G$20/0.8/1000) -> 0 | AN10: =IF(O10="130",2014.4*AO10*'CO2 Conversion Factors'!$J$20/0.8/1000,2096.16*AO10*'CO2 Conversion Factors'!$J$20/0.8/1000) -> 0 | AO10: 0 | AP10: 0 | AT10: ARM | AU10: FALSE | AV10: IB | AW10: FALSE | AX10: ARMIB | AY10: FALSE | AZ10: FALSE | BA10: FALSE | BB10: FALSE | BH10: =VLOOKUP(D10,#REF!,5) -> 
A11: 2015-12-16 | B11: NA | D11: EAST SIDE 507 - Al BOOTH BLASTING | F11: ARM | H11: FT | I11: 5/32 | K11: UH | L11: CLD | M11: NPT | N11: 2.0 | O11: 25 | P11: 0 | W11: Y | X11: Y | Z11: Y | AE11: HEATING SEASON | AK11: 3084,917 | AL11: =IF(O11="130",2014.4*AO11*'CO2 Conversion Factors'!$D$20/0.8/1000,2096.16*AO11*'CO2 Conversion Factors'!$D$20/0.8/1000) -> 0 | AM11: =IF(O11="130",2014.4*AO11*'CO2 Conversion Factors'!$G$20/0.8/1000,2096.16*AO11*'CO2 Conversion Factors'!$G$20/0.8/1000) -> 0 | AN11: =IF(O11="130",2014.4*AO11*'CO2 Conversion Factors'!$J$20/0.8/1000,2096.16*AO11*'CO2 Conversion Factors'!$J$20/0.8/1000) -> 0 | AO11: 0 | AP11: 0 | AT11: ARM | AU11: ARM | AV11: FT | AW11: FT | AX11: ARMFT | AY11: FT | AZ11: FALSE | BA11: FALSE | BB11: FALSE | BH11: =VLOOKUP(D11,#REF!,5) -> 
A12: 2015-12-16 | B12: NA | D12: EAST SIDE 507 - Al BOOTH BLASTING | F12: ARM | H12: FT | I12: 5/32 | K12: UH | L12: PO | M12: NPT | N12: 2.0 | O12: 25 | P12: 0 | W12: Y | X12: Y | Z12: Y | AE12: HEATING SEASON | AK12: 3086,3087,918,919 | AL12: =IF(O12="130",2014.4*AO12*'CO2 Conversion Factors'!$D$20/0.8/1000,2096.16*AO12*'CO2 Conversion Factors'!$D$20/0.8/1000) -> 0 | AM12: =IF(O12="130",2014.4*AO12*'CO2 Conversion Factors'!$G$20/0.8/1000,2096.16*AO12*'CO2 Conversion Factors'!$G$20/0.8/1000) -> 0 | AN12: =IF(O12="130",2014.4*AO12*'CO2 Conversion Factors'!$J$20/0.8/1000,2096.16*AO12*'CO2 Conversion Factors'!$J$20/0.8/1000) -> 0 | AO12: 0 | AP12: =IFERROR(AO12*Cover_Select_SteamCost,0) -> 0 | AT12: =IF(NOT(OR(L12="NIS",L12="OFF")),F12) -> ARM | AU12: =IF(NOT(OR(L12="NIS",L12="OFF",L12="PO")),F12) -> FALSE | AV12: =IF(NOT(OR(L12="NIS",L12="OFF")),H12) -> FT | AW12: =IF(NOT(OR(L12="NIS",L12="OFF",L12="PO")),H12) -> FALSE | AX12: =F12&H12 -> ARMFT | AY12: =IF(L12="CLD", H12) -> FALSE | AZ12: =IF(L12="SL", H12) -> FALSE | BA12: =IF(L12="LL", H12) -> FALSE | BB12: =IF(L12="BLW", H12) -> FALSE | BH12: =VLOOKUP(D12,#REF!,5) -> 
A13: 2015-12-16 | B13: NA | D13: East Wall 507- ABOVE E&I | F13: ARM | H13: FT | I13: 5/32 | K13: UH | L13: CLD | M13: NPT | N13: 3/4 | O13: 25 | P13: 0 | W13: Y | X13: Y | Z13: Y | AE13: HEATING SEASON | AK13: 3088,920 | AL13: =IF(O13="130",2014.4*AO13*'CO2 Conversion Factors'!$D$20/0.8/1000,2096.16*AO13*'CO2 Conversion Factors'!$D$20/0.8/1000) -> 0 | AM13: =IF(O13="130",2014.4*AO13*'CO2 Conversion Factors'!$G$20/0.8/1000,2096.16*AO13*'CO2 Conversion Factors'!$G$20/0.8/1000) -> 0 | AN13: =IF(O13="130",2014.4*AO13*'CO2 Conversion Factors'!$J$20/0.8/1000,2096.16*AO13*'CO2 Conversion Factors'!$J$20/0.8/1000) -> 0 | AO13: 0 | AP13: 0 | AT13: ARM | AU13: ARM | AV13: FT | AW13: FT | AX13: ARMFT | AY13: FT | AZ13: FALSE | BA13: FALSE | BB13: FALSE | BH13: =VLOOKUP(D13,#REF!,5) -> 
A14: 2015-12-16 | B14: NA | D14: CENTER SOUTH SIDE 507 | F14: ARM | H14: FT | I14: 5/32 | K14: UH | L14: CLD | M14: NPT | N14: 2.0 | O14: 25 | P14: 0 | W14: Y | X14: Y | Z14: Y | AE14: HEATING SEASON | AK14: 3088,920 | AL14: =IF(O14="130",2014.4*AO14*'CO2 Conversion Factors'!$D$20/0.8/1000,2096.16*AO14*'CO2 Conversion Factors'!$D$20/0.8/1000) -> 0 | AM14: =IF(O14="130",2014.4*AO14*'CO2 Conversion Factors'!$G$20/0.8/1000,2096.16*AO14*'CO2 Conversion Factors'!$G$20/0.8/1000) -> 0 | AN14: =IF(O14="130",2014.4*AO14*'CO2 Conversion Factors'!$J$20/0.8/1000,2096.16*AO14*'CO2 Conversion Factors'!$J$20/0.8/1000) -> 0 | AO14: 0 | AP14: 0 | AT14: ARM | AU14: ARM | AV14: FT | AW14: FT | AX14: ARMFT | AY14: FT | AZ14: FALSE | BA14: FALSE | BB14: FALSE | BH14: =VLOOKUP(D14,#REF!,5) -> 
A15: 2015-12-16 | B15: NA | D15: CENTER SOUTH SIDE 507 | F15: ARM | H15: IB | I15: 5/32 | K15: UH | L15: CLD | M15: NPT | N15: 2.0 | O15: 25 | P15: 0 | W15: Y | X15: Y | Z15: Y | AE15: HEATING SEASON | AK15: 3088,920 | AL15: =IF(O15="130",2014.4*AO15*'CO2 Conversion Factors'!$D$20/0.8/1000,2096.16*AO15*'CO2 Conversion Factors'!$D$20/0.8/1000) -> 0 | AM15: =IF(O15="130",2014.4*AO15*'CO2 Conversion Factors'!$G$20/0.8/1000,2096.16*AO15*'CO2 Conversion Factors'!$G$20/0.8/1000) -> 0 | AN15: =IF(O15="130",2014.4*AO15*'CO2 Conversion Factors'!$J$20/0.8/1000,2096.16*AO15*'CO2 Conversion Factors'!$J$20/0.8/1000) -> 0 | AO15: 0 | AP15: 0 | AT15: ARM | AU15: ARM | AV15: IB | AW15: IB | AX15: ARMIB | AY15: IB | AZ15: FALSE | BA15: FALSE | BB15: FALSE | BH15: =VLOOKUP(D15,#REF!,5) -> 
A16: 2015-12-16 | B16: NA | D16: CENTER SOUTH SIDE 507 | F16: ARM | H16: IB | I16: 5/32 | K16: UH | L16: CLD | M16: NPT | N16: 3/4 | O16: 25 | P16: 0 | W16: Y | X16: Y | Z16: Y | AE16: HEATING SEASON | AK16: 3088,920 | AL16: =IF(O16="130",2014.4*AO16*'CO2 Conversion Factors'!$D$20/0.8/1000,2096.16*AO16*'CO2 Conversion Factors'!$D$20/0.8/1000) -> 0 | AM16: =IF(O16="130",2014.4*AO16*'CO2 Conversion Factors'!$G$20/0.8/1000,2096.16*AO16*'CO2 Conversion Factors'!$G$20/0.8/1000) -> 0 | AN16: =IF(O16="130",2014.4*AO16*'CO2 Conversion Factors'!$J$20/0.8/1000,2096.16*AO16*'CO2 Conversion Factors'!$J$20/0.8/1000) -> 0 | AO16: 0 | AP16: 0 | AT16: ARM | AU16: ARM | AV16: IB | AW16: IB | AX16: ARMIB | AY16: IB | AZ16: FALSE | BA16: FALSE | BB16: FALSE | BH16: =VLOOKUP(D16,#REF!,5) -> 
A17: 2015-12-16 | B17: 2954 | D17: CENTER S 507 | F17: ARM | H17: IB | I17: 5/32 | K17: UH | L17: LL | M17: NPT | N17: 3/4 | O17: 25 | P17: 0 | W17: Y | X17: Y | Z17: Y | AE17: HEATING SEASON | AK17: 3090,922,923 | AL17: =IF(O17="130",2014.4*AO17*'CO2 Conversion Factors'!$D$20/0.8/1000,2096.16*AO17*'CO2 Conversion Factors'!$D$20/0.8/1000) -> 8129.696323 | AM17: =IF(O17="130",2014.4*AO17*'CO2 Conversion Factors'!$G$20/0.8/1000,2096.16*AO17*'CO2 Conversion Factors'!$G$20/0.8/1000) -> 22.33089886 | AN17: =IF(O17="130",2014.4*AO17*'CO2 Conversion Factors'!$J$20/0.8/1000,2096.16*AO17*'CO2 Conversion Factors'!$J$20/0.8/1000) -> 8.585239651 | AO17: 39.33444067 | AP17: 550.6821694 | AT17: ARM | AU17: ARM | AV17: IB | AW17: IB | AX17: ARMIB | AY17: FALSE | AZ17: FALSE | BA17: IB | BB17: FALSE | BH17: =VLOOKUP(D17,#REF!,5) -> 
A18: 2015-12-16 | B18: 2955 | D18: CENTER S 507 | F18: ARM | G18: 1811 | H18: IB | I18: 5/32 | K18: UH | L18: BLW | M18: NPT | N18: 3/4 | O18: 25 | P18: 0 | W18: Y | X18: Y | Z18: Y | AE18: HEATING SEASON | AK18: 3092,922,923 | AL18: =IF(O18="130",2014.4*AO18*'CO2 Conversion Factors'!$D$20/0.8/1000,2096.16*AO18*'CO2 Conversion Factors'!$D$20/0.8/1000) -> 16259.39265 | AM18: =IF(O18="130",2014.4*AO18*'CO2 Conversion Factors'!$G$20/0.8/1000,2096.16*AO18*'CO2 Conversion Factors'!$G$20/0.8/1000) -> 44.66179772 | AN18: =IF(O18="130",2014.4*AO18*'CO2 Conversion Factors'!$J$20/0.8/1000,2096.16*AO18*'CO2 Conversion Factors'!$J$20/0.8/1000) -> 17.1704793 | AO18: 78.66888135 | AP18: 1101.364339 | AT18: ARM | AU18: ARM | AV18: IB | AW18: IB | AX18: ARMIB | AY18: FALSE | AZ18: FALSE | BA18: FALSE | BB18: IB | BH18: =VLOOKUP(D18,#REF!,5) -> 
A19: 2015-12-16 | B19: NA | D19: CENTER S 507 | F19: ARM | G19: 1811 | H19: IB | I19: 5/32 | K19: UH | L19: LNK | M19: NPT | N19: 3/4 | O19: 25 | P19: 0 | W19: Y | X19: Y | Z19: Y | AE19: HEATING SEASON | AK19: 3094,924,926 | AL19: =IF(O19="130",2014.4*AO19*'CO2 Conversion Factors'!$D$20/0.8/1000,2096.16*AO19*'CO2 Conversion Factors'!$D$20/0.8/1000) -> 16259.39265 | AM19: =IF(O19="130",2014.4*AO19*'CO2 Conversion Factors'!$G$20/0.8/1000,2096.16*AO19*'CO2 Conversion Factors'!$G$20/0.8/1000) -> 44.66179772 | AN19: =IF(O19="130",2014.4*AO19*'CO2 Conversion Factors'!$J$20/0.8/1000,2096.16*AO19*'CO2 Conversion Factors'!$J$20/0.8/1000) -> 17.1704793 | AO19: 78.66888135 | AP19: 1101.364339 | AT19: ARM | AU19: ARM | AV19: IB | AW19: IB | AX19: ARMIB | AY19: FALSE | AZ19: FALSE | BA19: FALSE | BB19: FALSE | BH19: =VLOOKUP(D19,#REF!,5) -> 
A20: 2015-12-16 | B20: 2951 | D20: WELD SHOP | F20: ARM | G20: 1811 | H20: IB | I20: 5/32 | K20: UH | L20: BLW | M20: NPT | N20: 3/4 | O20: 25 | P20: 0 | W20: Y | X20: Y | Z20: Y | AE20: HEATING SEASON | AK20: 3094,924,925,926 | AL20: =IF(O20="130",2014.4*AO20*'CO2 Conversion Factors'!$D$20/0.8/1000,2096.16*AO20*'CO2 Conversion Factors'!$D$20/0.8/1000) -> 16259.39265 | AM20: =IF(O20="130",2014.4*AO20*'CO2 Conversion Factors'!$G$20/0.8/1000,2096.16*AO20*'CO2 Conversion Factors'!$G$20/0.8/1000) -> 44.66179772 | AN20: =IF(O20="130",2014.4*AO20*'CO2 Conversion Factors'!$J$20/0.8/1000,2096.16*AO20*'CO2 Conversion Factors'!$J$20/0.8/1000) -> 17.1704793 | AO20: 78.66888135 | AP20: 1101.364339 | AT20: ARM | AU20: ARM | AV20: IB | AW20: IB | AX20: ARMIB | AY20: FALSE | AZ20: FALSE | BA20: FALSE | BB20: IB | BH20: =VLOOKUP(D20,#REF!,5) -> 
A21: 2015-12-16 | B21: 2968 | D21: WELD SHOP | F21: ARM | H21: IB | I21: 5/32 | K21: UH | L21: LL | M21: NPT | N21: 1/2 | O21: 25 | P21: 0 | W21: Y | X21: Y | Z21: Y | AE21: HEATING SEASON | AK21: 3094,927,926 | AL21: =IF(O21="130",2014.4*AO21*'CO2 Conversion Factors'!$D$20/0.8/1000,2096.16*AO21*'CO2 Conversion Factors'!$D$20/0.8/1000) -> 8129.696323 | AM21: =IF(O21="130",2014.4*AO21*'CO2 Conversion Factors'!$G$20/0.8/1000,2096.16*AO21*'CO2 Conversion Factors'!$G$20/0.8/1000) -> 22.33089886 | AN21: =IF(O21="130",2014.4*AO21*'CO2 Conversion Factors'!$J$20/0.8/1000,2096.16*AO21*'CO2 Conversion Factors'!$J$20/0.8/1000) -> 8.585239651 | AO21: 39.33444067 | AP21: 550.6821694 | AT21: ARM | AU21: ARM | AV21: IB | AW21: IB | AX21: ARMIB | AY21: FALSE | AZ21: FALSE | BA21: IB | BB21: FALSE | BH21: =VLOOKUP(D21,#REF!,5) -> 
A22: 2015-12-16 | B22: 2965 | D22: 209 PAINT CORNER | F22: ARM | G22: 1811 | H22: IB | I22: 5/32 | K22: UH | L22: LNK | M22: NPT | N22: 3/4 | O22: 110 | P22: 0 | W22: Y | X22: Y | Z22: Y | AE22: HEATING SEASON | AK22: 3094,927 | AL22: =IF(O22="130",2014.4*AO22*'CO2 Conversion Factors'!$D$20/0.8/1000,2096.16*AO22*'CO2 Conversion Factors'!$D$20/0.8/1000) -> 71541.32764 | AM22: =IF(O22="130",2014.4*AO22*'CO2 Conversion Factors'!$G$20/0.8/1000,2096.16*AO22*'CO2 Conversion Factors'!$G$20/0.8/1000) -> 196.51191 | AN22: =IF(O22="130",2014.4*AO22*'CO2 Conversion Factors'!$J$20/0.8/1000,2096.16*AO22*'CO2 Conversion Factors'!$J$20/0.8/1000) -> 75.55010893 | AO22: 346.1430779 | AP22: 4846.003091 | AT22: ARM | AU22: ARM | AV22: IB | AW22: IB | AX22: ARMIB | AY22: FALSE | AZ22: FALSE | BA22: FALSE | BB22: FALSE | BH22: =VLOOKUP(D22,#REF!,5) -> 
A23: 2015-12-16 | B23: 2967 | D23: 209 PAINT CORNER | F23: ARM | H23: FT | I23: 5/32 | K23: UH | L23: CLD | M23: NPT | N23: 2.0 | O23: 110 | P23: 0 | W23: Y | X23: Y | Z23: Y | AE23: HEATING SEASON | AK23: 3096,3097,929,930 | AL23: =IF(O23="130",2014.4*AO23*'CO2 Conversion Factors'!$D$20/0.8/1000,2096.16*AO23*'CO2 Conversion Factors'!$D$20/0.8/1000) -> 0 | AM23: =IF(O23="130",2014.4*AO23*'CO2 Conversion Factors'!$G$20/0.8/1000,2096.16*AO23*'CO2 Conversion Factors'!$G$20/0.8/1000) -> 0 | AN23: =IF(O23="130",2014.4*AO23*'CO2 Conversion Factors'!$J$20/0.8/1000,2096.16*AO23*'CO2 Conversion Factors'!$J$20/0.8/1000) -> 0 | AO23: 0 | AP23: 0 | AT23: ARM | AU23: ARM | AV23: FT | AW23: FT | AX23: ARMFT | AY23: FT | AZ23: FALSE | BA23: FALSE | BB23: FALSE | BH23: =VLOOKUP(D23,#REF!,5) -> 
A24: 2015-12-16 | B24: 2966 | D24: 209 PAINT CORNER | F24: ARM | H24: FT | I24: 5/32 | K24: UH | L24: PO | M24: NPT | N24: 3/4 | O24: 110 | P24: 0 | W24: Y | X24: Y | Z24: Y | AE24: HEATING SEASON | AK24: 3098,931 | AL24: =IF(O24="130",2014.4*AO24*'CO2 Conversion Factors'!$D$20/0.8/1000,2096.16*AO24*'CO2 Conversion Factors'!$D$20/0.8/1000) -> 0 | AM24: =IF(O24="130",2014.4*AO24*'CO2 Conversion Factors'!$G$20/0.8/1000,2096.16*AO24*'CO2 Conversion Factors'!$G$20/0.8/1000) -> 0 | AN24: =IF(O24="130",2014.4*AO24*'CO2 Conversion Factors'!$J$20/0.8/1000,2096.16*AO24*'CO2 Conversion Factors'!$J$20/0.8/1000) -> 0 | AO24: 0 | AP24: 0 | AT24: ARM | AU24: FALSE | AV24: FT | AW24: FALSE | AX24: ARMFT | AY24: FALSE | AZ24: FALSE | BA24: FALSE | BB24: FALSE | BH24: =VLOOKUP(D24,#REF!,5) -> 
A25: 2015-12-16 | B25: NA | D25: SMALL STRUT CENTER OFFICE | F25: ARM | G25: D-52 | H25: FT | I25: 5/32 | K25: UH | L25: CLD | M25: NPT | N25: 2.0 | O25: 110 | P25: 0 | W25: Y | X25: Y | Z25: Y | AE25: HEATING SEASON | AK25: 3098,931 | AL25: =IF(O25="130",2014.4*AO25*'CO2 Conversion Factors'!$D$20/0.8/1000,2096.16*AO25*'CO2 Conversion Factors'!$D$20/0.8/1000) -> 0 | AM25: =IF(O25="130",2014.4*AO25*'CO2 Conversion Factors'!$G$20/0.8/1000,2096.16*AO25*'CO2 Conversion Factors'!$G$20/0.8/1000) -> 0 | AN25: =IF(O25="130",2014.4*AO25*'CO2 Conversion Factors'!$J$20/0.8/1000,2096.16*AO25*'CO2 Conversion Factors'!$J$20/0.8/1000) -> 0 | AO25: 0 | AP25: 0 | AT25: ARM | AU25: ARM | AV25: FT | AW25: FT | AX25: ARMFT | AY25: FT | AZ25: FALSE | BA25: FALSE | BB25: FALSE | BH25: =VLOOKUP(D25,#REF!,5) -> 
A26: 2015-12-16 | B26: NA | D26: SMALL STRUT CENTER OFFICE | F26: ARM | G26: D-52 | H26: FT | I26: 5/32 | K26: UH | L26: CLD | M26: NPT | N26: 2.0 | O26: 110 | P26: 0 | W26: Y | X26: Y | Z26: Y | AE26: HEATING SEASON | AK26: 3098,931 | AL26: =IF(O26="130",2014.4*AO26*'CO2 Conversion Factors'!$D$20/0.8/1000,2096.16*AO26*'CO2 Conversion Factors'!$D$20/0.8/1000) -> 0 | AM26: =IF(O26="130",2014.4*AO26*'CO2 Conversion Factors'!$G$20/0.8/1000,2096.16*AO26*'CO2 Conversion Factors'!$G$20/0.8/1000) -> 0 | AN26: =IF(O26="130",2014.4*AO26*'CO2 Conversion Factors'!$J$20/0.8/1000,2096.16*AO26*'CO2 Conversion Factors'!$J$20/0.8/1000) -> 0 | AO26: 0 | AP26: 0 | AT26: ARM | AU26: ARM | AV26: FT | AW26: FT | AX26: ARMFT | AY26: FT | AZ26: FALSE | BA26: FALSE | BB26: FALSE | BH26: =VLOOKUP(D26,#REF!,5) -> 
A27: 2015-12-16 | B27: NA | D27: N of 252 ROOM | F27: ARM | H27: IB | I27: 5/32 | K27: UH | L27: LNK | M27: NPT | N27: 1/2 | O27: 25 | P27: 0 | W27: Y | X27: Y | Z27: Y | AE27: HEATING SEASON | AK27: 3098,931 | AL27: =IF(O27="130",2014.4*AO27*'CO2 Conversion Factors'!$D$20/0.8/1000,2096.16*AO27*'CO2 Conversion Factors'!$D$20/0.8/1000) -> 16259.39265 | AM27: =IF(O27="130",2014.4*AO27*'CO2 Conversion Factors'!$G$20/0.8/1000,2096.16*AO27*'CO2 Conversion Factors'!$G$20/0.8/1000) -> 44.66179772 | AN27: =IF(O27="130",2014.4*AO27*'CO2 Conversion Factors'!$J$20/0.8/1000,2096.16*AO27*'CO2 Conversion Factors'!$J$20/0.8/1000) -> 17.1704793 | AO27: 78.66888135 | AP27: 1101.364339 | AT27: ARM | AU27: ARM | AV27: IB | AW27: IB | AX27: ARMIB | AY27: FALSE | AZ27: FALSE | BA27: FALSE | BB27: FALSE | BH27: =VLOOKUP(D27,#REF!,5) -> 
A28: 2015-12-16 | B28: 2946 | D28: POLE # F5, H4 | F28: ARM | G28: 1811 | H28: IB | I28: 5/33 | K28: UH | L28: BLW | M28: NPT | N28: 3/4 | O28: 25 | P28: 0 | W28: Y | X28: Y | Z28: Y | AE28: HEATING SEASON | AK28: 3100,932 | AL28: =IF(O28="130",2014.4*AO28*'CO2 Conversion Factors'!$D$20/0.8/1000,2096.16*AO28*'CO2 Conversion Factors'!$D$20/0.8/1000) -> 0 | AM28: =IF(O28="130",2014.4*AO28*'CO2 Conversion Factors'!$G$20/0.8/1000,2096.16*AO28*'CO2 Conversion Factors'!$G$20/0.8/1000) -> 0 | AN28: =IF(O28="130",2014.4*AO28*'CO2 Conversion Factors'!$J$20/0.8/1000,2096.16*AO28*'CO2 Conversion Factors'!$J$20/0.8/1000) -> 0 | AO28: 0 | AP28: 0 | AT28: ARM | AU28: ARM | AV28: IB | AW28: IB | AX28: ARMIB | AY28: FALSE | AZ28: FALSE | BA28: FALSE | BB28: IB | BH28: =VLOOKUP(D28,#REF!,5) -> 
A29: 2015-12-16 | B29: NA | D29: STRUT PRE-PAINT | F29: ARM | H29: IB | I29: 5/34 | K29: UH | L29: BLW | M29: NPT | N29: 3/4 | O29: 25 | P29: 0 | W29: Y | X29: Y | Z29: Y | AE29: HEATING SEASON | AK29: 3102,3103,933 | AL29: =IF(O29="130",2014.4*AO29*'CO2 Conversion Factors'!$D$20/0.8/1000,2096.16*AO29*'CO2 Conversion Factors'!$D$20/0.8/1000) -> 0 | AM29: =IF(O29="130",2014.4*AO29*'CO2 Conversion Factors'!$G$20/0.8/1000,2096.16*AO29*'CO2 Conversion Factors'!$G$20/0.8/1000) -> 0 | AN29: =IF(O29="130",2014.4*AO29*'CO2 Conversion Factors'!$J$20/0.8/1000,2096.16*AO29*'CO2 Conversion Factors'!$J$20/0.8/1000) -> 0 | AO29: 0 | AP29: 0 | AT29: ARM | AU29: ARM | AV29: IB | AW29: IB | AX29: ARMIB | AY29: FALSE | AZ29: FALSE | BA29: FALSE | BB29: IB | BH29: =VLOOKUP(D29,#REF!,5) -> 
A30: 2015-12-16 | B30: 128 | D30: W MECH ROOM, N of OFFICE | F30: ARM | H30: IB | I30: 5/35 | K30: UH | L30: PO | M30: NPT | N30: 3/4 | O30: 25 | P30: 0 | W30: Y | X30: Y | Z30: Y | AE30: HEATING SEASON | AK30: 3102,3103,933 | AL30: =IF(O30="130",2014.4*AO30*'CO2 Conversion Factors'!$D$20/0.8/1000,2096.16*AO30*'CO2 Conversion Factors'!$D$20/0.8/1000) -> 0 | AM30: =IF(O30="130",2014.4*AO30*'CO2 Conversion Factors'!$G$20/0.8/1000,2096.16*AO30*'CO2 Conversion Factors'!$G$20/0.8/1000) -> 0 | AN30: =IF(O30="130",2014.4*AO30*'CO2 Conversion Factors'!$J$20/0.8/1000,2096.16*AO30*'CO2 Conversion Factors'!$J$20/0.8/1000) -> 0 | AO30: 0 | AP30: 0 | AT30: ARM | AU30: FALSE | AV30: IB | AW30: FALSE | AX30: ARMIB | AY30: FALSE | AZ30: FALSE | BA30: FALSE | BB30: FALSE | BH30: =VLOOKUP(D30,#REF!,5) -> 
A31: 2015-12-16 | B31: 127 | D31: W MECH ROOM, N of OFFICE | F31: ARM | H31: FT | I31: 5/36 | K31: UH | L31: PO | M31: NPT | N31: 1 1/2 | O31: 25 | P31: 0 | W31: Y | X31: Y | Z31: Y | AE31: HEATING SEASON | AK31: 3102,3103,933 | AL31: =IF(O31="130",2014.4*AO31*'CO2 Conversion Factors'!$D$20/0.8/1000,2096.16*AO31*'CO2 Conversion Factors'!$D$20/0.8/1000) -> 0 | AM31: =IF(O31="130",2014.4*AO31*'CO2 Conversion Factors'!$G$20/0.8/1000,2096.16*AO31*'CO2 Conversion Factors'!$G$20/0.8/1000) -> 0 | AN31: =IF(O31="130",2014.4*AO31*'CO2 Conversion Factors'!$J$20/0.8/1000,2096.16*AO31*'CO2 Conversion Factors'!$J$20/0.8/1000) -> 0 | AO31: 0 | AP31: 0 | AT31: ARM | AU31: FALSE | AV31: FT | AW31: FALSE | AX31: ARMFT | AY31: FALSE | AZ31: FALSE | BA31: FALSE | BB31: FALSE | BH31: =VLOOKUP(D31,#REF!,5) -> 
A32: 2015-12-16 | B32: 2331 | D32: 300' SE of MECH ROOM | F32: ARM | H32: IB | I32: 5/37 | K32: UH | L32: SL | M32: NPT | N32: 3/4 | O32: 25 | P32: 0 | W32: Y | X32: Y | Z32: Y | AE32: HEATING SEASON | AK32: 3102,3103,933 | AL32: =IF(O32="130",2014.4*AO32*'CO2 Conversion Factors'!$D$20/0.8/1000,2096.16*AO32*'CO2 Conversion Factors'!$D$20/0.8/1000) -> 0 | AM32: =IF(O32="130",2014.4*AO32*'CO2 Conversion Factors'!$G$20/0.8/1000,2096.16*AO32*'CO2 Conversion Factors'!$G$20/0.8/1000) -> 0 | AN32: =IF(O32="130",2014.4*AO32*'CO2 Conversion Factors'!$J$20/0.8/1000,2096.16*AO32*'CO2 Conversion Factors'!$J$20/0.8/1000) -> 0 | AO32: 0 | AP32: 0 | AT32: ARM | AU32: ARM | AV32: IB | AW32: IB | AX32: ARMIB | AY32: FALSE | AZ32: IB | BA32: FALSE | BB32: FALSE | BH32: =VLOOKUP(D32,#REF!,5) -> 
A33: 2015-12-16 | B33: 3819 | D33: TRANE UNIT | F33: ARM | H33: FT | I33: 5/38 | K33: UH | L33: CLD | M33: NPT | N33: 3/4 | O33: 25 | P33: 0 | W33: Y | X33: Y | Z33: Y | AE33: HEATING SEASON | AK33: 3104,3105,934,935 | AL33: =IF(O33="130",2014.4*AO33*'CO2 Conversion Factors'!$D$20/0.8/1000,2096.16*AO33*'CO2 Conversion Factors'!$D$20/0.8/1000) -> 0 | AM33: =IF(O33="130",2014.4*AO33*'CO2 Conversion Factors'!$G$20/0.8/1000,2096.16*AO33*'CO2 Conversion Factors'!$G$20/0.8/1000) -> 0 | AN33: =IF(O33="130",2014.4*AO33*'CO2 Conversion Factors'!$J$20/0.8/1000,2096.16*AO33*'CO2 Conversion Factors'!$J$20/0.8/1000) -> 0 | AO33: 0 | AP33: 0 | AT33: ARM | AU33: ARM | AV33: FT | AW33: FT | AX33: ARMFT | AY33: FT | AZ33: FALSE | BA33: FALSE | BB33: FALSE | BH33: =VLOOKUP(D33,#REF!,5) -> 
A34: 2015-12-16 | B34: 3822 | D34: TRANE UNIT | F34: ARM | H34: FT | I34: 5/39 | K34: UH | L34: CLD | M34: NPT | N34: 3/4 | O34: 25 | P34: 0 | W34: Y | X34: Y | Z34: Y | AE34: HEATING SEASON | AK34: 3106,3107,934,935 | AL34: =IF(O34="130",2014.4*AO34*'CO2 Conversion Factors'!$D$20/0.8/1000,2096.16*AO34*'CO2 Conversion Factors'!$D$20/0.8/1000) -> 0 | AM34: =IF(O34="130",2014.4*AO34*'CO2 Conversion Factors'!$G$20/0.8/1000,2096.16*AO34*'CO2 Conversion Factors'!$G$20/0.8/1000) -> 0 | AN34: =IF(O34="130",2014.4*AO34*'CO2 Conversion Factors'!$J$20/0.8/1000,2096.16*AO34*'CO2 Conversion Factors'!$J$20/0.8/1000) -> 0 | AO34: 0 | AP34: 0 | AT34: ARM | AU34: ARM | AV34: FT | AW34: FT | AX34: ARMFT | AY34: FT | AZ34: FALSE | BA34: FALSE | BB34: FALSE | BH34: =VLOOKUP(D34,#REF!,5) -> 
A35: 2015-12-16 | B35: 3823 | D35: TRANE UNIT | F35: ARM | H35: FT | I35: 5/40 | K35: UH | L35: CLD | M35: NPT | N35: 3/4 | O35: 25 | P35: 0 | W35: Y | X35: Y | Z35: Y | AE35: HEATING SEASON | AJ35: OUTLET OPEN TO ATMOSPHERE | AK35: 3108,3109,937 | AL35: =IF(O35="130",2014.4*AO35*'CO2 Conversion Factors'!$D$20/0.8/1000,2096.16*AO35*'CO2 Conversion Factors'!$D$20/0.8/1000) -> 0 | AM35: =IF(O35="130",2014.4*AO35*'CO2 Conversion Factors'!$G$20/0.8/1000,2096.16*AO35*'CO2 Conversion Factors'!$G$20/0.8/1000) -> 0 | AN35: =IF(O35="130",2014.4*AO35*'CO2 Conversion Factors'!$J$20/0.8/1000,2096.16*AO35*'CO2 Conversion Factors'!$J$20/0.8/1000) -> 0 | AO35: 0 | AP35: 0 | AT35: ARM | AU35: ARM | AV35: FT | AW35: FT | AX35: ARMFT | AY35: FT | AZ35: FALSE | BA35: FALSE | BB35: FALSE | BH35: =VLOOKUP(D35,#REF!,5) -> 
A36: 2015-12-16 | B36: N/A | D36: ROOF 33 TOP | F36: ARM | H36: IB | I36: 5/41 | K36: UH | L36: PO | M36: NPT | N36: 2.0 | O36: 25 | P36: 0 | W36: Y | X36: Y | Z36: Y | AE36: HEATING SEASON | AK36: 3108,3109,937 | AL36: =IF(O36="130",2014.4*AO36*'CO2 Conversion Factors'!$D$20/0.8/1000,2096.16*AO36*'CO2 Conversion Factors'!$D$20/0.8/1000) -> 0 | AM36: =IF(O36="130",2014.4*AO36*'CO2 Conversion Factors'!$G$20/0.8/1000,2096.16*AO36*'CO2 Conversion Factors'!$G$20/0.8/1000) -> 0 | AN36: =IF(O36="130",2014.4*AO36*'CO2 Conversion Factors'!$J$20/0.8/1000,2096.16*AO36*'CO2 Conversion Factors'!$J$20/0.8/1000) -> 0 | AO36: 0 | AP36: 0 | AT36: ARM | AU36: FALSE | AV36: IB | AW36: FALSE | AX36: ARMIB | AY36: FALSE | AZ36: FALSE | BA36: FALSE | BB36: FALSE | BH36: =VLOOKUP(D36,#REF!,5) -> 
A37: 2015-12-16 | B37: NA | D37: ROOF 33 TOP | F37: ARM | H37: IB | I37: 5/42 | K37: UH | L37: PO | M37: NPT | N37: 2.0 | O37: 25 | P37: 0 | W37: Y | X37: Y | Z37: Y | AE37: HEATING SEASON | AK37: 3108,3109,937 | AL37: =IF(O37="130",2014.4*AO37*'CO2 Conversion Factors'!$D$20/0.8/1000,2096.16*AO37*'CO2 Conversion Factors'!$D$20/0.8/1000) -> 0 | AM37: =IF(O37="130",2014.4*AO37*'CO2 Conversion Factors'!$G$20/0.8/1000,2096.16*AO37*'CO2 Conversion Factors'!$G$20/0.8/1000) -> 0 | AN37: =IF(O37="130",2014.4*AO37*'CO2 Conversion Factors'!$J$20/0.8/1000,2096.16*AO37*'CO2 Conversion Factors'!$J$20/0.8/1000) -> 0 | AO37: 0 | AP37: 0 | AT37: ARM | AU37: FALSE | AV37: IB | AW37: FALSE | AX37: ARMIB | AY37: FALSE | AZ37: FALSE | BA37: FALSE | BB37: FALSE | BH37: =VLOOKUP(D37,#REF!,5) -> 
A38: 2015-12-16 | B38: 3824 | D38: ROOF 33 TOP | F38: ARM | H38: IB | I38: 5/43 | K38: UH | L38: PO | M38: NPT | N38: 2.0 | O38: 25 | P38: 0 | W38: Y | X38: Y | Z38: Y | AE38: HEATING SEASON | AK38: 3108,3109,937 | AL38: =IF(O38="130",2014.4*AO38*'CO2 Conversion Factors'!$D$20/0.8/1000,2096.16*AO38*'CO2 Conversion Factors'!$D$20/0.8/1000) -> 0 | AM38: =IF(O38="130",2014.4*AO38*'CO2 Conversion Factors'!$G$20/0.8/1000,2096.16*AO38*'CO2 Conversion Factors'!$G$20/0.8/1000) -> 0 | AN38: =IF(O38="130",2014.4*AO38*'CO2 Conversion Factors'!$J$20/0.8/1000,2096.16*AO38*'CO2 Conversion Factors'!$J$20/0.8/1000) -> 0 | AO38: 0 | AP38: 0 | AT38: ARM | AU38: FALSE | AV38: IB | AW38: FALSE | AX38: ARMIB | AY38: FALSE | AZ38: FALSE | BA38: FALSE | BB38: FALSE | BH38: =VLOOKUP(D38,#REF!,5) -> 
A39: 2015-12-16 | B39: NA | D39: ROOF 6 | F39: ARM | H39: IB | I39: 5/44 | K39: UH | L39: CLD | M39: NPT | N39: 3/4 | O39: 25 | P39: 0 | W39: Y | X39: Y | Z39: Y | AE39: HEATING SEASON | AK39: 3112,938,939 | AL39: =IF(O39="130",2014.4*AO39*'CO2 Conversion Factors'!$D$20/0.8/1000,2096.16*AO39*'CO2 Conversion Factors'!$D$20/0.8/1000) -> 0 | AM39: =IF(O39="130",2014.4*AO39*'CO2 Conversion Factors'!$G$20/0.8/1000,2096.16*AO39*'CO2 Conversion Factors'!$G$20/0.8/1000) -> 0 | AN39: =IF(O39="130",2014.4*AO39*'CO2 Conversion Factors'!$J$20/0.8/1000,2096.16*AO39*'CO2 Conversion Factors'!$J$20/0.8/1000) -> 0 | AO39: 0 | AP39: 0 | AT39: ARM | AU39: ARM | AV39: IB | AW39: IB | AX39: ARMIB | AY39: IB | AZ39: FALSE | BA39: FALSE | BB39: FALSE | BH39: =VLOOKUP(D39,#REF!,5) -> 
A40: 2015-12-16 | B40: NA | D40: ROOF 5 | F40: ARM | H40: IB | I40: 5/45 | K40: UH | L40: CLD | M40: NPT | N40: 3/4 | O40: 25 | P40: 0 | W40: Y | X40: Y | Z40: Y | AE40: HEATING SEASON | AK40: 3112,938,939 | AL40: =IF(O40="130",2014.4*AO40*'CO2 Conversion Factors'!$D$20/0.8/1000,2096.16*AO40*'CO2 Conversion Factors'!$D$20/0.8/1000) -> 0 | AM40: =IF(O40="130",2014.4*AO40*'CO2 Conversion Factors'!$G$20/0.8/1000,2096.16*AO40*'CO2 Conversion Factors'!$G$20/0.8/1000) -> 0 | AN40: =IF(O40="130",2014.4*AO40*'CO2 Conversion Factors'!$J$20/0.8/1000,2096.16*AO40*'CO2 Conversion Factors'!$J$20/0.8/1000) -> 0 | AO40: 0 | AP40: 0 | AT40: ARM | AU40: ARM | AV40: IB | AW40: IB | AX40: ARMIB | AY40: IB | AZ40: FALSE | BA40: FALSE | BB40: FALSE | BH40: =VLOOKUP(D40,#REF!,5) -> 
A41: 2015-12-16 | B41: NA | D41: ROOF 14 | F41: ARM | H41: IB | I41: 5/46 | K41: UH | L41: CLD | M41: NPT | N41: 3/4 | O41: 25 | P41: 0 | W41: Y | X41: Y | Z41: Y | AE41: HEATING SEASON | AK41: 941 | AL41: =IF(O41="130",2014.4*AO41*'CO2 Conversion Factors'!$D$20/0.8/1000,2096.16*AO41*'CO2 Conversion Factors'!$D$20/0.8/1000) -> 0 | AM41: =IF(O41="130",2014.4*AO41*'CO2 Conversion Factors'!$G$20/0.8/1000,2096.16*AO41*'CO2 Conversion Factors'!$G$20/0.8/1000) -> 0 | AN41: =IF(O41="130",2014.4*AO41*'CO2 Conversion Factors'!$J$20/0.8/1000,2096.16*AO41*'CO2 Conversion Factors'!$J$20/0.8/1000) -> 0 | AO41: 0 | AP41: 0 | AT41: ARM | AU41: ARM | AV41: IB | AW41: IB | AX41: ARMIB | AY41: IB | AZ41: FALSE | BA41: FALSE | BB41: FALSE | BH41: =VLOOKUP(D41,#REF!,5) -> 
A42: 2015-12-16 | B42: NA | D42: ROOF 15 | F42: ARM | H42: IB | I42: 5/47 | K42: UH | L42: PO | M42: NPT | N42: 3/4 | O42: 25 | P42: 0 | W42: Y | X42: Y | Z42: Y | AE42: HEATING SEASON | AK42: 3116,3117,942 | AL42: =IF(O42="130",2014.4*AO42*'CO2 Conversion Factors'!$D$20/0.8/1000,2096.16*AO42*'CO2 Conversion Factors'!$D$20/0.8/1000) -> 0 | AM42: =IF(O42="130",2014.4*AO42*'CO2 Conversion Factors'!$G$20/0.8/1000,2096.16*AO42*'CO2 Conversion Factors'!$G$20/0.8/1000) -> 0 | AN42: =IF(O42="130",2014.4*AO42*'CO2 Conversion Factors'!$J$20/0.8/1000,2096.16*AO42*'CO2 Conversion Factors'!$J$20/0.8/1000) -> 0 | AO42: 0 | AP42: 0 | AT42: ARM | AU42: FALSE | AV42: IB | AW42: FALSE | AX42: ARMIB | AY42: FALSE | AZ42: FALSE | BA42: FALSE | BB42: FALSE | BH42: =VLOOKUP(D42,#REF!,5) -> 
A43: 2015-12-16 | B43: NA | D43: ROOF 16 | F43: ARM | H43: IB | I43: 5/48 | K43: UH | L43: LL | M43: NPT | N43: 3/4 | O43: 25 | P43: 0 | W43: Y | X43: Y | Z43: Y | AE43: HEATING SEASON | AK43: 3118,3119,943 | AL43: =IF(O43="130",2014.4*AO43*'CO2 Conversion Factors'!$D$20/0.8/1000,2096.16*AO43*'CO2 Conversion Factors'!$D$20/0.8/1000) -> 0 | AM43: =IF(O43="130",2014.4*AO43*'CO2 Conversion Factors'!$G$20/0.8/1000,2096.16*AO43*'CO2 Conversion Factors'!$G$20/0.8/1000) -> 0 | AN43: =IF(O43="130",2014.4*AO43*'CO2 Conversion Factors'!$J$20/0.8/1000,2096.16*AO43*'CO2 Conversion Factors'!$J$20/0.8/1000) -> 0 | AO43: 0 | AP43: 0 | AT43: ARM | AU43: ARM | AV43: IB | AW43: IB | AX43: ARMIB | AY43: FALSE | AZ43: FALSE | BA43: IB | BB43: FALSE | BH43: =VLOOKUP(D43,#REF!,5) -> 
A44: 2015-12-16 | B44: NA | D44: ROOF 17 | F44: ARM | H44: IB | I44: 5/49 | K44: UH | L44: CLD | M44: NPT | N44: 3/4 | O44: 25 | P44: 0 | W44: Y | X44: Y | Z44: Y | AE44: HEATING SEASON | AK44: 3122,3123 | AL44: =IF(O44="130",2014.4*AO44*'CO2 Conversion Factors'!$D$20/0.8/1000,2096.16*AO44*'CO2 Conversion Factors'!$D$20/0.8/1000) -> 0 | AM44: =IF(O44="130",2014.4*AO44*'CO2 Conversion Factors'!$G$20/0.8/1000,2096.16*AO44*'CO2 Conversion Factors'!$G$20/0.8/1000) -> 0 | AN44: =IF(O44="130",2014.4*AO44*'CO2 Conversion Factors'!$J$20/0.8/1000,2096.16*AO44*'CO2 Conversion Factors'!$J$20/0.8/1000) -> 0 | AO44: 0 | AP44: 0 | AT44: ARM | AU44: ARM | AV44: IB | AW44: IB | AX44: ARMIB | AY44: IB | AZ44: FALSE | BA44: FALSE | BB44: FALSE | BH44: =VLOOKUP(D44,#REF!,5) -> 
A45: 2015-12-16 | B45: NA | D45: ROOF 8 | F45: ARM | H45: IB | I45: 5/50 | K45: UH | L45: CLD | M45: NPT | N45: 3/4 | O45: 25 | P45: 0 | W45: Y | X45: Y | Z45: Y | AE45: HEATING SEASON | AK45: 3128,3130,945 | AL45: =IF(O45="130",2014.4*AO45*'CO2 Conversion Factors'!$D$20/0.8/1000,2096.16*AO45*'CO2 Conversion Factors'!$D$20/0.8/1000) -> 0 | AM45: =IF(O45="130",2014.4*AO45*'CO2 Conversion Factors'!$G$20/0.8/1000,2096.16*AO45*'CO2 Conversion Factors'!$G$20/0.8/1000) -> 0 | AN45: =IF(O45="130",2014.4*AO45*'CO2 Conversion Factors'!$J$20/0.8/1000,2096.16*AO45*'CO2 Conversion Factors'!$J$20/0.8/1000) -> 0 | AO45: 0 | AP45: 0 | AT45: ARM | AU45: ARM | AV45: IB | AW45: IB | AX45: ARMIB | AY45: IB | AZ45: FALSE | BA45: FALSE | BB45: FALSE | BH45: =VLOOKUP(D45,#REF!,5) -> 
A46: 2015-12-16 | B46: NA | D46: ROOF 7 | F46: ARM | H46: IB | I46: 5/51 | K46: UH | L46: CLD | M46: NPT | N46: 3/4 | O46: 25 | P46: 0 | W46: Y | X46: Y | Z46: Y | AE46: HEATING SEASON | AK46: 3136,3137,3134,946 | AL46: =IF(O46="130",2014.4*AO46*'CO2 Conversion Factors'!$D$20/0.8/1000,2096.16*AO46*'CO2 Conversion Factors'!$D$20/0.8/1000) -> 0 | AM46: =IF(O46="130",2014.4*AO46*'CO2 Conversion Factors'!$G$20/0.8/1000,2096.16*AO46*'CO2 Conversion Factors'!$G$20/0.8/1000) -> 0 | AN46: =IF(O46="130",2014.4*AO46*'CO2 Conversion Factors'!$J$20/0.8/1000,2096.16*AO46*'CO2 Conversion Factors'!$J$20/0.8/1000) -> 0 | AO46: 0 | AP46: 0 | AT46: ARM | AU46: ARM | AV46: IB | AW46: IB | AX46: ARMIB | AY46: IB | AZ46: FALSE | BA46: FALSE | BB46: FALSE | BH46: =VLOOKUP(D46,#REF!,5) -> 
A47: 2015-12-16 | B47: NA | D47: ROOF 9 | F47: ARM | H47: IB | I47: 5/52 | K47: UH | L47: PO | M47: NPT | N47: 3/4 | O47: 25 | P47: 0 | W47: Y | X47: Y | Z47: Y | AE47: HEATING SEASON | AK47: 3138,947 | AL47: =IF(O47="130",2014.4*AO47*'CO2 Conversion Factors'!$D$20/0.8/1000,2096.16*AO47*'CO2 Conversion Factors'!$D$20/0.8/1000) -> 0 | AM47: =IF(O47="130",2014.4*AO47*'CO2 Conversion Factors'!$G$20/0.8/1000,2096.16*AO47*'CO2 Conversion Factors'!$G$20/0.8/1000) -> 0 | AN47: =IF(O47="130",2014.4*AO47*'CO2 Conversion Factors'!$J$20/0.8/1000,2096.16*AO47*'CO2 Conversion Factors'!$J$20/0.8/1000) -> 0 | AO47: 0 | AP47: 0 | AT47: ARM | AU47: FALSE | AV47: IB | AW47: FALSE | AX47: ARMIB | AY47: FALSE | AZ47: FALSE | BA47: FALSE | BB47: FALSE | BH47: =VLOOKUP(D47,#REF!,5) -> 
A48: 2015-12-16 | B48: NA | D48: ROOF 24 | F48: ARM | H48: IB | I48: 5/53 | K48: UH | L48: SL | M48: NPT | N48: 3/4 | O48: 25 | P48: 0 | W48: Y | X48: Y | Z48: Y | AE48: HEATING SEASON | AK48: 3139,3140,948 | AL48: =IF(O48="130",2014.4*AO48*'CO2 Conversion Factors'!$D$20/0.8/1000,2096.16*AO48*'CO2 Conversion Factors'!$D$20/0.8/1000) -> 0 | AM48: =IF(O48="130",2014.4*AO48*'CO2 Conversion Factors'!$G$20/0.8/1000,2096.16*AO48*'CO2 Conversion Factors'!$G$20/0.8/1000) -> 0 | AN48: =IF(O48="130",2014.4*AO48*'CO2 Conversion Factors'!$J$20/0.8/1000,2096.16*AO48*'CO2 Conversion Factors'!$J$20/0.8/1000) -> 0 | AO48: 0 | AP48: 0 | AT48: ARM | AU48: ARM | AV48: IB | AW48: IB | AX48: ARMIB | AY48: FALSE | AZ48: IB | BA48: FALSE | BB48: FALSE | BH48: =VLOOKUP(D48,#REF!,5) -> 
A49: 2015-12-16 | B49: NA | D49: ROOF 18 | F49: ARM | G49: 1811 | H49: IB | I49: 5/54 | K49: UH | L49: CLD | M49: NPT | N49: 3/4 | O49: 25 | P49: 0 | W49: Y | X49: Y | Z49: Y | AE49: HEATING SEASON | AK49: 949 | AL49: =IF(O49="130",2014.4*AO49*'CO2 Conversion Factors'!$D$20/0.8/1000,2096.16*AO49*'CO2 Conversion Factors'!$D$20/0.8/1000) -> 0 | AM49: =IF(O49="130",2014.4*AO49*'CO2 Conversion Factors'!$G$20/0.8/1000,2096.16*AO49*'CO2 Conversion Factors'!$G$20/0.8/1000) -> 0 | AN49: =IF(O49="130",2014.4*AO49*'CO2 Conversion Factors'!$J$20/0.8/1000,2096.16*AO49*'CO2 Conversion Factors'!$J$20/0.8/1000) -> 0 | AO49: 0 | AP49: 0 | AT49: ARM | AU49: ARM | AV49: IB | AW49: IB | AX49: ARMIB | AY49: IB | AZ49: FALSE | BA49: FALSE | BB49: FALSE | BH49: =VLOOKUP(D49,#REF!,5) -> 
A50: 2015-12-16 | B50: 178 | D50: ROOF 10 | F50: ARM | G50: 1811 | H50: IB | I50: 5/55 | K50: UH | L50: CLD | M50: NPT | N50: 3/4 | O50: 25 | P50: 0 | W50: Y | X50: Y | Z50: Y | AE50: HEATING SEASON | AK50: 3143,3144 | AL50: =IF(O50="130",2014.4*AO50*'CO2 Conversion Factors'!$D$20/0.8/1000,2096.16*AO50*'CO2 Conversion Factors'!$D$20/0.8/1000) -> 0 | AM50: =IF(O50="130",2014.4*AO50*'CO2 Conversion Factors'!$G$20/0.8/1000,2096.16*AO50*'CO2 Conversion Factors'!$G$20/0.8/1000) -> 0 | AN50: =IF(O50="130",2014.4*AO50*'CO2 Conversion Factors'!$J$20/0.8/1000,2096.16*AO50*'CO2 Conversion Factors'!$J$20/0.8/1000) -> 0 | AO50: 0 | AP50: 0 | AT50: ARM | AU50: ARM | AV50: IB | AW50: IB | AX50: ARMIB | AY50: IB | AZ50: FALSE | BA50: FALSE | BB50: FALSE | BH50: =VLOOKUP(D50,#REF!,5) -> 
A51: 2015-12-16 | B51: 131 | D51: ROOF 1 | F51: ARM | H51: FT | I51: 5/56 | K51: UH | L51: PO | M51: NPT | N51: 3/4 | O51: 25 | P51: 0 | W51: Y | X51: Y | Z51: Y | AE51: HEATING SEASON | AK51: 3141,3142,951 | AL51: =IF(O51="130",2014.4*AO51*'CO2 Conversion Factors'!$D$20/0.8/1000,2096.16*AO51*'CO2 Conversion Factors'!$D$20/0.8/1000) -> 0 | AM51: =IF(O51="130",2014.4*AO51*'CO2 Conversion Factors'!$G$20/0.8/1000,2096.16*AO51*'CO2 Conversion Factors'!$G$20/0.8/1000) -> 0 | AN51: =IF(O51="130",2014.4*AO51*'CO2 Conversion Factors'!$J$20/0.8/1000,2096.16*AO51*'CO2 Conversion Factors'!$J$20/0.8/1000) -> 0 | AO51: 0 | AP51: 0 | AT51: ARM | AU51: FALSE | AV51: FT | AW51: FALSE | AX51: ARMFT | AY51: FALSE | AZ51: FALSE | BA51: FALSE | BB51: FALSE | BH51: =VLOOKUP(D51,#REF!,5) -> 
A52: 2015-12-16 | B52: NA | D52: ROOF 2 | F52: ARM | H52: IB | I52: 5/57 | K52: UH | L52: PO | M52: NPT | N52: 3/4 | O52: 25 | P52: 0 | W52: Y | X52: Y | Z52: Y | AE52: HEATING SEASON | AK52: 3145,3146 | AL52: =IF(O52="130",2014.4*AO52*'CO2 Conversion Factors'!$D$20/0.8/1000,2096.16*AO52*'CO2 Conversion Factors'!$D$20/0.8/1000) -> 0 | AM52: =IF(O52="130",2014.4*AO52*'CO2 Conversion Factors'!$G$20/0.8/1000,2096.16*AO52*'CO2 Conversion Factors'!$G$20/0.8/1000) -> 0 | AN52: =IF(O52="130",2014.4*AO52*'CO2 Conversion Factors'!$J$20/0.8/1000,2096.16*AO52*'CO2 Conversion Factors'!$J$20/0.8/1000) -> 0 | AO52: 0 | AP52: 0 | AT52: ARM | AU52: FALSE | AV52: IB | AW52: FALSE | AX52: ARMIB | AY52: FALSE | AZ52: FALSE | BA52: FALSE | BB52: FALSE | BH52: =VLOOKUP(D52,#REF!,5) -> 
A53: 2015-12-16 | B53: NA | D53: ROOF 3 | F53: ARM | G53: 1811 | H53: IB | I53: 5/58 | K53: UH | L53: CLD | M53: NPT | N53: 3/4 | O53: 25 | P53: 0 | W53: Y | X53: Y | Z53: Y | AE53: HEATING SEASON | AK53: 3147,3148 | AL53: =IF(O53="130",2014.4*AO53*'CO2 Conversion Factors'!$D$20/0.8/1000,2096.16*AO53*'CO2 Conversion Factors'!$D$20/0.8/1000) -> 0 | AM53: =IF(O53="130",2014.4*AO53*'CO2 Conversion Factors'!$G$20/0.8/1000,2096.16*AO53*'CO2 Conversion Factors'!$G$20/0.8/1000) -> 0 | AN53: =IF(O53="130",2014.4*AO53*'CO2 Conversion Factors'!$J$20/0.8/1000,2096.16*AO53*'CO2 Conversion Factors'!$J$20/0.8/1000) -> 0 | AO53: 0 | AP53: 0 | AT53: ARM | AU53: ARM | AV53: IB | AW53: IB | AX53: ARMIB | AY53: IB | AZ53: FALSE | BA53: FALSE | BB53: FALSE | BH53: =VLOOKUP(D53,#REF!,5) -> 
A54: 2015-12-16 | B54: NA | D54: ROOF 11 | F54: ARM | G54: 1811 | H54: IB | I54: 5/59 | K54: UH | L54: SL | M54: NPT | N54: 3/4 | O54: 25 | P54: 0 | W54: Y | X54: Y | Z54: Y | AE54: HEATING SEASON | AK54: 3149,3150,955,956 | AL54: =IF(O54="130",2014.4*AO54*'CO2 Conversion Factors'!$D$20/0.8/1000,2096.16*AO54*'CO2 Conversion Factors'!$D$20/0.8/1000) -> 0 | AM54: =IF(O54="130",2014.4*AO54*'CO2 Conversion Factors'!$G$20/0.8/1000,2096.16*AO54*'CO2 Conversion Factors'!$G$20/0.8/1000) -> 0 | AN54: =IF(O54="130",2014.4*AO54*'CO2 Conversion Factors'!$J$20/0.8/1000,2096.16*AO54*'CO2 Conversion Factors'!$J$20/0.8/1000) -> 0 | AO54: 0 | AP54: 0 | AT54: ARM | AU54: ARM | AV54: IB | AW54: IB | AX54: ARMIB | AY54: FALSE | AZ54: IB | BA54: FALSE | BB54: FALSE | BH54: =VLOOKUP(D54,#REF!,5) -> 
A55: 2015-12-16 | B55: NA | D55: ROOF 12 | F55: ARM | G55: 1811 | H55: IB | I55: 5/60 | K55: UH | L55: BLW | M55: NPT | N55: 3/4 | O55: 25 | P55: 0 | W55: Y | X55: Y | Z55: Y | AE55: HEATING SEASON | AK55: 3151,3152 | AL55: =IF(O55="130",2014.4*AO55*'CO2 Conversion Factors'!$D$20/0.8/1000,2096.16*AO55*'CO2 Conversion Factors'!$D$20/0.8/1000) -> 0 | AM55: =IF(O55="130",2014.4*AO55*'CO2 Conversion Factors'!$G$20/0.8/1000,2096.16*AO55*'CO2 Conversion Factors'!$G$20/0.8/1000) -> 0 | AN55: =IF(O55="130",2014.4*AO55*'CO2 Conversion Factors'!$J$20/0.8/1000,2096.16*AO55*'CO2 Conversion Factors'!$J$20/0.8/1000) -> 0 | AO55: 0 | AP55: 0 | AT55: ARM | AU55: ARM | AV55: IB | AW55: IB | AX55: ARMIB | AY55: FALSE | AZ55: FALSE | BA55: FALSE | BB55: IB | BH55: =VLOOKUP(D55,#REF!,5) -> 
A56: 2015-12-16 | B56: NA | D56: ROOF 19 | F56: ARM | G56: 1811 | H56: IB | I56: 5/61 | K56: UH | L56: PO | M56: NPT | N56: 1 | O56: 25 | P56: 0 | W56: Y | X56: Y | Z56: Y | AE56: HEATING SEASON | AK56: 3153,3154 | AL56: =IF(O56="130",2014.4*AO56*'CO2 Conversion Factors'!$D$20/0.8/1000,2096.16*AO56*'CO2 Conversion Factors'!$D$20/0.8/1000) -> 0 | AM56: =IF(O56="130",2014.4*AO56*'CO2 Conversion Factors'!$G$20/0.8/1000,2096.16*AO56*'CO2 Conversion Factors'!$G$20/0.8/1000) -> 0 | AN56: =IF(O56="130",2014.4*AO56*'CO2 Conversion Factors'!$J$20/0.8/1000,2096.16*AO56*'CO2 Conversion Factors'!$J$20/0.8/1000) -> 0 | AO56: 0 | AP56: 0 | AT56: ARM | AU56: FALSE | AV56: IB | AW56: FALSE | AX56: ARMIB | AY56: FALSE | AZ56: FALSE | BA56: FALSE | BB56: FALSE | BH56: =VLOOKUP(D56,#REF!,5) -> 
A57: 2015-12-16 | B57: NA | D57: ROOF 13 | F57: ARM | H57: FT | I57: 5/62 | K57: UH | L57: CLD | M57: NPT | N57: 1 | O57: 25 | P57: 0 | W57: Y | X57: Y | Z57: Y | AE57: HEATING SEASON | AK57: 960 | AL57: =IF(O57="130",2014.4*AO57*'CO2 Conversion Factors'!$D$20/0.8/1000,2096.16*AO57*'CO2 Conversion Factors'!$D$20/0.8/1000) -> 0 | AM57: =IF(O57="130",2014.4*AO57*'CO2 Conversion Factors'!$G$20/0.8/1000,2096.16*AO57*'CO2 Conversion Factors'!$G$20/0.8/1000) -> 0 | AN57: =IF(O57="130",2014.4*AO57*'CO2 Conversion Factors'!$J$20/0.8/1000,2096.16*AO57*'CO2 Conversion Factors'!$J$20/0.8/1000) -> 0 | AO57: 0 | AP57: 0 | AT57: ARM | AU57: ARM | AV57: FT | AW57: FT | AX57: ARMFT | AY57: FT | AZ57: FALSE | BA57: FALSE | BB57: FALSE | BH57: =VLOOKUP(D57,#REF!,5) -> 
A58: 2015-12-16 | B58: NA | D58: ROOF 4 | F58: ARM | H58: FT | I58: 5/63 | K58: UH | L58: CLD | M58: NPT | N58: 3/4 | O58: 25 | P58: 0 | W58: Y | X58: Y | Z58: Y | AE58: HEATING SEASON | AK58: 962,961 | AL58: =IF(O58="130",2014.4*AO58*'CO2 Conversion Factors'!$D$20/0.8/1000,2096.16*AO58*'CO2 Conversion Factors'!$D$20/0.8/1000) -> 0 | AM58: =IF(O58="130",2014.4*AO58*'CO2 Conversion Factors'!$G$20/0.8/1000,2096.16*AO58*'CO2 Conversion Factors'!$G$20/0.8/1000) -> 0 | AN58: =IF(O58="130",2014.4*AO58*'CO2 Conversion Factors'!$J$20/0.8/1000,2096.16*AO58*'CO2 Conversion Factors'!$J$20/0.8/1000) -> 0 | AO58: 0 | AP58: 0 | AT58: ARM | AU58: ARM | AV58: FT | AW58: FT | AX58: ARMFT | AY58: FT | AZ58: FALSE | BA58: FALSE | BB58: FALSE | BH58: =VLOOKUP(D58,#REF!,5) -> 
A59: 2015-12-16 | B59: 143 | D59: ROOF 5 | F59: ARM | G59: 1811 | H59: IB | I59: 5/64 | K59: UH | L59: CLD | M59: NPT | N59: 3/4 | O59: 25 | P59: 0 | W59: Y | X59: Y | Z59: Y | AE59: HEATING SEASON | AK59: 3155,963 | AL59: =IF(O59="130",2014.4*AO59*'CO2 Conversion Factors'!$D$20/0.8/1000,2096.16*AO59*'CO2 Conversion Factors'!$D$20/0.8/1000) -> 0 | AM59: =IF(O59="130",2014.4*AO59*'CO2 Conversion Factors'!$G$20/0.8/1000,2096.16*AO59*'CO2 Conversion Factors'!$G$20/0.8/1000) -> 0 | AN59: =IF(O59="130",2014.4*AO59*'CO2 Conversion Factors'!$J$20/0.8/1000,2096.16*AO59*'CO2 Conversion Factors'!$J$20/0.8/1000) -> 0 | AO59: 0 | AP59: 0 | AT59: ARM | AU59: ARM | AV59: IB | AW59: IB | AX59: ARMIB | AY59: IB | AZ59: FALSE | BA59: FALSE | BB59: FALSE | BH59: =VLOOKUP(D59,#REF!,5) -> 
A60: 2015-12-16 | B60: NA | D60: ROOF 37 | F60: ARM | G60: D-188 | H60: IB | I60: 5/65 | K60: UH | L60: PO | M60: NPT | N60: 2.0 | O60: 25 | P60: 0 | W60: Y | X60: Y | Z60: Y | AE60: HEATING SEASON | AK60: 3155,963 | AL60: =IF(O60="130",2014.4*AO60*'CO2 Conversion Factors'!$D$20/0.8/1000,2096.16*AO60*'CO2 Conversion Factors'!$D$20/0.8/1000) -> 0 | AM60: =IF(O60="130",2014.4*AO60*'CO2 Conversion Factors'!$G$20/0.8/1000,2096.16*AO60*'CO2 Conversion Factors'!$G$20/0.8/1000) -> 0 | AN60: =IF(O60="130",2014.4*AO60*'CO2 Conversion Factors'!$J$20/0.8/1000,2096.16*AO60*'CO2 Conversion Factors'!$J$20/0.8/1000) -> 0 | AO60: 0 | AP60: 0 | AT60: ARM | AU60: FALSE | AV60: IB | AW60: FALSE | AX60: ARMIB | AY60: FALSE | AZ60: FALSE | BA60: FALSE | BB60: FALSE | BH60: =VLOOKUP(D60,#REF!,5) -> 
A61: 2015-12-16 | B61: NA | D61: ROOF 34 | F61: ARM | G61: D-188 | H61: IB | I61: 5/66 | K61: UH | L61: PO | M61: NPT | N61: 2.0 | O61: 25 | P61: 0 | W61: Y | X61: Y | Z61: Y | AE61: HEATING SEASON | AK61: 3155,963 | AL61: =IF(O61="130",2014.4*AO61*'CO2 Conversion Factors'!$D$20/0.8/1000,2096.16*AO61*'CO2 Conversion Factors'!$D$20/0.8/1000) -> 0 | AM61: =IF(O61="130",2014.4*AO61*'CO2 Conversion Factors'!$G$20/0.8/1000,2096.16*AO61*'CO2 Conversion Factors'!$G$20/0.8/1000) -> 0 | AN61: =IF(O61="130",2014.4*AO61*'CO2 Conversion Factors'!$J$20/0.8/1000,2096.16*AO61*'CO2 Conversion Factors'!$J$20/0.8/1000) -> 0 | AO61: 0 | AP61: 0 | AT61: ARM | AU61: FALSE | AV61: IB | AW61: FALSE | AX61: ARMIB | AY61: FALSE | AZ61: FALSE | BA61: FALSE | BB61: FALSE | BH61: =VLOOKUP(D61,#REF!,5) -> 
A62: 2015-12-16 | B62: NA | D62: ROOF 34 | F62: ARM | G62: D-188 | H62: IB | I62: 5/67 | K62: UH | L62: PO | M62: NPT | N62: 2.0 | O62: 25 | P62: 0 | W62: Y | X62: Y | Z62: Y | AE62: HEATING SEASON | AK62: 3155,963 | AL62: =IF(O62="130",2014.4*AO62*'CO2 Conversion Factors'!$D$20/0.8/1000,2096.16*AO62*'CO2 Conversion Factors'!$D$20/0.8/1000) -> 0 | AM62: =IF(O62="130",2014.4*AO62*'CO2 Conversion Factors'!$G$20/0.8/1000,2096.16*AO62*'CO2 Conversion Factors'!$G$20/0.8/1000) -> 0 | AN62: =IF(O62="130",2014.4*AO62*'CO2 Conversion Factors'!$J$20/0.8/1000,2096.16*AO62*'CO2 Conversion Factors'!$J$20/0.8/1000) -> 0 | AO62: 0 | AP62: 0 | AT62: ARM | AU62: FALSE | AV62: IB | AW62: FALSE | AX62: ARMIB | AY62: FALSE | AZ62: FALSE | BA62: FALSE | BB62: FALSE | BH62: =VLOOKUP(D62,#REF!,5) -> 
A63: 2015-12-16 | B63: RO3821 | D63: TRANE UNIT | F63: ARM | H63: FT | I63: 5/68 | K63: UH | L63: CLD | M63: NPT | N63: 2.0 | O63: 25 | P63: 0 | W63: Y | X63: Y | Z63: Y | AE63: HEATING SEASON | AK63: 964 | AL63: =IF(O63="130",2014.4*AO63*'CO2 Conversion Factors'!$D$20/0.8/1000,2096.16*AO63*'CO2 Conversion Factors'!$D$20/0.8/1000) -> 0 | AM63: =IF(O63="130",2014.4*AO63*'CO2 Conversion Factors'!$G$20/0.8/1000,2096.16*AO63*'CO2 Conversion Factors'!$G$20/0.8/1000) -> 0 | AN63: =IF(O63="130",2014.4*AO63*'CO2 Conversion Factors'!$J$20/0.8/1000,2096.16*AO63*'CO2 Conversion Factors'!$J$20/0.8/1000) -> 0 | AO63: 0 | AP63: 0 | AT63: ARM | AU63: ARM | AV63: FT | AW63: FT | AX63: ARMFT | AY63: FT | AZ63: FALSE | BA63: FALSE | BB63: FALSE | BH63: =VLOOKUP(D63,#REF!,5) -> 
A64: 2015-12-16 | B64: RO3820 | D64: TRANE UNIT | F64: ARM | H64: FT | I64: 5/69 | K64: UH | L64: CLD | M64: NPT | N64: 2.0 | O64: 25 | P64: 0 | W64: Y | X64: Y | Z64: Y | AE64: HEATING SEASON | AK64: 965 | AL64: =IF(O64="130",2014.4*AO64*'CO2 Conversion Factors'!$D$20/0.8/1000,2096.16*AO64*'CO2 Conversion Factors'!$D$20/0.8/1000) -> 0 | AM64: =IF(O64="130",2014.4*AO64*'CO2 Conversion Factors'!$G$20/0.8/1000,2096.16*AO64*'CO2 Conversion Factors'!$G$20/0.8/1000) -> 0 | AN64: =IF(O64="130",2014.4*AO64*'CO2 Conversion Factors'!$J$20/0.8/1000,2096.16*AO64*'CO2 Conversion Factors'!$J$20/0.8/1000) -> 0 | AO64: 0 | AP64: 0 | AT64: ARM | AU64: ARM | AV64: FT | AW64: FT | AX64: ARMFT | AY64: FT | AZ64: FALSE | BA64: FALSE | BB64: FALSE | BH64: =VLOOKUP(D64,#REF!,5) -> 
A65: 2015-12-16 | B65: 167 | D65: ROOF 25 | F65: ARM | H65: IB | I65: 5/70 | K65: UH | L65: PO | M65: NPT | N65: 3/4 | O65: 25 | P65: 0 | W65: Y | X65: Y | Z65: Y | AE65: HEATING SEASON | AJ65: LEAKING VALVE | AK65: 3157,3158 | AL65: =IF(O65="130",2014.4*AO65*'CO2 Conversion Factors'!$D$20/0.8/1000,2096.16*AO65*'CO2 Conversion Factors'!$D$20/0.8/1000) -> 0 | AM65: =IF(O65="130",2014.4*AO65*'CO2 Conversion Factors'!$G$20/0.8/1000,2096.16*AO65*'CO2 Conversion Factors'!$G$20/0.8/1000) -> 0 | AN65: =IF(O65="130",2014.4*AO65*'CO2 Conversion Factors'!$J$20/0.8/1000,2096.16*AO65*'CO2 Conversion Factors'!$J$20/0.8/1000) -> 0 | AO65: 0 | AP65: 0 | AT65: ARM | AU65: FALSE | AV65: IB | AW65: FALSE | AX65: ARMIB | AY65: FALSE | AZ65: FALSE | BA65: FALSE | BB65: FALSE | BH65: =VLOOKUP(D65,#REF!,5) -> 
A66: 2015-12-16 | B66: 168 | D66: ROOF 26 | F66: ARM | H66: IB | I66: 5/71 | K66: UH | L66: PO | M66: NPT | N66: 3/4 | O66: 25 | P66: 0 | W66: Y | X66: Y | Z66: Y | AE66: HEATING SEASON | AJ66: BAD VALVE | AK66: 966 | AL66: =IF(O66="130",2014.4*AO66*'CO2 Conversion Factors'!$D$20/0.8/1000,2096.16*AO66*'CO2 Conversion Factors'!$D$20/0.8/1000) -> 0 | AM66: =IF(O66="130",2014.4*AO66*'CO2 Conversion Factors'!$G$20/0.8/1000,2096.16*AO66*'CO2 Conversion Factors'!$G$20/0.8/1000) -> 0 | AN66: =IF(O66="130",2014.4*AO66*'CO2 Conversion Factors'!$J$20/0.8/1000,2096.16*AO66*'CO2 Conversion Factors'!$J$20/0.8/1000) -> 0 | AO66: 0 | AP66: 0 | AT66: ARM | AU66: FALSE | AV66: IB | AW66: FALSE | AX66: ARMIB | AY66: FALSE | AZ66: FALSE | BA66: FALSE | BB66: FALSE | BH66: =VLOOKUP(D66,#REF!,5) -> 
A67: 2015-12-16 | B67: NA | D67: ROOF 22 | F67: ARM | H67: IB | I67: 5/72 | K67: UH | L67: CLD | M67: NPT | N67: 3/4 | O67: 25 | P67: 0 | W67: Y | X67: Y | Z67: Y | AE67: HEATING SEASON | AK67: 3159,3160 | AL67: =IF(O67="130",2014.4*AO67*'CO2 Conversion Factors'!$D$20/0.8/1000,2096.16*AO67*'CO2 Conversion Factors'!$D$20/0.8/1000) -> 0 | AM67: =IF(O67="130",2014.4*AO67*'CO2 Conversion Factors'!$G$20/0.8/1000,2096.16*AO67*'CO2 Conversion Factors'!$G$20/0.8/1000) -> 0 | AN67: =IF(O67="130",2014.4*AO67*'CO2 Conversion Factors'!$J$20/0.8/1000,2096.16*AO67*'CO2 Conversion Factors'!$J$20/0.8/1000) -> 0 | AO67: =IFERROR(IF(OR(L67="BLW",L67="PRI",L67="LNK"),IF(Cover_Select_SteamCostUnits="£/1000kg",11.6*(VLOOKUP($I67,Abb_Lookup_OrifaceDia,2,FALSE)^2)*SQRT(($O67-$P67)*($O67+$P67)),25.57363*(VLOOKUP($I67,Abb_Lookup_OrifaceDia,2,FALSE)^2)*SQRT(($O67-$P67)*($O67+$P67)))*(VLOOKUP(AE67,Cover_Lookup_OpTime,4,FALSE)/1000),IF(L67="LL",IF(Cover_Select_SteamCostUnits="£/1000kg",11.6*(VLOOKUP($I67,Abb_Lookup_OrifaceDia,2,FALSE)^2)*SQRT(($O67-$P67)*($O67+$P67)),25.57363*(VLOOKUP($I67,Abb_Lookup_OrifaceDia,2,FALSE)^2)*SQRT(($O67-$P67)*($O67+$P67)))*(VLOOKUP(AE67,Cover_Lookup_OpTime,4,FALSE)/2000),IF(L67="SL",IF(Cover_Select_SteamCostUnits="£/1000kg",11.6*(VLOOKUP($I67,Abb_Lookup_OrifaceDia,2,FALSE)^2)*SQRT(($O67-$P67)*($O67+$P67)),25.57363*(VLOOKUP($I67,Abb_Lookup_OrifaceDia,2,FALSE)^2)*SQRT(($O67-$P67)*($O67+$P67)))*(VLOOKUP(AE67,Cover_Lookup_OpTime,4,FALSE)/4000),0))),0) -> 0 | AP67: 0 | AT67: ARM | AU67: ARM | AV67: IB | AW67: IB | AX67: ARMIB | AY67: IB | AZ67: FALSE | BA67: FALSE | BB67: FALSE | BH67: =VLOOKUP(D67,#REF!,5) -> 
A68: 2015-12-16 | B68: NA | D68: ROOF 23 | F68: ARM | H68: IB | I68: 5/73 | K68: UH | L68: SL | M68: NPT | N68: 3/4 | O68: 25 | P68: 0 | W68: Y | X68: Y | Z68: Y | AE68: HEATING SEASON | AK68: 3161,3162 | AL68: =IF(O68="130",2014.4*AO68*'CO2 Conversion Factors'!$D$20/0.8/1000,2096.16*AO68*'CO2 Conversion Factors'!$D$20/0.8/1000) -> 0 | AM68: =IF(O68="130",2014.4*AO68*'CO2 Conversion Factors'!$G$20/0.8/1000,2096.16*AO68*'CO2 Conversion Factors'!$G$20/0.8/1000) -> 0 | AN68: =IF(O68="130",2014.4*AO68*'CO2 Conversion Factors'!$J$20/0.8/1000,2096.16*AO68*'CO2 Conversion Factors'!$J$20/0.8/1000) -> 0 | AO68: 0 | AP68: =IFERROR(AO68*Cover_Select_SteamCost,0) -> 0 | AT68: =IF(NOT(OR(L68="NIS",L68="OFF")),F68) -> ARM | AU68: =IF(NOT(OR(L68="NIS",L68="OFF",L68="PO")),F68) -> ARM | AV68: =IF(NOT(OR(L68="NIS",L68="OFF")),H68) -> IB | AW68: =IF(NOT(OR(L68="NIS",L68="OFF",L68="PO")),H68) -> IB | AX68: ARMIB | AY68: FALSE | AZ68: IB | BA68: FALSE | BB68: FALSE | BH68: =VLOOKUP(D68,#REF!,5) -> 
A69: 2015-12-16 | B69: NA | D69: ROOF 19 | F69: ARM | G69: 1811 | H69: IB | I69: 5/74 | K69: UH | L69: BLW | M69: NPT | N69: 3/4 | O69: 25 | P69: 0 | W69: Y | X69: Y | Z69: Y | AE69: HEATING SEASON | AJ69: BAD VALVE | AK69: 3163,968 | AL69: =IF(O69="130",2014.4*AO69*'CO2 Conversion Factors'!$D$20/0.8/1000,2096.16*AO69*'CO2 Conversion Factors'!$D$20/0.8/1000) -> 0 | AM69: =IF(O69="130",2014.4*AO69*'CO2 Conversion Factors'!$G$20/0.8/1000,2096.16*AO69*'CO2 Conversion Factors'!$G$20/0.8/1000) -> 0 | AN69: =IF(O69="130",2014.4*AO69*'CO2 Conversion Factors'!$J$20/0.8/1000,2096.16*AO69*'CO2 Conversion Factors'!$J$20/0.8/1000) -> 0 | AO69: 0 | AP69: 0 | AT69: ARM | AU69: ARM | AV69: IB | AW69: IB | AX69: =F69&H69 -> ARMIB | AY69: =IF(L69="CLD", H69) -> FALSE | AZ69: =IF(L69="SL", H69) -> FALSE | BA69: =IF(L69="LL", H69) -> FALSE | BB69: =IF(L69="BLW", H69) -> IB | BH69: =VLOOKUP(D69,#REF!,5) -> 
A70: 2015-12-16 | B70: NA | D70: ROOF 18 | F70: ARM | G70: 1811 | H70: IB | I70: 5/75 | K70: UH | L70: CLD | M70: NPT | N70: 3/4 | O70: 25 | P70: 0 | W70: Y | X70: Y | Z70: Y | AE70: HEATING SEASON | AK70: 968 | AL70: =IF(O70="130",2014.4*AO70*'CO2 Conversion Factors'!$D$20/0.8/1000,2096.16*AO70*'CO2 Conversion Factors'!$D$20/0.8/1000) -> 0 | AM70: =IF(O70="130",2014.4*AO70*'CO2 Conversion Factors'!$G$20/0.8/1000,2096.16*AO70*'CO2 Conversion Factors'!$G$20/0.8/1000) -> 0 | AN70: =IF(O70="130",2014.4*AO70*'CO2 Conversion Factors'!$J$20/0.8/1000,2096.16*AO70*'CO2 Conversion Factors'!$J$20/0.8/1000) -> 0 | AO70: 0 | AP70: 0 | AT70: ARM | AU70: ARM | AV70: IB | AW70: IB | AX70: ARMIB | AY70: IB | AZ70: FALSE | BA70: FALSE | BB70: FALSE | BH70: =VLOOKUP(D70,#REF!,5) -> 
A71: 2015-12-16 | B71: NA | D71: ROOF 20 | F71: ARM | G71: 1811 | H71: IB | I71: 5/76 | K71: UH | L71: PO | M71: NPT | N71: 3/4 | O71: 25 | P71: 0 | W71: Y | X71: Y | Z71: Y | AE71: HEATING SEASON | AJ71: BAD VALVE | AK71: 3165,3166 | AL71: =IF(O71="130",2014.4*AO71*'CO2 Conversion Factors'!$D$20/0.8/1000,2096.16*AO71*'CO2 Conversion Factors'!$D$20/0.8/1000) -> 0 | AM71: =IF(O71="130",2014.4*AO71*'CO2 Conversion Factors'!$G$20/0.8/1000,2096.16*AO71*'CO2 Conversion Factors'!$G$20/0.8/1000) -> 0 | AN71: =IF(O71="130",2014.4*AO71*'CO2 Conversion Factors'!$J$20/0.8/1000,2096.16*AO71*'CO2 Conversion Factors'!$J$20/0.8/1000) -> 0 | AO71: 0 | AP71: 0 | AT71: ARM | AU71: FALSE | AV71: IB | AW71: FALSE | AX71: ARMIB | AY71: FALSE | AZ71: FALSE | BA71: FALSE | BB71: FALSE | BH71: =VLOOKUP(D71,#REF!,5) -> 
A72: 2015-12-16 | B72: NA | D72: ROOF 21 | F72: ARM | G72: 1811 | H72: IB | I72: 5/77 | K72: UH | L72: CLD | M72: NPT | N72: 3/4 | O72: 25 | P72: 0 | W72: Y | X72: Y | Z72: Y | AE72: HEATING SEASON | AK72: 969 | AL72: =IF(O72="130",2014.4*AO72*'CO2 Conversion Factors'!$D$20/0.8/1000,2096.16*AO72*'CO2 Conversion Factors'!$D$20/0.8/1000) -> 0 | AM72: =IF(O72="130",2014.4*AO72*'CO2 Conversion Factors'!$G$20/0.8/1000,2096.16*AO72*'CO2 Conversion Factors'!$G$20/0.8/1000) -> 0 | AN72: =IF(O72="130",2014.4*AO72*'CO2 Conversion Factors'!$J$20/0.8/1000,2096.16*AO72*'CO2 Conversion Factors'!$J$20/0.8/1000) -> 0 | AO72: 0 | AP72: 0 | AT72: ARM | AU72: ARM | AV72: IB | AW72: IB | AX72: ARMIB | AY72: IB | AZ72: FALSE | BA72: FALSE | BB72: FALSE
A73: 2015-12-16 | B73: NA | D73: ABOVE OFFICE | F73: ARM | G73: TVS 811 | H73: IB | I73: 5/78 | K73: UH | L73: PO | M73: NPT | N73: 3/4 | O73: 25 | P73: 0 | W73: Y | X73: Y | Z73: Y | AE73: HEATING SEASON | AK73: 3167,3168 | AL73: =IF(O73="130",2014.4*AO73*'CO2 Conversion Factors'!$D$20/0.8/1000,2096.16*AO73*'CO2 Conversion Factors'!$D$20/0.8/1000) -> 0 | AM73: =IF(O73="130",2014.4*AO73*'CO2 Conversion Factors'!$G$20/0.8/1000,2096.16*AO73*'CO2 Conversion Factors'!$G$20/0.8/1000) -> 0 | AN73: =IF(O73="130",2014.4*AO73*'CO2 Conversion Factors'!$J$20/0.8/1000,2096.16*AO73*'CO2 Conversion Factors'!$J$20/0.8/1000) -> 0 | AO73: 0 | AP73: 0 | AT73: ARM | AU73: FALSE | AV73: IB | AW73: FALSE | AX73: ARMIB | AY73: FALSE | AZ73: FALSE | BA73: FALSE | BB73: FALSE | BH73: =VLOOKUP(D73,#REF!,5) -> 
A74: 2015-12-16 | B74: NA | D74: ABOVE OFFICE | F74: ARM | H74: FT | I74: 5/79 | K74: UH | L74: CLD | M74: NPT | N74: 3/4 | O74: 25 | P74: 0 | W74: Y | X74: Y | Z74: Y | AE74: HEATING SEASON | AK74: 3169,970 | AL74: =IF(O74="130",2014.4*AO74*'CO2 Conversion Factors'!$D$20/0.8/1000,2096.16*AO74*'CO2 Conversion Factors'!$D$20/0.8/1000) -> 0 | AM74: =IF(O74="130",2014.4*AO74*'CO2 Conversion Factors'!$G$20/0.8/1000,2096.16*AO74*'CO2 Conversion Factors'!$G$20/0.8/1000) -> 0 | AN74: =IF(O74="130",2014.4*AO74*'CO2 Conversion Factors'!$J$20/0.8/1000,2096.16*AO74*'CO2 Conversion Factors'!$J$20/0.8/1000) -> 0 | AO74: 0 | AP74: 0 | AT74: ARM | AU74: ARM | AV74: FT | AW74: FT | AX74: ARMFT | AY74: FT | AZ74: FALSE | BA74: FALSE | BB74: FALSE | BH74: =VLOOKUP(D74,#REF!,5) -> 
A75: 2015-12-16 | B75: NA | D75: ABOVE OFFICE | F75: ARM | G75: TVS 811 | H75: IB | I75: 5/80 | K75: UH | L75: SL | M75: NPT | N75: 3/4 | O75: 25 | P75: 0 | W75: Y | X75: Y | Z75: Y | AE75: HEATING SEASON | AK75: 970 | AL75: =IF(O75="130",2014.4*AO75*'CO2 Conversion Factors'!$D$20/0.8/1000,2096.16*AO75*'CO2 Conversion Factors'!$D$20/0.8/1000) -> 0 | AM75: =IF(O75="130",2014.4*AO75*'CO2 Conversion Factors'!$G$20/0.8/1000,2096.16*AO75*'CO2 Conversion Factors'!$G$20/0.8/1000) -> 0 | AN75: =IF(O75="130",2014.4*AO75*'CO2 Conversion Factors'!$J$20/0.8/1000,2096.16*AO75*'CO2 Conversion Factors'!$J$20/0.8/1000) -> 0 | AO75: 0 | AP75: 0 | AT75: ARM | AU75: ARM | AV75: IB | AW75: IB | AX75: ARMIB | AY75: FALSE | AZ75: IB | BA75: FALSE | BB75: FALSE | BH75: =VLOOKUP(D75,#REF!,5) -> 
A76: 2015-12-16 | B76: NA | D76: ABOVE OFFICE | F76: ARM | H76: FT | I76: 5/81 | K76: UH | L76: CLD | M76: NPT | N76: 3/4 | O76: 25 | P76: 0 | W76: Y | X76: Y | Z76: Y | AE76: HEATING SEASON | AK76: 3171,971 | AL76: =IF(O76="130",2014.4*AO76*'CO2 Conversion Factors'!$D$20/0.8/1000,2096.16*AO76*'CO2 Conversion Factors'!$D$20/0.8/1000) -> 0 | AM76: =IF(O76="130",2014.4*AO76*'CO2 Conversion Factors'!$G$20/0.8/1000,2096.16*AO76*'CO2 Conversion Factors'!$G$20/0.8/1000) -> 0 | AN76: =IF(O76="130",2014.4*AO76*'CO2 Conversion Factors'!$J$20/0.8/1000,2096.16*AO76*'CO2 Conversion Factors'!$J$20/0.8/1000) -> 0 | AO76: 0 | AP76: 0 | AT76: ARM | AU76: ARM | AV76: FT | AW76: FT | AX76: ARMFT | AY76: FT | AZ76: FALSE | BA76: FALSE | BB76: FALSE | BH76: =VLOOKUP(D76,#REF!,5) -> 
A77: 2015-12-16 | B77: NA | D77: ABOVE OFFICE | F77: ARM | H77: FT | I77: 5/82 | K77: UH | L77: CLD | M77: NPT | N77: 3/4 | O77: 25 | P77: 0 | W77: Y | X77: Y | Z77: Y | AE77: HEATING SEASON | AK77: 3173,3174 | AL77: =IF(O77="130",2014.4*AO77*'CO2 Conversion Factors'!$D$20/0.8/1000,2096.16*AO77*'CO2 Conversion Factors'!$D$20/0.8/1000) -> 0 | AM77: =IF(O77="130",2014.4*AO77*'CO2 Conversion Factors'!$G$20/0.8/1000,2096.16*AO77*'CO2 Conversion Factors'!$G$20/0.8/1000) -> 0 | AN77: =IF(O77="130",2014.4*AO77*'CO2 Conversion Factors'!$J$20/0.8/1000,2096.16*AO77*'CO2 Conversion Factors'!$J$20/0.8/1000) -> 0 | AO77: 0 | AP77: 0 | AT77: ARM | AU77: ARM | AV77: FT | AW77: FT | AX77: ARMFT | AY77: FT | AZ77: FALSE | BA77: FALSE | BB77: FALSE | BH77: =VLOOKUP(D77,#REF!,5) -> 
A78: 2015-12-16 | B78: NA | D78: ABOVE OFFICE | F78: ARM | H78: IB | I78: 5/83 | K78: UH | L78: PO | M78: NPT | N78: 3/4 | O78: 25 | P78: 0 | W78: Y | X78: Y | Z78: Y | AE78: HEATING SEASON | AJ78: BAD VALVE | AK78: 3175,3176 | AL78: =IF(O78="130",2014.4*AO78*'CO2 Conversion Factors'!$D$20/0.8/1000,2096.16*AO78*'CO2 Conversion Factors'!$D$20/0.8/1000) -> 0 | AM78: =IF(O78="130",2014.4*AO78*'CO2 Conversion Factors'!$G$20/0.8/1000,2096.16*AO78*'CO2 Conversion Factors'!$G$20/0.8/1000) -> 0 | AN78: =IF(O78="130",2014.4*AO78*'CO2 Conversion Factors'!$J$20/0.8/1000,2096.16*AO78*'CO2 Conversion Factors'!$J$20/0.8/1000) -> 0 | AO78: 0 | AP78: 0 | AT78: ARM | AU78: FALSE | AV78: IB | AW78: FALSE | AX78: ARMIB | AY78: FALSE | AZ78: FALSE | BA78: FALSE | BB78: FALSE | BH78: =VLOOKUP(D78,#REF!,5) -> 
A79: 2015-12-16 | B79: 2962 | D79: ABOVE OFFICE | F79: ARM | H79: FT | I79: 5/84 | K79: UH | L79: PO | M79: NPT | N79: 1 | O79: 25 | P79: 0 | W79: Y | X79: Y | Z79: Y | AE79: HEATING SEASON | AK79: 3177,3178 | AL79: =IF(O79="130",2014.4*AO79*'CO2 Conversion Factors'!$D$20/0.8/1000,2096.16*AO79*'CO2 Conversion Factors'!$D$20/0.8/1000) -> 0 | AM79: =IF(O79="130",2014.4*AO79*'CO2 Conversion Factors'!$G$20/0.8/1000,2096.16*AO79*'CO2 Conversion Factors'!$G$20/0.8/1000) -> 0 | AN79: =IF(O79="130",2014.4*AO79*'CO2 Conversion Factors'!$J$20/0.8/1000,2096.16*AO79*'CO2 Conversion Factors'!$J$20/0.8/1000) -> 0 | AO79: 0 | AP79: 0 | AT79: ARM | AU79: FALSE | AV79: FT | AW79: FALSE | AX79: ARMFT | AY79: FALSE | AZ79: FALSE | BA79: FALSE | BB79: FALSE | BH79: =VLOOKUP(D79,#REF!,5) -> 
A80: 2015-12-16 | B80: 2961 | D80: ABOVE OFFICE | F80: ARM | H80: FT | I80: 5/85 | K80: UH | L80: CLD | M80: NPT | N80: 1 | O80: 25 | P80: 0 | W80: Y | X80: Y | Z80: Y | AE80: HEATING SEASON | AK80: 3179,3180 | AL80: =IF(O80="130",2014.4*AO80*'CO2 Conversion Factors'!$D$20/0.8/1000,2096.16*AO80*'CO2 Conversion Factors'!$D$20/0.8/1000) -> 0 | AM80: =IF(O80="130",2014.4*AO80*'CO2 Conversion Factors'!$G$20/0.8/1000,2096.16*AO80*'CO2 Conversion Factors'!$G$20/0.8/1000) -> 0 | AN80: =IF(O80="130",2014.4*AO80*'CO2 Conversion Factors'!$J$20/0.8/1000,2096.16*AO80*'CO2 Conversion Factors'!$J$20/0.8/1000) -> 0 | AO80: 0 | AP80: 0 | AT80: ARM | AU80: ARM | AV80: FT | AW80: FT | AX80: ARMFT | AY80: FT | AZ80: FALSE | BA80: FALSE | BB80: FALSE | BH80: =VLOOKUP(D80,#REF!,5) -> 
A81: 2015-12-16 | B81: 2960 | D81: ABOVE OFFICE | F81: ARM | H81: FT | I81: 5/86 | K81: UH | L81: PO | M81: NPT | N81: 1 | O81: 25 | P81: 0 | W81: Y | X81: Y | Z81: Y | AE81: HEATING SEASON | AK81: 972 | AL81: =IF(O81="130",2014.4*AO81*'CO2 Conversion Factors'!$D$20/0.8/1000,2096.16*AO81*'CO2 Conversion Factors'!$D$20/0.8/1000) -> 0 | AM81: =IF(O81="130",2014.4*AO81*'CO2 Conversion Factors'!$G$20/0.8/1000,2096.16*AO81*'CO2 Conversion Factors'!$G$20/0.8/1000) -> 0 | AN81: =IF(O81="130",2014.4*AO81*'CO2 Conversion Factors'!$J$20/0.8/1000,2096.16*AO81*'CO2 Conversion Factors'!$J$20/0.8/1000) -> 0 | AO81: 0 | AP81: 0 | AT81: ARM | AU81: FALSE | AV81: FT | AW81: FALSE | AX81: ARMFT | AY81: FALSE | AZ81: FALSE | BA81: FALSE | BB81: FALSE | BH81: =VLOOKUP(D81,#REF!,5) -> 
A82: 2015-12-16 | B82: 2963 | D82: ABOVE OFFICE | F82: ARM | H82: IB | I82: 5/87 | K82: UH | L82: LNK | M82: NPT | N82: 1 | O82: 25 | P82: 0 | W82: Y | X82: Y | Z82: Y | AE82: HEATING SEASON | AK82: 972 | AL82: =IF(O82="130",2014.4*AO82*'CO2 Conversion Factors'!$D$20/0.8/1000,2096.16*AO82*'CO2 Conversion Factors'!$D$20/0.8/1000) -> 0 | AM82: =IF(O82="130",2014.4*AO82*'CO2 Conversion Factors'!$G$20/0.8/1000,2096.16*AO82*'CO2 Conversion Factors'!$G$20/0.8/1000) -> 0 | AN82: =IF(O82="130",2014.4*AO82*'CO2 Conversion Factors'!$J$20/0.8/1000,2096.16*AO82*'CO2 Conversion Factors'!$J$20/0.8/1000) -> 0 | AO82: 0 | AP82: 0 | AT82: ARM | AU82: ARM | AV82: IB | AW82: IB | AX82: ARMIB | AY82: FALSE | AZ82: FALSE | BA82: FALSE | BB82: FALSE | BH82: =VLOOKUP(D82,#REF!,5) -> 
A83: 2015-12-16 | B83: NA | D83: ABOVE OFFICE | F83: ARM | H83: FT | I83: 5/88 | K83: UH | L83: CLD | M83: NPT | N83: 1 | O83: 25 | P83: 0 | W83: Y | X83: Y | Z83: Y | AE83: HEATING SEASON | AK83: 3181,3182 | AL83: =IF(O83="130",2014.4*AO83*'CO2 Conversion Factors'!$D$20/0.8/1000,2096.16*AO83*'CO2 Conversion Factors'!$D$20/0.8/1000) -> 0 | AM83: =IF(O83="130",2014.4*AO83*'CO2 Conversion Factors'!$G$20/0.8/1000,2096.16*AO83*'CO2 Conversion Factors'!$G$20/0.8/1000) -> 0 | AN83: =IF(O83="130",2014.4*AO83*'CO2 Conversion Factors'!$J$20/0.8/1000,2096.16*AO83*'CO2 Conversion Factors'!$J$20/0.8/1000) -> 0 | AO83: 0 | AP83: 0 | AT83: ARM | AU83: ARM | AV83: FT | AW83: FT | AX83: ARMFT | AY83: FT | AZ83: FALSE | BA83: FALSE | BB83: FALSE
A84: 2015-12-16 | B84: NA | D84: ABOVE OFFICE | F84: ARM | H84: FT | I84: 5/89 | K84: UH | L84: CLD | M84: NPT | N84: 1 | O84: 25 | P84: 0 | W84: Y | X84: Y | Z84: Y | AE84: HEATING SEASON | AL84: =IF(O84="130",2014.4*AO84*'CO2 Conversion Factors'!$D$20/0.8/1000,2096.16*AO84*'CO2 Conversion Factors'!$D$20/0.8/1000) -> 0 | AM84: =IF(O84="130",2014.4*AO84*'CO2 Conversion Factors'!$G$20/0.8/1000,2096.16*AO84*'CO2 Conversion Factors'!$G$20/0.8/1000) -> 0 | AN84: =IF(O84="130",2014.4*AO84*'CO2 Conversion Factors'!$J$20/0.8/1000,2096.16*AO84*'CO2 Conversion Factors'!$J$20/0.8/1000) -> 0 | AO84: 0 | AP84: 0 | AT84: ARM | AU84: ARM | AV84: FT | AW84: FT | AX84: ARMFT | AY84: FT | AZ84: FALSE | BA84: FALSE | BB84: FALSE
A85: 2015-12-16 | B85: NA | D85: ABOVE OFFICE | F85: ARM | H85: IB | I85: 5/90 | K85: UH | L85: BLW | M85: NPT | N85: 3/4 | O85: 25 | P85: 0 | W85: Y | X85: Y | Z85: Y | AE85: HEATING SEASON | AL85: =IF(O85="130",2014.4*AO85*'CO2 Conversion Factors'!$D$20/0.8/1000,2096.16*AO85*'CO2 Conversion Factors'!$D$20/0.8/1000) -> 0 | AM85: =IF(O85="130",2014.4*AO85*'CO2 Conversion Factors'!$G$20/0.8/1000,2096.16*AO85*'CO2 Conversion Factors'!$G$20/0.8/1000) -> 0 | AN85: =IF(O85="130",2014.4*AO85*'CO2 Conversion Factors'!$J$20/0.8/1000,2096.16*AO85*'CO2 Conversion Factors'!$J$20/0.8/1000) -> 0 | AO85: 0 | AP85: 0 | AT85: ARM | AU85: ARM | AV85: IB | AW85: IB | AX85: ARMIB | AY85: FALSE | AZ85: FALSE | BA85: FALSE | BB85: IB
AL86: =IF(O86="130",2014.4*AO86*'CO2 Conversion Factors'!$D$20/0.8/1000,2096.16*AO86*'CO2 Conversion Factors'!$D$20/0.8/1000) -> 0 | AM86: =IF(O86="130",2014.4*AO86*'CO2 Conversion Factors'!$G$20/0.8/1000,2096.16*AO86*'CO2 Conversion Factors'!$G$20/0.8/1000) -> 0 | AN86: =IF(O86="130",2014.4*AO86*'CO2 Conversion Factors'!$J$20/0.8/1000,2096.16*AO86*'CO2 Conversion Factors'!$J$20/0.8/1000) -> 0 | AO86: 0 | AP86: 0 | AT86: 0 | AU86: 0 | AV86: 0 | AW86: 0 | AY86: FALSE | AZ86: FALSE | BA86: FALSE | BB86: FALSE
AL87: =IF(O87="130",2014.4*AO87*'CO2 Conversion Factors'!$D$20/0.8/1000,2096.16*AO87*'CO2 Conversion Factors'!$D$20/0.8/1000) -> 0 | AM87: =IF(O87="130",2014.4*AO87*'CO2 Conversion Factors'!$G$20/0.8/1000,2096.16*AO87*'CO2 Conversion Factors'!$G$20/0.8/1000) -> 0 | AN87: =IF(O87="130",2014.4*AO87*'CO2 Conversion Factors'!$J$20/0.8/1000,2096.16*AO87*'CO2 Conversion Factors'!$J$20/0.8/1000) -> 0 | AO87: 0 | AP87: 0 | AT87: 0 | AU87: 0 | AV87: 0 | AW87: 0 | AY87: FALSE | AZ87: FALSE | BA87: FALSE | BB87: FALSE
AL88: =IF(O88="130",2014.4*AO88*'CO2 Conversion Factors'!$D$20/0.8/1000,2096.16*AO88*'CO2 Conversion Factors'!$D$20/0.8/1000) -> 0 | AM88: =IF(O88="130",2014.4*AO88*'CO2 Conversion Factors'!$G$20/0.8/1000,2096.16*AO88*'CO2 Conversion Factors'!$G$20/0.8/1000) -> 0 | AN88: =IF(O88="130",2014.4*AO88*'CO2 Conversion Factors'!$J$20/0.8/1000,2096.16*AO88*'CO2 Conversion Factors'!$J$20/0.8/1000) -> 0 | AO88: 0 | AP88: 0 | AT88: 0 | AU88: 0 | AV88: 0 | AW88: 0 | AY88: FALSE | AZ88: FALSE | BA88: FALSE | BB88: FALSE
AL89: =IF(O89="130",2014.4*AO89*'CO2 Conversion Factors'!$D$20/0.8/1000,2096.16*AO89*'CO2 Conversion Factors'!$D$20/0.8/1000) -> 0 | AM89: =IF(O89="130",2014.4*AO89*'CO2 Conversion Factors'!$G$20/0.8/1000,2096.16*AO89*'CO2 Conversion Factors'!$G$20/0.8/1000) -> 0 | AN89: =IF(O89="130",2014.4*AO89*'CO2 Conversion Factors'!$J$20/0.8/1000,2096.16*AO89*'CO2 Conversion Factors'!$J$20/0.8/1000) -> 0 | AO89: 0 | AP89: 0 | AT89: 0 | AU89: 0 | AV89: 0 | AW89: 0 | AY89: FALSE | AZ89: FALSE | BA89: FALSE | BB89: FALSE
AL90: =IF(O90="130",2014.4*AO90*'CO2 Conversion Factors'!$D$20/0.8/1000,2096.16*AO90*'CO2 Conversion Factors'!$D$20/0.8/1000) -> 0 | AM90: =IF(O90="130",2014.4*AO90*'CO2 Conversion Factors'!$G$20/0.8/1000,2096.16*AO90*'CO2 Conversion Factors'!$G$20/0.8/1000) -> 0 | AN90: =IF(O90="130",2014.4*AO90*'CO2 Conversion Factors'!$J$20/0.8/1000,2096.16*AO90*'CO2 Conversion Factors'!$J$20/0.8/1000) -> 0 | AO90: 0 | AP90: 0 | AT90: 0 | AU90: 0 | AV90: 0 | AW90: 0 | AY90: FALSE | AZ90: FALSE | BA90: FALSE | BB90: FALSE
AL91: =IF(O91="130",2014.4*AO91*'CO2 Conversion Factors'!$D$20/0.8/1000,2096.16*AO91*'CO2 Conversion Factors'!$D$20/0.8/1000) -> 0 | AM91: =IF(O91="130",2014.4*AO91*'CO2 Conversion Factors'!$G$20/0.8/1000,2096.16*AO91*'CO2 Conversion Factors'!$G$20/0.8/1000) -> 0 | AN91: =IF(O91="130",2014.4*AO91*'CO2 Conversion Factors'!$J$20/0.8/1000,2096.16*AO91*'CO2 Conversion Factors'!$J$20/0.8/1000) -> 0 | AO91: 0 | AP91: 0 | AT91: 0 | AU91: 0 | AV91: 0 | AW91: 0 | AY91: FALSE | AZ91: FALSE | BA91: FALSE | BB91: FALSE
AL92: =IF(O92="130",2014.4*AO92*'CO2 Conversion Factors'!$D$20/0.8/1000,2096.16*AO92*'CO2 Conversion Factors'!$D$20/0.8/1000) -> 0 | AM92: =IF(O92="130",2014.4*AO92*'CO2 Conversion Factors'!$G$20/0.8/1000,2096.16*AO92*'CO2 Conversion Factors'!$G$20/0.8/1000) -> 0 | AN92: =IF(O92="130",2014.4*AO92*'CO2 Conversion Factors'!$J$20/0.8/1000,2096.16*AO92*'CO2 Conversion Factors'!$J$20/0.8/1000) -> 0 | AO92: 0 | AP92: 0 | AT92: 0 | AU92: 0 | AV92: 0 | AW92: 0 | AY92: FALSE | AZ92: FALSE | BA92: FALSE | BB92: FALSE
AL93: =IF(O93="130",2014.4*AO93*'CO2 Conversion Factors'!$D$20/0.8/1000,2096.16*AO93*'CO2 Conversion Factors'!$D$20/0.8/1000) -> 0 | AM93: =IF(O93="130",2014.4*AO93*'CO2 Conversion Factors'!$G$20/0.8/1000,2096.16*AO93*'CO2 Conversion Factors'!$G$20/0.8/1000) -> 0 | AN93: =IF(O93="130",2014.4*AO93*'CO2 Conversion Factors'!$J$20/0.8/1000,2096.16*AO93*'CO2 Conversion Factors'!$J$20/0.8/1000) -> 0 | AO93: 0 | AP93: 0 | AT93: 0 | AU93: 0 | AV93: 0 | AW93: 0 | AY93: FALSE | AZ93: FALSE | BA93: FALSE | BB93: FALSE
AL94: =IF(O94="130",2014.4*AO94*'CO2 Conversion Factors'!$D$20/0.8/1000,2096.16*AO94*'CO2 Conversion Factors'!$D$20/0.8/1000) -> 0 | AM94: =IF(O94="130",2014.4*AO94*'CO2 Conversion Factors'!$G$20/0.8/1000,2096.16*AO94*'CO2 Conversion Factors'!$G$20/0.8/1000) -> 0 | AN94: =IF(O94="130",2014.4*AO94*'CO2 Conversion Factors'!$J$20/0.8/1000,2096.16*AO94*'CO2 Conversion Factors'!$J$20/0.8/1000) -> 0 | AO94: 0 | AP94: 0 | AT94: 0 | AU94: 0 | AV94: 0 | AW94: 0 | AY94: FALSE | AZ94: FALSE | BA94: FALSE | BB94: FALSE
AL95: =IF(O95="130",2014.4*AO95*'CO2 Conversion Factors'!$D$20/0.8/1000,2096.16*AO95*'CO2 Conversion Factors'!$D$20/0.8/1000) -> 0 | AM95: =IF(O95="130",2014.4*AO95*'CO2 Conversion Factors'!$G$20/0.8/1000,2096.16*AO95*'CO2 Conversion Factors'!$G$20/0.8/1000) -> 0 | AN95: =IF(O95="130",2014.4*AO95*'CO2 Conversion Factors'!$J$20/0.8/1000,2096.16*AO95*'CO2 Conversion Factors'!$J$20/0.8/1000) -> 0 | AO95: 0 | AP95: 0 | AT95: 0 | AU95: 0 | AV95: 0 | AW95: 0 | AY95: FALSE | AZ95: FALSE | BA95: FALSE | BB95: FALSE
AL96: =IF(O96="130",2014.4*AO96*'CO2 Conversion Factors'!$D$20/0.8/1000,2096.16*AO96*'CO2 Conversion Factors'!$D$20/0.8/1000) -> 0 | AM96: =IF(O96="130",2014.4*AO96*'CO2 Conversion Factors'!$G$20/0.8/1000,2096.16*AO96*'CO2 Conversion Factors'!$G$20/0.8/1000) -> 0 | AN96: =IF(O96="130",2014.4*AO96*'CO2 Conversion Factors'!$J$20/0.8/1000,2096.16*AO96*'CO2 Conversion Factors'!$J$20/0.8/1000) -> 0 | AO96: 0 | AP96: 0 | AT96: 0 | AU96: 0 | AV96: 0 | AW96: 0 | AY96: FALSE | AZ96: FALSE | BA96: FALSE | BB96: FALSE
AL97: =IF(O97="130",2014.4*AO97*'CO2 Conversion Factors'!$D$20/0.8/1000,2096.16*AO97*'CO2 Conversion Factors'!$D$20/0.8/1000) -> 0 | AM97: =IF(O97="130",2014.4*AO97*'CO2 Conversion Factors'!$G$20/0.8/1000,2096.16*AO97*'CO2 Conversion Factors'!$G$20/0.8/1000) -> 0 | AN97: =IF(O97="130",2014.4*AO97*'CO2 Conversion Factors'!$J$20/0.8/1000,2096.16*AO97*'CO2 Conversion Factors'!$J$20/0.8/1000) -> 0 | AO97: 0 | AP97: 0 | AT97: 0 | AU97: 0 | AV97: 0 | AW97: 0 | AY97: FALSE | AZ97: FALSE | BA97: FALSE | BB97: FALSE
AL98: =IF(O98="130",2014.4*AO98*'CO2 Conversion Factors'!$D$20/0.8/1000,2096.16*AO98*'CO2 Conversion Factors'!$D$20/0.8/1000) -> 0 | AM98: =IF(O98="130",2014.4*AO98*'CO2 Conversion Factors'!$G$20/0.8/1000,2096.16*AO98*'CO2 Conversion Factors'!$G$20/0.8/1000) -> 0 | AN98: =IF(O98="130",2014.4*AO98*'CO2 Conversion Factors'!$J$20/0.8/1000,2096.16*AO98*'CO2 Conversion Factors'!$J$20/0.8/1000) -> 0 | AO98: 0 | AP98: 0 | AT98: 0 | AU98: 0 | AV98: 0 | AW98: 0 | AY98: FALSE | AZ98: FALSE | BA98: FALSE | BB98: FALSE
AL99: =IF(O99="130",2014.4*AO99*'CO2 Conversion Factors'!$D$20/0.8/1000,2096.16*AO99*'CO2 Conversion Factors'!$D$20/0.8/1000) -> 0 | AM99: =IF(O99="130",2014.4*AO99*'CO2 Conversion Factors'!$G$20/0.8/1000,2096.16*AO99*'CO2 Conversion Factors'!$G$20/0.8/1000) -> 0 | AN99: =IF(O99="130",2014.4*AO99*'CO2 Conversion Factors'!$J$20/0.8/1000,2096.16*AO99*'CO2 Conversion Factors'!$J$20/0.8/1000) -> 0 | AO99: 0 | AP99: 0 | AT99: 0 | AU99: 0 | AV99: 0 | AW99: 0 | AY99: FALSE | AZ99: FALSE | BA99: FALSE | BB99: FALSE
AL100: =IF(O100="130",2014.4*AO100*'CO2 Conversion Factors'!$D$20/0.8/1000,2096.16*AO100*'CO2 Conversion Factors'!$D$20/0.8/1000) -> 0 | AM100: =IF(O100="130",2014.4*AO100*'CO2 Conversion Factors'!$G$20/0.8/1000,2096.16*AO100*'CO2 Conversion Factors'!$G$20/0.8/1000) -> 0 | AN100: =IF(O100="130",2014.4*AO100*'CO2 Conversion Factors'!$J$20/0.8/1000,2096.16*AO100*'CO2 Conversion Factors'!$J$20/0.8/1000) -> 0 | AO100: 0 | AP100: 0 | AT100: 0 | AU100: 0 | AV100: 0 | AW100: 0 | AY100: FALSE | AZ100: FALSE | BA100: FALSE | BB100: FALSE
AL101: =IF(O101="130",2014.4*AO101*'CO2 Conversion Factors'!$D$20/0.8/1000,2096.16*AO101*'CO2 Conversion Factors'!$D$20/0.8/1000) -> 0 | AM101: =IF(O101="130",2014.4*AO101*'CO2 Conversion Factors'!$G$20/0.8/1000,2096.16*AO101*'CO2 Conversion Factors'!$G$20/0.8/1000) -> 0 | AN101: =IF(O101="130",2014.4*AO101*'CO2 Conversion Factors'!$J$20/0.8/1000,2096.16*AO101*'CO2 Conversion Factors'!$J$20/0.8/1000) -> 0 | AO101: 0 | AP101: 0 | AT101: 0 | AU101: 0 | AV101: 0 | AW101: 0 | AY101: FALSE | AZ101: FALSE | BA101: FALSE | BB101: FALSE
AL102: =IF(O102="130",2014.4*AO102*'CO2 Conversion Factors'!$D$20/0.8/1000,2096.16*AO102*'CO2 Conversion Factors'!$D$20/0.8/1000) -> 0 | AM102: =IF(O102="130",2014.4*AO102*'CO2 Conversion Factors'!$G$20/0.8/1000,2096.16*AO102*'CO2 Conversion Factors'!$G$20/0.8/1000) -> 0 | AN102: =IF(O102="130",2014.4*AO102*'CO2 Conversion Factors'!$J$20/0.8/1000,2096.16*AO102*'CO2 Conversion Factors'!$J$20/0.8/1000) -> 0 | AO102: 0 | AP102: 0 | AT102: 0 | AU102: 0 | AV102: 0 | AW102: 0 | AY102: FALSE | AZ102: FALSE | BA102: FALSE | BB102: FALSE
AL103: =IF(O103="130",2014.4*AO103*'CO2 Conversion Factors'!$D$20/0.8/1000,2096.16*AO103*'CO2 Conversion Factors'!$D$20/0.8/1000) -> 0 | AM103: =IF(O103="130",2014.4*AO103*'CO2 Conversion Factors'!$G$20/0.8/1000,2096.16*AO103*'CO2 Conversion Factors'!$G$20/0.8/1000) -> 0 | AN103: =IF(O103="130",2014.4*AO103*'CO2 Conversion Factors'!$J$20/0.8/1000,2096.16*AO103*'CO2 Conversion Factors'!$J$20/0.8/1000) -> 0 | AO103: 0 | AP103: 0 | AT103: 0 | AU103: 0 | AV103: 0 | AW103: 0 | AY103: FALSE | AZ103: FALSE | BA103: FALSE | BB103: FALSE
AL104: =IF(O104="130",2014.4*AO104*'CO2 Conversion Factors'!$D$20/0.8/1000,2096.16*AO104*'CO2 Conversion Factors'!$D$20/0.8/1000) -> 0 | AM104: =IF(O104="130",2014.4*AO104*'CO2 Conversion Factors'!$G$20/0.8/1000,2096.16*AO104*'CO2 Conversion Factors'!$G$20/0.8/1000) -> 0 | AN104: =IF(O104="130",2014.4*AO104*'CO2 Conversion Factors'!$J$20/0.8/1000,2096.16*AO104*'CO2 Conversion Factors'!$J$20/0.8/1000) -> 0 | AO104: 0 | AP104: 0 | AT104: 0 | AU104: 0 | AV104: 0 | AW104: 0 | AY104: FALSE | AZ104: FALSE | BA104: FALSE | BB104: FALSE
AL105: =IF(O105="130",2014.4*AO105*'CO2 Conversion Factors'!$D$20/0.8/1000,2096.16*AO105*'CO2 Conversion Factors'!$D$20/0.8/1000) -> 0 | AM105: =IF(O105="130",2014.4*AO105*'CO2 Conversion Factors'!$G$20/0.8/1000,2096.16*AO105*'CO2 Conversion Factors'!$G$20/0.8/1000) -> 0 | AN105: =IF(O105="130",2014.4*AO105*'CO2 Conversion Factors'!$J$20/0.8/1000,2096.16*AO105*'CO2 Conversion Factors'!$J$20/0.8/1000) -> 0 | AO105: 0 | AP105: 0 | AT105: 0 | AU105: 0 | AV105: 0 | AW105: 0 | AY105: FALSE | AZ105: FALSE | BA105: FALSE | BB105: FALSE
AL106: =IF(O106="130",2014.4*AO106*'CO2 Conversion Factors'!$D$20/0.8/1000,2096.16*AO106*'CO2 Conversion Factors'!$D$20/0.8/1000) -> 0 | AM106: =IF(O106="130",2014.4*AO106*'CO2 Conversion Factors'!$G$20/0.8/1000,2096.16*AO106*'CO2 Conversion Factors'!$G$20/0.8/1000) -> 0 | AN106: =IF(O106="130",2014.4*AO106*'CO2 Conversion Factors'!$J$20/0.8/1000,2096.16*AO106*'CO2 Conversion Factors'!$J$20/0.8/1000) -> 0 | AO106: 0 | AP106: 0 | AT106: 0 | AU106: 0 | AV106: 0 | AW106: 0 | AY106: FALSE | AZ106: FALSE | BA106: FALSE | BB106: FALSE
AL107: =IF(O107="130",2014.4*AO107*'CO2 Conversion Factors'!$D$20/0.8/1000,2096.16*AO107*'CO2 Conversion Factors'!$D$20/0.8/1000) -> 0 | AM107: =IF(O107="130",2014.4*AO107*'CO2 Conversion Factors'!$G$20/0.8/1000,2096.16*AO107*'CO2 Conversion Factors'!$G$20/0.8/1000) -> 0 | AN107: =IF(O107="130",2014.4*AO107*'CO2 Conversion Factors'!$J$20/0.8/1000,2096.16*AO107*'CO2 Conversion Factors'!$J$20/0.8/1000) -> 0 | AO107: 0 | AP107: 0 | AT107: 0 | AU107: 0 | AV107: 0 | AW107: 0 | AY107: FALSE | AZ107: FALSE | BA107: FALSE | BB107: FALSE
AL108: =IF(O108="130",2014.4*AO108*'CO2 Conversion Factors'!$D$20/0.8/1000,2096.16*AO108*'CO2 Conversion Factors'!$D$20/0.8/1000) -> 0 | AM108: =IF(O108="130",2014.4*AO108*'CO2 Conversion Factors'!$G$20/0.8/1000,2096.16*AO108*'CO2 Conversion Factors'!$G$20/0.8/1000) -> 0 | AN108: =IF(O108="130",2014.4*AO108*'CO2 Conversion Factors'!$J$20/0.8/1000,2096.16*AO108*'CO2 Conversion Factors'!$J$20/0.8/1000) -> 0 | AO108: 0 | AP108: 0 | AT108: 0 | AU108: 0 | AV108: 0 | AW108: 0 | AY108: FALSE | AZ108: FALSE | BA108: FALSE | BB108: FALSE
AL109: =IF(O109="130",2014.4*AO109*'CO2 Conversion Factors'!$D$20/0.8/1000,2096.16*AO109*'CO2 Conversion Factors'!$D$20/0.8/1000) -> 0 | AM109: =IF(O109="130",2014.4*AO109*'CO2 Conversion Factors'!$G$20/0.8/1000,2096.16*AO109*'CO2 Conversion Factors'!$G$20/0.8/1000) -> 0 | AN109: =IF(O109="130",2014.4*AO109*'CO2 Conversion Factors'!$J$20/0.8/1000,2096.16*AO109*'CO2 Conversion Factors'!$J$20/0.8/1000) -> 0 | AO109: 0 | AP109: 0 | AT109: 0 | AU109: 0 | AV109: 0 | AW109: 0 | AY109: FALSE | AZ109: FALSE | BA109: FALSE | BB109: FALSE
AL110: =IF(O110="130",2014.4*AO110*'CO2 Conversion Factors'!$D$20/0.8/1000,2096.16*AO110*'CO2 Conversion Factors'!$D$20/0.8/1000) -> 0 | AM110: =IF(O110="130",2014.4*AO110*'CO2 Conversion Factors'!$G$20/0.8/1000,2096.16*AO110*'CO2 Conversion Factors'!$G$20/0.8/1000) -> 0 | AN110: =IF(O110="130",2014.4*AO110*'CO2 Conversion Factors'!$J$20/0.8/1000,2096.16*AO110*'CO2 Conversion Factors'!$J$20/0.8/1000) -> 0 | AO110: 0 | AP110: 0 | AT110: 0 | AU110: 0 | AV110: 0 | AW110: 0 | AY110: FALSE | AZ110: FALSE | BA110: FALSE | BB110: FALSE
AL111: =IF(O111="130",2014.4*AO111*'CO2 Conversion Factors'!$D$20/0.8/1000,2096.16*AO111*'CO2 Conversion Factors'!$D$20/0.8/1000) -> 0 | AM111: =IF(O111="130",2014.4*AO111*'CO2 Conversion Factors'!$G$20/0.8/1000,2096.16*AO111*'CO2 Conversion Factors'!$G$20/0.8/1000) -> 0 | AN111: =IF(O111="130",2014.4*AO111*'CO2 Conversion Factors'!$J$20/0.8/1000,2096.16*AO111*'CO2 Conversion Factors'!$J$20/0.8/1000) -> 0 | AO111: 0 | AP111: 0 | AT111: 0 | AU111: 0 | AV111: 0 | AW111: 0 | AY111: FALSE | AZ111: FALSE | BA111: FALSE | BB111: FALSE
AL112: =IF(O112="130",2014.4*AO112*'CO2 Conversion Factors'!$D$20/0.8/1000,2096.16*AO112*'CO2 Conversion Factors'!$D$20/0.8/1000) -> 0 | AM112: =IF(O112="130",2014.4*AO112*'CO2 Conversion Factors'!$G$20/0.8/1000,2096.16*AO112*'CO2 Conversion Factors'!$G$20/0.8/1000) -> 0 | AN112: =IF(O112="130",2014.4*AO112*'CO2 Conversion Factors'!$J$20/0.8/1000,2096.16*AO112*'CO2 Conversion Factors'!$J$20/0.8/1000) -> 0 | AO112: 0 | AP112: 0 | AT112: 0 | AU112: 0 | AV112: 0 | AW112: 0 | AY112: FALSE | AZ112: FALSE | BA112: FALSE | BB112: FALSE
AL113: =IF(O113="130",2014.4*AO113*'CO2 Conversion Factors'!$D$20/0.8/1000,2096.16*AO113*'CO2 Conversion Factors'!$D$20/0.8/1000) -> 0 | AM113: =IF(O113="130",2014.4*AO113*'CO2 Conversion Factors'!$G$20/0.8/1000,2096.16*AO113*'CO2 Conversion Factors'!$G$20/0.8/1000) -> 0 | AN113: =IF(O113="130",2014.4*AO113*'CO2 Conversion Factors'!$J$20/0.8/1000,2096.16*AO113*'CO2 Conversion Factors'!$J$20/0.8/1000) -> 0 | AO113: 0 | AP113: 0 | AT113: 0 | AU113: 0 | AV113: 0 | AW113: 0 | AY113: FALSE | AZ113: FALSE | BA113: FALSE | BB113: FALSE
AL114: =IF(O114="130",2014.4*AO114*'CO2 Conversion Factors'!$D$20/0.8/1000,2096.16*AO114*'CO2 Conversion Factors'!$D$20/0.8/1000) -> 0 | AM114: =IF(O114="130",2014.4*AO114*'CO2 Conversion Factors'!$G$20/0.8/1000,2096.16*AO114*'CO2 Conversion Factors'!$G$20/0.8/1000) -> 0 | AN114: =IF(O114="130",2014.4*AO114*'CO2 Conversion Factors'!$J$20/0.8/1000,2096.16*AO114*'CO2 Conversion Factors'!$J$20/0.8/1000) -> 0 | AO114: 0 | AP114: 0 | AT114: 0 | AU114: 0 | AV114: 0 | AW114: 0 | AY114: FALSE | AZ114: FALSE | BA114: FALSE | BB114: FALSE
AL115: =IF(O115="130",2014.4*AO115*'CO2 Conversion Factors'!$D$20/0.8/1000,2096.16*AO115*'CO2 Conversion Factors'!$D$20/0.8/1000) -> 0 | AM115: =IF(O115="130",2014.4*AO115*'CO2 Conversion Factors'!$G$20/0.8/1000,2096.16*AO115*'CO2 Conversion Factors'!$G$20/0.8/1000) -> 0 | AN115: =IF(O115="130",2014.4*AO115*'CO2 Conversion Factors'!$J$20/0.8/1000,2096.16*AO115*'CO2 Conversion Factors'!$J$20/0.8/1000) -> 0 | AO115: 0 | AP115: 0 | AT115: 0 | AU115: 0 | AV115: 0 | AW115: 0 | AY115: FALSE | AZ115: FALSE | BA115: FALSE | BB115: FALSE
AL116: =IF(O116="130",2014.4*AO116*'CO2 Conversion Factors'!$D$20/0.8/1000,2096.16*AO116*'CO2 Conversion Factors'!$D$20/0.8/1000) -> 0 | AM116: =IF(O116="130",2014.4*AO116*'CO2 Conversion Factors'!$G$20/0.8/1000,2096.16*AO116*'CO2 Conversion Factors'!$G$20/0.8/1000) -> 0 | AN116: =IF(O116="130",2014.4*AO116*'CO2 Conversion Factors'!$J$20/0.8/1000,2096.16*AO116*'CO2 Conversion Factors'!$J$20/0.8/1000) -> 0 | AO116: 0 | AP116: 0 | AT116: 0 | AU116: 0 | AV116: 0 | AW116: 0 | AY116: FALSE | AZ116: FALSE | BA116: FALSE | BB116: FALSE
AL117: =IF(O117="130",2014.4*AO117*'CO2 Conversion Factors'!$D$20/0.8/1000,2096.16*AO117*'CO2 Conversion Factors'!$D$20/0.8/1000) -> 0 | AM117: =IF(O117="130",2014.4*AO117*'CO2 Conversion Factors'!$G$20/0.8/1000,2096.16*AO117*'CO2 Conversion Factors'!$G$20/0.8/1000) -> 0 | AN117: =IF(O117="130",2014.4*AO117*'CO2 Conversion Factors'!$J$20/0.8/1000,2096.16*AO117*'CO2 Conversion Factors'!$J$20/0.8/1000) -> 0 | AO117: 0 | AP117: 0 | AT117: 0 | AU117: 0 | AV117: 0 | AW117: 0 | AY117: FALSE | AZ117: FALSE | BA117: FALSE | BB117: FALSE
AL118: =IF(O118="130",2014.4*AO118*'CO2 Conversion Factors'!$D$20/0.8/1000,2096.16*AO118*'CO2 Conversion Factors'!$D$20/0.8/1000) -> 0 | AM118: =IF(O118="130",2014.4*AO118*'CO2 Conversion Factors'!$G$20/0.8/1000,2096.16*AO118*'CO2 Conversion Factors'!$G$20/0.8/1000) -> 0 | AN118: =IF(O118="130",2014.4*AO118*'CO2 Conversion Factors'!$J$20/0.8/1000,2096.16*AO118*'CO2 Conversion Factors'!$J$20/0.8/1000) -> 0 | AO118: 0 | AP118: 0 | AT118: 0 | AU118: 0 | AV118: 0 | AW118: 0 | AY118: FALSE | AZ118: FALSE | BA118: FALSE | BB118: FALSE
AL119: =IF(O119="130",2014.4*AO119*'CO2 Conversion Factors'!$D$20/0.8/1000,2096.16*AO119*'CO2 Conversion Factors'!$D$20/0.8/1000) -> 0 | AM119: =IF(O119="130",2014.4*AO119*'CO2 Conversion Factors'!$G$20/0.8/1000,2096.16*AO119*'CO2 Conversion Factors'!$G$20/0.8/1000) -> 0 | AN119: =IF(O119="130",2014.4*AO119*'CO2 Conversion Factors'!$J$20/0.8/1000,2096.16*AO119*'CO2 Conversion Factors'!$J$20/0.8/1000) -> 0 | AO119: 0 | AP119: 0 | AT119: 0 | AU119: 0 | AV119: 0 | AW119: 0 | AY119: FALSE | AZ119: FALSE | BA119: FALSE | BB119: FALSE
AL120: =IF(O120="130",2014.4*AO120*'CO2 Conversion Factors'!$D$20/0.8/1000,2096.16*AO120*'CO2 Conversion Factors'!$D$20/0.8/1000) -> 0 | AM120: =IF(O120="130",2014.4*AO120*'CO2 Conversion Factors'!$G$20/0.8/1000,2096.16*AO120*'CO2 Conversion Factors'!$G$20/0.8/1000) -> 0 | AN120: =IF(O120="130",2014.4*AO120*'CO2 Conversion Factors'!$J$20/0.8/1000,2096.16*AO120*'CO2 Conversion Factors'!$J$20/0.8/1000) -> 0 | AO120: 0 | AP120: 0 | AT120: 0 | AU120: 0 | AV120: 0 | AW120: 0 | AY120: FALSE | AZ120: FALSE | BA120: FALSE | BB120: FALSE
AL121: =IF(O121="130",2014.4*AO121*'CO2 Conversion Factors'!$D$20/0.8/1000,2096.16*AO121*'CO2 Conversion Factors'!$D$20/0.8/1000) -> 0 | AM121: =IF(O121="130",2014.4*AO121*'CO2 Conversion Factors'!$G$20/0.8/1000,2096.16*AO121*'CO2 Conversion Factors'!$G$20/0.8/1000) -> 0 | AN121: =IF(O121="130",2014.4*AO121*'CO2 Conversion Factors'!$J$20/0.8/1000,2096.16*AO121*'CO2 Conversion Factors'!$J$20/0.8/1000) -> 0 | AO121: 0 | AP121: 0 | AT121: 0 | AU121: 0 | AV121: 0 | AW121: 0 | AY121: FALSE | AZ121: FALSE | BA121: FALSE | BB121: FALSE
AL122: =IF(O122="130",2014.4*AO122*'CO2 Conversion Factors'!$D$20/0.8/1000,2096.16*AO122*'CO2 Conversion Factors'!$D$20/0.8/1000) -> 0 | AM122: =IF(O122="130",2014.4*AO122*'CO2 Conversion Factors'!$G$20/0.8/1000,2096.16*AO122*'CO2 Conversion Factors'!$G$20/0.8/1000) -> 0 | AN122: =IF(O122="130",2014.4*AO122*'CO2 Conversion Factors'!$J$20/0.8/1000,2096.16*AO122*'CO2 Conversion Factors'!$J$20/0.8/1000) -> 0 | AO122: 0 | AP122: 0 | AT122: 0 | AU122: 0 | AV122: 0 | AW122: 0 | AY122: FALSE | AZ122: FALSE | BA122: FALSE | BB122: FALSE
AL123: =IF(O123="130",2014.4*AO123*'CO2 Conversion Factors'!$D$20/0.8/1000,2096.16*AO123*'CO2 Conversion Factors'!$D$20/0.8/1000) -> 0 | AM123: =IF(O123="130",2014.4*AO123*'CO2 Conversion Factors'!$G$20/0.8/1000,2096.16*AO123*'CO2 Conversion Factors'!$G$20/0.8/1000) -> 0 | AN123: =IF(O123="130",2014.4*AO123*'CO2 Conversion Factors'!$J$20/0.8/1000,2096.16*AO123*'CO2 Conversion Factors'!$J$20/0.8/1000) -> 0 | AO123: 0 | AP123: 0 | AT123: 0 | AU123: 0 | AV123: 0 | AW123: 0 | AY123: FALSE | AZ123: FALSE | BA123: FALSE | BB123: FALSE
AL124: =IF(O124="130",2014.4*AO124*'CO2 Conversion Factors'!$D$20/0.8/1000,2096.16*AO124*'CO2 Conversion Factors'!$D$20/0.8/1000) -> 0 | AM124: =IF(O124="130",2014.4*AO124*'CO2 Conversion Factors'!$G$20/0.8/1000,2096.16*AO124*'CO2 Conversion Factors'!$G$20/0.8/1000) -> 0 | AN124: =IF(O124="130",2014.4*AO124*'CO2 Conversion Factors'!$J$20/0.8/1000,2096.16*AO124*'CO2 Conversion Factors'!$J$20/0.8/1000) -> 0 | AO124: 0 | AP124: 0 | AT124: 0 | AU124: 0 | AV124: 0 | AW124: 0 | AY124: FALSE | AZ124: FALSE | BA124: FALSE | BB124: FALSE
AL125: =IF(O125="130",2014.4*AO125*'CO2 Conversion Factors'!$D$20/0.8/1000,2096.16*AO125*'CO2 Conversion Factors'!$D$20/0.8/1000) -> 0 | AM125: =IF(O125="130",2014.4*AO125*'CO2 Conversion Factors'!$G$20/0.8/1000,2096.16*AO125*'CO2 Conversion Factors'!$G$20/0.8/1000) -> 0 | AN125: =IF(O125="130",2014.4*AO125*'CO2 Conversion Factors'!$J$20/0.8/1000,2096.16*AO125*'CO2 Conversion Factors'!$J$20/0.8/1000) -> 0 | AO125: 0 | AP125: 0 | AT125: 0 | AU125: 0 | AV125: 0 | AW125: 0 | AY125: FALSE | AZ125: FALSE | BA125: FALSE | BB125: FALSE
AL126: =IF(O126="130",2014.4*AO126*'CO2 Conversion Factors'!$D$20/0.8/1000,2096.16*AO126*'CO2 Conversion Factors'!$D$20/0.8/1000) -> 0 | AM126: =IF(O126="130",2014.4*AO126*'CO2 Conversion Factors'!$G$20/0.8/1000,2096.16*AO126*'CO2 Conversion Factors'!$G$20/0.8/1000) -> 0 | AN126: =IF(O126="130",2014.4*AO126*'CO2 Conversion Factors'!$J$20/0.8/1000,2096.16*AO126*'CO2 Conversion Factors'!$J$20/0.8/1000) -> 0 | AO126: 0 | AP126: 0 | AT126: 0 | AU126: 0 | AV126: 0 | AW126: 0 | AY126: FALSE | AZ126: FALSE | BA126: FALSE | BB126: FALSE
AL127: =IF(O127="130",2014.4*AO127*'CO2 Conversion Factors'!$D$20/0.8/1000,2096.16*AO127*'CO2 Conversion Factors'!$D$20/0.8/1000) -> 0 | AM127: =IF(O127="130",2014.4*AO127*'CO2 Conversion Factors'!$G$20/0.8/1000,2096.16*AO127*'CO2 Conversion Factors'!$G$20/0.8/1000) -> 0 | AN127: =IF(O127="130",2014.4*AO127*'CO2 Conversion Factors'!$J$20/0.8/1000,2096.16*AO127*'CO2 Conversion Factors'!$J$20/0.8/1000) -> 0 | AO127: 0 | AP127: 0 | AT127: 0 | AU127: 0 | AV127: 0 | AW127: 0 | AY127: FALSE | AZ127: FALSE | BA127: FALSE | BB127: FALSE
AL128: =IF(O128="130",2014.4*AO128*'CO2 Conversion Factors'!$D$20/0.8/1000,2096.16*AO128*'CO2 Conversion Factors'!$D$20/0.8/1000) -> 0 | AM128: =IF(O128="130",2014.4*AO128*'CO2 Conversion Factors'!$G$20/0.8/1000,2096.16*AO128*'CO2 Conversion Factors'!$G$20/0.8/1000) -> 0 | AN128: =IF(O128="130",2014.4*AO128*'CO2 Conversion Factors'!$J$20/0.8/1000,2096.16*AO128*'CO2 Conversion Factors'!$J$20/0.8/1000) -> 0 | AO128: 0 | AP128: 0 | AT128: 0 | AU128: 0 | AV128: 0 | AW128: 0 | AY128: FALSE | AZ128: FALSE | BA128: FALSE | BB128: FALSE
AL129: =IF(O129="130",2014.4*AO129*'CO2 Conversion Factors'!$D$20/0.8/1000,2096.16*AO129*'CO2 Conversion Factors'!$D$20/0.8/1000) -> 0 | AM129: =IF(O129="130",2014.4*AO129*'CO2 Conversion Factors'!$G$20/0.8/1000,2096.16*AO129*'CO2 Conversion Factors'!$G$20/0.8/1000) -> 0 | AN129: =IF(O129="130",2014.4*AO129*'CO2 Conversion Factors'!$J$20/0.8/1000,2096.16*AO129*'CO2 Conversion Factors'!$J$20/0.8/1000) -> 0 | AO129: 0 | AP129: 0 | AT129: 0 | AU129: 0 | AV129: 0 | AW129: 0 | AY129: FALSE | AZ129: FALSE | BA129: FALSE | BB129: FALSE
AL130: =IF(O130="130",2014.4*AO130*'CO2 Conversion Factors'!$D$20/0.8/1000,2096.16*AO130*'CO2 Conversion Factors'!$D$20/0.8/1000) -> 0 | AM130: =IF(O130="130",2014.4*AO130*'CO2 Conversion Factors'!$G$20/0.8/1000,2096.16*AO130*'CO2 Conversion Factors'!$G$20/0.8/1000) -> 0 | AN130: =IF(O130="130",2014.4*AO130*'CO2 Conversion Factors'!$J$20/0.8/1000,2096.16*AO130*'CO2 Conversion Factors'!$J$20/0.8/1000) -> 0 | AO130: 0 | AP130: 0 | AT130: 0 | AU130: 0 | AV130: 0 | AW130: 0 | AY130: FALSE | AZ130: FALSE | BA130: FALSE | BB130: FALSE
AL131: =IF(O131="130",2014.4*AO131*'CO2 Conversion Factors'!$D$20/0.8/1000,2096.16*AO131*'CO2 Conversion Factors'!$D$20/0.8/1000) -> 0 | AM131: =IF(O131="130",2014.4*AO131*'CO2 Conversion Factors'!$G$20/0.8/1000,2096.16*AO131*'CO2 Conversion Factors'!$G$20/0.8/1000) -> 0 | AN131: =IF(O131="130",2014.4*AO131*'CO2 Conversion Factors'!$J$20/0.8/1000,2096.16*AO131*'CO2 Conversion Factors'!$J$20/0.8/1000) -> 0 | AO131: =IFERROR(IF(OR(L131="BLW",L131="PRI",L131="LNK"),IF(Cover_Select_SteamCostUnits="£/1000kg",11.6*(VLOOKUP($I131,Abb_Lookup_OrifaceDia,2,FALSE)^2)*SQRT(($O131-$P131)*($O131+$P131)),25.57363*(VLOOKUP($I131,Abb_Lookup_OrifaceDia,2,FALSE)^2)*SQRT(($O131-$P131)*($O131+$P131)))*(VLOOKUP(AE131,Cover_Lookup_OpTime,4,FALSE)/1000),IF(L131="LL",IF(Cover_Select_SteamCostUnits="£/1000kg",11.6*(VLOOKUP($I131,Abb_Lookup_OrifaceDia,2,FALSE)^2)*SQRT(($O131-$P131)*($O131+$P131)),25.57363*(VLOOKUP($I131,Abb_Lookup_OrifaceDia,2,FALSE)^2)*SQRT(($O131-$P131)*($O131+$P131)))*(VLOOKUP(AE131,Cover_Lookup_OpTime,4,FALSE)/2000),IF(L131="SL",IF(Cover_Select_SteamCostUnits="£/1000kg",11.6*(VLOOKUP($I131,Abb_Lookup_OrifaceDia,2,FALSE)^2)*SQRT(($O131-$P131)*($O131+$P131)),25.57363*(VLOOKUP($I131,Abb_Lookup_OrifaceDia,2,FALSE)^2)*SQRT(($O131-$P131)*($O131+$P131)))*(VLOOKUP(AE131,Cover_Lookup_OpTime,4,FALSE)/4000),0))),0) -> 0 | AP131: 0 | AT131: 0 | AU131: 0 | AV131: 0 | AW131: 0 | AY131: FALSE | AZ131: FALSE | BA131: FALSE | BB131: FALSE
AL132: =IF(O132="130",2014.4*AO132*'CO2 Conversion Factors'!$D$20/0.8/1000,2096.16*AO132*'CO2 Conversion Factors'!$D$20/0.8/1000) -> 0 | AM132: =IF(O132="130",2014.4*AO132*'CO2 Conversion Factors'!$G$20/0.8/1000,2096.16*AO132*'CO2 Conversion Factors'!$G$20/0.8/1000) -> 0 | AN132: =IF(O132="130",2014.4*AO132*'CO2 Conversion Factors'!$J$20/0.8/1000,2096.16*AO132*'CO2 Conversion Factors'!$J$20/0.8/1000) -> 0 | AO132: 0 | AP132: =IFERROR(AO132*Cover_Select_SteamCost,0) -> 0 | AT132: =IF(NOT(OR(L132="NIS",L132="OFF")),F132) -> 0 | AU132: =IF(NOT(OR(L132="NIS",L132="OFF",L132="PO")),F132) -> 0 | AV132: =IF(NOT(OR(L132="NIS",L132="OFF")),H132) -> 0 | AW132: =IF(NOT(OR(L132="NIS",L132="OFF",L132="PO")),H132) -> 0 | AY132: FALSE | AZ132: FALSE | BA132: FALSE | BB132: FALSE
AL133: =IF(O133="130",2014.4*AO133*'CO2 Conversion Factors'!$D$20/0.8/1000,2096.16*AO133*'CO2 Conversion Factors'!$D$20/0.8/1000) -> 0 | AM133: =IF(O133="130",2014.4*AO133*'CO2 Conversion Factors'!$G$20/0.8/1000,2096.16*AO133*'CO2 Conversion Factors'!$G$20/0.8/1000) -> 0 | AN133: =IF(O133="130",2014.4*AO133*'CO2 Conversion Factors'!$J$20/0.8/1000,2096.16*AO133*'CO2 Conversion Factors'!$J$20/0.8/1000) -> 0 | AO133: 0 | AP133: 0 | AT133: 0 | AU133: 0 | AV133: 0 | AW133: 0 | AX133: =F133&H133 ->  | AY133: =IF(L133="CLD", H133) -> FALSE | AZ133: =IF(L133="SL", H133) -> FALSE | BA133: =IF(L133="LL", H133) -> FALSE | BB133: =IF(L133="BLW", H133) -> FALSE
AL134: =IF(O134="130",2014.4*AO134*'CO2 Conversion Factors'!$D$20/0.8/1000,2096.16*AO134*'CO2 Conversion Factors'!$D$20/0.8/1000) -> 0 | AM134: =IF(O134="130",2014.4*AO134*'CO2 Conversion Factors'!$G$20/0.8/1000,2096.16*AO134*'CO2 Conversion Factors'!$G$20/0.8/1000) -> 0 | AN134: =IF(O134="130",2014.4*AO134*'CO2 Conversion Factors'!$J$20/0.8/1000,2096.16*AO134*'CO2 Conversion Factors'!$J$20/0.8/1000) -> 0 | AO134: 0 | AP134: 0 | AT134: 0 | AU134: 0 | AV134: 0 | AW134: 0 | AY134: FALSE | AZ134: FALSE | BA134: FALSE | BB134: FALSE
AL135: =IF(O135="130",2014.4*AO135*'CO2 Conversion Factors'!$D$20/0.8/1000,2096.16*AO135*'CO2 Conversion Factors'!$D$20/0.8/1000) -> 0 | AM135: =IF(O135="130",2014.4*AO135*'CO2 Conversion Factors'!$G$20/0.8/1000,2096.16*AO135*'CO2 Conversion Factors'!$G$20/0.8/1000) -> 0 | AN135: =IF(O135="130",2014.4*AO135*'CO2 Conversion Factors'!$J$20/0.8/1000,2096.16*AO135*'CO2 Conversion Factors'!$J$20/0.8/1000) -> 0 | AO135: 0 | AP135: 0 | AT135: 0 | AU135: 0 | AV135: 0 | AW135: 0 | AY135: FALSE | AZ135: FALSE | BA135: FALSE | BB135: FALSE
AL136: =IF(O136="130",2014.4*AO136*'CO2 Conversion Factors'!$D$20/0.8/1000,2096.16*AO136*'CO2 Conversion Factors'!$D$20/0.8/1000) -> 0 | AM136: =IF(O136="130",2014.4*AO136*'CO2 Conversion Factors'!$G$20/0.8/1000,2096.16*AO136*'CO2 Conversion Factors'!$G$20/0.8/1000) -> 0 | AN136: =IF(O136="130",2014.4*AO136*'CO2 Conversion Factors'!$J$20/0.8/1000,2096.16*AO136*'CO2 Conversion Factors'!$J$20/0.8/1000) -> 0 | AO136: 0 | AP136: 0 | AT136: 0 | AU136: 0 | AV136: 0 | AW136: 0 | AY136: FALSE | AZ136: FALSE | BA136: FALSE | BB136: FALSE
AL137: =IF(O137="130",2014.4*AO137*'CO2 Conversion Factors'!$D$20/0.8/1000,2096.16*AO137*'CO2 Conversion Factors'!$D$20/0.8/1000) -> 0 | AM137: =IF(O137="130",2014.4*AO137*'CO2 Conversion Factors'!$G$20/0.8/1000,2096.16*AO137*'CO2 Conversion Factors'!$G$20/0.8/1000) -> 0 | AN137: =IF(O137="130",2014.4*AO137*'CO2 Conversion Factors'!$J$20/0.8/1000,2096.16*AO137*'CO2 Conversion Factors'!$J$20/0.8/1000) -> 0 | AO137: 0 | AP137: 0 | AT137: 0 | AU137: 0 | AV137: 0 | AW137: 0 | AY137: FALSE | AZ137: FALSE | BA137: FALSE | BB137: FALSE
AL138: =IF(O138="130",2014.4*AO138*'CO2 Conversion Factors'!$D$20/0.8/1000,2096.16*AO138*'CO2 Conversion Factors'!$D$20/0.8/1000) -> 0 | AM138: =IF(O138="130",2014.4*AO138*'CO2 Conversion Factors'!$G$20/0.8/1000,2096.16*AO138*'CO2 Conversion Factors'!$G$20/0.8/1000) -> 0 | AN138: =IF(O138="130",2014.4*AO138*'CO2 Conversion Factors'!$J$20/0.8/1000,2096.16*AO138*'CO2 Conversion Factors'!$J$20/0.8/1000) -> 0 | AO138: 0 | AP138: 0 | AT138: 0 | AU138: 0 | AV138: 0 | AW138: 0 | AY138: FALSE | AZ138: FALSE | BA138: FALSE | BB138: FALSE
AL139: =IF(O139="130",2014.4*AO139*'CO2 Conversion Factors'!$D$20/0.8/1000,2096.16*AO139*'CO2 Conversion Factors'!$D$20/0.8/1000) -> 0 | AM139: =IF(O139="130",2014.4*AO139*'CO2 Conversion Factors'!$G$20/0.8/1000,2096.16*AO139*'CO2 Conversion Factors'!$G$20/0.8/1000) -> 0 | AN139: =IF(O139="130",2014.4*AO139*'CO2 Conversion Factors'!$J$20/0.8/1000,2096.16*AO139*'CO2 Conversion Factors'!$J$20/0.8/1000) -> 0 | AO139: 0 | AP139: 0 | AT139: 0 | AU139: 0 | AV139: 0 | AW139: 0 | AY139: FALSE | AZ139: FALSE | BA139: FALSE | BB139: FALSE
AL140: =IF(O140="130",2014.4*AO140*'CO2 Conversion Factors'!$D$20/0.8/1000,2096.16*AO140*'CO2 Conversion Factors'!$D$20/0.8/1000) -> 0 | AM140: =IF(O140="130",2014.4*AO140*'CO2 Conversion Factors'!$G$20/0.8/1000,2096.16*AO140*'CO2 Conversion Factors'!$G$20/0.8/1000) -> 0 | AN140: =IF(O140="130",2014.4*AO140*'CO2 Conversion Factors'!$J$20/0.8/1000,2096.16*AO140*'CO2 Conversion Factors'!$J$20/0.8/1000) -> 0 | AO140: 0 | AP140: 0 | AT140: 0 | AU140: 0 | AV140: 0 | AW140: 0 | AY140: FALSE | AZ140: FALSE | BA140: FALSE | BB140: FALSE
AL141: =IF(O141="130",2014.4*AO141*'CO2 Conversion Factors'!$D$20/0.8/1000,2096.16*AO141*'CO2 Conversion Factors'!$D$20/0.8/1000) -> 0 | AM141: =IF(O141="130",2014.4*AO141*'CO2 Conversion Factors'!$G$20/0.8/1000,2096.16*AO141*'CO2 Conversion Factors'!$G$20/0.8/1000) -> 0 | AN141: =IF(O141="130",2014.4*AO141*'CO2 Conversion Factors'!$J$20/0.8/1000,2096.16*AO141*'CO2 Conversion Factors'!$J$20/0.8/1000) -> 0 | AO141: 0 | AP141: 0 | AT141: 0 | AU141: 0 | AV141: 0 | AW141: 0 | AY141: FALSE | AZ141: FALSE | BA141: FALSE | BB141: FALSE
AL142: =IF(O142="130",2014.4*AO142*'CO2 Conversion Factors'!$D$20/0.8/1000,2096.16*AO142*'CO2 Conversion Factors'!$D$20/0.8/1000) -> 0 | AM142: =IF(O142="130",2014.4*AO142*'CO2 Conversion Factors'!$G$20/0.8/1000,2096.16*AO142*'CO2 Conversion Factors'!$G$20/0.8/1000) -> 0 | AN142: =IF(O142="130",2014.4*AO142*'CO2 Conversion Factors'!$J$20/0.8/1000,2096.16*AO142*'CO2 Conversion Factors'!$J$20/0.8/1000) -> 0 | AO142: 0 | AP142: 0 | AT142: 0 | AU142: 0 | AV142: 0 | AW142: 0 | AY142: FALSE | AZ142: FALSE | BA142: FALSE | BB142: FALSE
AL143: =IF(O143="130",2014.4*AO143*'CO2 Conversion Factors'!$D$20/0.8/1000,2096.16*AO143*'CO2 Conversion Factors'!$D$20/0.8/1000) -> 0 | AM143: =IF(O143="130",2014.4*AO143*'CO2 Conversion Factors'!$G$20/0.8/1000,2096.16*AO143*'CO2 Conversion Factors'!$G$20/0.8/1000) -> 0 | AN143: =IF(O143="130",2014.4*AO143*'CO2 Conversion Factors'!$J$20/0.8/1000,2096.16*AO143*'CO2 Conversion Factors'!$J$20/0.8/1000) -> 0 | AO143: 0 | AP143: 0 | AT143: 0 | AU143: 0 | AV143: 0 | AW143: 0 | AY143: FALSE | AZ143: FALSE | BA143: FALSE | BB143: FALSE
AL144: =IF(O144="130",2014.4*AO144*'CO2 Conversion Factors'!$D$20/0.8/1000,2096.16*AO144*'CO2 Conversion Factors'!$D$20/0.8/1000) -> 0 | AM144: =IF(O144="130",2014.4*AO144*'CO2 Conversion Factors'!$G$20/0.8/1000,2096.16*AO144*'CO2 Conversion Factors'!$G$20/0.8/1000) -> 0 | AN144: =IF(O144="130",2014.4*AO144*'CO2 Conversion Factors'!$J$20/0.8/1000,2096.16*AO144*'CO2 Conversion Factors'!$J$20/0.8/1000) -> 0 | AO144: 0 | AP144: 0 | AT144: 0 | AU144: 0 | AV144: 0 | AW144: 0 | AY144: FALSE | AZ144: FALSE | BA144: FALSE | BB144: FALSE
AL145: =IF(O145="130",2014.4*AO145*'CO2 Conversion Factors'!$D$20/0.8/1000,2096.16*AO145*'CO2 Conversion Factors'!$D$20/0.8/1000) -> 0 | AM145: =IF(O145="130",2014.4*AO145*'CO2 Conversion Factors'!$G$20/0.8/1000,2096.16*AO145*'CO2 Conversion Factors'!$G$20/0.8/1000) -> 0 | AN145: =IF(O145="130",2014.4*AO145*'CO2 Conversion Factors'!$J$20/0.8/1000,2096.16*AO145*'CO2 Conversion Factors'!$J$20/0.8/1000) -> 0 | AO145: 0 | AP145: 0 | AT145: 0 | AU145: 0 | AV145: 0 | AW145: 0 | AY145: FALSE | AZ145: FALSE | BA145: FALSE | BB145: FALSE
AL146: =IF(O146="130",2014.4*AO146*'CO2 Conversion Factors'!$D$20/0.8/1000,2096.16*AO146*'CO2 Conversion Factors'!$D$20/0.8/1000) -> 0 | AM146: =IF(O146="130",2014.4*AO146*'CO2 Conversion Factors'!$G$20/0.8/1000,2096.16*AO146*'CO2 Conversion Factors'!$G$20/0.8/1000) -> 0 | AN146: =IF(O146="130",2014.4*AO146*'CO2 Conversion Factors'!$J$20/0.8/1000,2096.16*AO146*'CO2 Conversion Factors'!$J$20/0.8/1000) -> 0 | AO146: 0 | AP146: 0 | AT146: 0 | AU146: 0 | AV146: 0 | AW146: 0 | AY146: FALSE | AZ146: FALSE | BA146: FALSE | BB146: FALSE
AL147: =IF(O147="130",2014.4*AO147*'CO2 Conversion Factors'!$D$20/0.8/1000,2096.16*AO147*'CO2 Conversion Factors'!$D$20/0.8/1000) -> 0 | AM147: =IF(O147="130",2014.4*AO147*'CO2 Conversion Factors'!$G$20/0.8/1000,2096.16*AO147*'CO2 Conversion Factors'!$G$20/0.8/1000) -> 0 | AN147: =IF(O147="130",2014.4*AO147*'CO2 Conversion Factors'!$J$20/0.8/1000,2096.16*AO147*'CO2 Conversion Factors'!$J$20/0.8/1000) -> 0 | AO147: 0 | AP147: 0 | AT147: 0 | AU147: 0 | AV147: 0 | AW147: 0 | AY147: FALSE | AZ147: FALSE | BA147: FALSE | BB147: FALSE
AL148: =IF(O148="130",2014.4*AO148*'CO2 Conversion Factors'!$D$20/0.8/1000,2096.16*AO148*'CO2 Conversion Factors'!$D$20/0.8/1000) -> 0 | AM148: =IF(O148="130",2014.4*AO148*'CO2 Conversion Factors'!$G$20/0.8/1000,2096.16*AO148*'CO2 Conversion Factors'!$G$20/0.8/1000) -> 0 | AN148: =IF(O148="130",2014.4*AO148*'CO2 Conversion Factors'!$J$20/0.8/1000,2096.16*AO148*'CO2 Conversion Factors'!$J$20/0.8/1000) -> 0 | AO148: 0 | AP148: 0 | AT148: 0 | AU148: 0 | AV148: 0 | AW148: 0 | AY148: FALSE | AZ148: FALSE | BA148: FALSE | BB148: FALSE
AL149: =IF(O149="130",2014.4*AO149*'CO2 Conversion Factors'!$D$20/0.8/1000,2096.16*AO149*'CO2 Conversion Factors'!$D$20/0.8/1000) -> 0 | AM149: =IF(O149="130",2014.4*AO149*'CO2 Conversion Factors'!$G$20/0.8/1000,2096.16*AO149*'CO2 Conversion Factors'!$G$20/0.8/1000) -> 0 | AN149: =IF(O149="130",2014.4*AO149*'CO2 Conversion Factors'!$J$20/0.8/1000,2096.16*AO149*'CO2 Conversion Factors'!$J$20/0.8/1000) -> 0 | AO149: 0 | AP149: 0 | AT149: 0 | AU149: 0 | AV149: 0 | AW149: 0 | AY149: FALSE | AZ149: FALSE | BA149: FALSE | BB149: FALSE
AL150: =IF(O150="130",2014.4*AO150*'CO2 Conversion Factors'!$D$20/0.8/1000,2096.16*AO150*'CO2 Conversion Factors'!$D$20/0.8/1000) -> 0 | AM150: =IF(O150="130",2014.4*AO150*'CO2 Conversion Factors'!$G$20/0.8/1000,2096.16*AO150*'CO2 Conversion Factors'!$G$20/0.8/1000) -> 0 | AN150: =IF(O150="130",2014.4*AO150*'CO2 Conversion Factors'!$J$20/0.8/1000,2096.16*AO150*'CO2 Conversion Factors'!$J$20/0.8/1000) -> 0 | AO150: 0 | AP150: 0 | AT150: 0 | AU150: 0 | AV150: 0 | AW150: 0 | AY150: FALSE | AZ150: FALSE | BA150: FALSE | BB150: FALSE
AL151: =IF(O151="130",2014.4*AO151*'CO2 Conversion Factors'!$D$20/0.8/1000,2096.16*AO151*'CO2 Conversion Factors'!$D$20/0.8/1000) -> 0 | AM151: =IF(O151="130",2014.4*AO151*'CO2 Conversion Factors'!$G$20/0.8/1000,2096.16*AO151*'CO2 Conversion Factors'!$G$20/0.8/1000) -> 0 | AN151: =IF(O151="130",2014.4*AO151*'CO2 Conversion Factors'!$J$20/0.8/1000,2096.16*AO151*'CO2 Conversion Factors'!$J$20/0.8/1000) -> 0 | AO151: 0 | AP151: 0 | AT151: 0 | AU151: 0 | AV151: 0 | AW151: 0 | AY151: FALSE | AZ151: FALSE | BA151: FALSE | BB151: FALSE
AL152: =IF(O152="130",2014.4*AO152*'CO2 Conversion Factors'!$D$20/0.8/1000,2096.16*AO152*'CO2 Conversion Factors'!$D$20/0.8/1000) -> 0 | AM152: =IF(O152="130",2014.4*AO152*'CO2 Conversion Factors'!$G$20/0.8/1000,2096.16*AO152*'CO2 Conversion Factors'!$G$20/0.8/1000) -> 0 | AN152: =IF(O152="130",2014.4*AO152*'CO2 Conversion Factors'!$J$20/0.8/1000,2096.16*AO152*'CO2 Conversion Factors'!$J$20/0.8/1000) -> 0 | AO152: 0 | AP152: 0 | AT152: 0 | AU152: 0 | AV152: 0 | AW152: 0 | AY152: FALSE | AZ152: FALSE | BA152: FALSE | BB152: FALSE
AL153: =IF(O153="130",2014.4*AO153*'CO2 Conversion Factors'!$D$20/0.8/1000,2096.16*AO153*'CO2 Conversion Factors'!$D$20/0.8/1000) -> 0 | AM153: =IF(O153="130",2014.4*AO153*'CO2 Conversion Factors'!$G$20/0.8/1000,2096.16*AO153*'CO2 Conversion Factors'!$G$20/0.8/1000) -> 0 | AN153: =IF(O153="130",2014.4*AO153*'CO2 Conversion Factors'!$J$20/0.8/1000,2096.16*AO153*'CO2 Conversion Factors'!$J$20/0.8/1000) -> 0 | AO153: 0 | AP153: 0 | AT153: 0 | AU153: 0 | AV153: 0 | AW153: 0 | AY153: FALSE | AZ153: FALSE | BA153: FALSE | BB153: FALSE
AL154: =IF(O154="130",2014.4*AO154*'CO2 Conversion Factors'!$D$20/0.8/1000,2096.16*AO154*'CO2 Conversion Factors'!$D$20/0.8/1000) -> 0 | AM154: =IF(O154="130",2014.4*AO154*'CO2 Conversion Factors'!$G$20/0.8/1000,2096.16*AO154*'CO2 Conversion Factors'!$G$20/0.8/1000) -> 0 | AN154: =IF(O154="130",2014.4*AO154*'CO2 Conversion Factors'!$J$20/0.8/1000,2096.16*AO154*'CO2 Conversion Factors'!$J$20/0.8/1000) -> 0 | AO154: 0 | AP154: 0 | AT154: 0 | AU154: 0 | AV154: 0 | AW154: 0 | AY154: FALSE | AZ154: FALSE | BA154: FALSE | BB154: FALSE
AL155: =IF(O155="130",2014.4*AO155*'CO2 Conversion Factors'!$D$20/0.8/1000,2096.16*AO155*'CO2 Conversion Factors'!$D$20/0.8/1000) -> 0 | AM155: =IF(O155="130",2014.4*AO155*'CO2 Conversion Factors'!$G$20/0.8/1000,2096.16*AO155*'CO2 Conversion Factors'!$G$20/0.8/1000) -> 0 | AN155: =IF(O155="130",2014.4*AO155*'CO2 Conversion Factors'!$J$20/0.8/1000,2096.16*AO155*'CO2 Conversion Factors'!$J$20/0.8/1000) -> 0 | AO155: 0 | AP155: 0 | AT155: 0 | AU155: 0 | AV155: 0 | AW155: 0 | AY155: FALSE | AZ155: FALSE | BA155: FALSE | BB155: FALSE
AL156: =IF(O156="130",2014.4*AO156*'CO2 Conversion Factors'!$D$20/0.8/1000,2096.16*AO156*'CO2 Conversion Factors'!$D$20/0.8/1000) -> 0 | AM156: =IF(O156="130",2014.4*AO156*'CO2 Conversion Factors'!$G$20/0.8/1000,2096.16*AO156*'CO2 Conversion Factors'!$G$20/0.8/1000) -> 0 | AN156: =IF(O156="130",2014.4*AO156*'CO2 Conversion Factors'!$J$20/0.8/1000,2096.16*AO156*'CO2 Conversion Factors'!$J$20/0.8/1000) -> 0 | AO156: 0 | AP156: 0 | AT156: 0 | AU156: 0 | AV156: 0 | AW156: 0 | AY156: FALSE | AZ156: FALSE | BA156: FALSE | BB156: FALSE
AL157: =IF(O157="130",2014.4*AO157*'CO2 Conversion Factors'!$D$20/0.8/1000,2096.16*AO157*'CO2 Conversion Factors'!$D$20/0.8/1000) -> 0 | AM157: =IF(O157="130",2014.4*AO157*'CO2 Conversion Factors'!$G$20/0.8/1000,2096.16*AO157*'CO2 Conversion Factors'!$G$20/0.8/1000) -> 0 | AN157: =IF(O157="130",2014.4*AO157*'CO2 Conversion Factors'!$J$20/0.8/1000,2096.16*AO157*'CO2 Conversion Factors'!$J$20/0.8/1000) -> 0 | AO157: 0 | AP157: 0 | AT157: 0 | AU157: 0 | AV157: 0 | AW157: 0 | AY157: FALSE | AZ157: FALSE | BA157: FALSE | BB157: FALSE
AL158: =IF(O158="130",2014.4*AO158*'CO2 Conversion Factors'!$D$20/0.8/1000,2096.16*AO158*'CO2 Conversion Factors'!$D$20/0.8/1000) -> 0 | AM158: =IF(O158="130",2014.4*AO158*'CO2 Conversion Factors'!$G$20/0.8/1000,2096.16*AO158*'CO2 Conversion Factors'!$G$20/0.8/1000) -> 0 | AN158: =IF(O158="130",2014.4*AO158*'CO2 Conversion Factors'!$J$20/0.8/1000,2096.16*AO158*'CO2 Conversion Factors'!$J$20/0.8/1000) -> 0 | AO158: 0 | AP158: 0 | AT158: 0 | AU158: 0 | AV158: 0 | AW158: 0 | AY158: FALSE | AZ158: FALSE | BA158: FALSE | BB158: FALSE
AL159: =IF(O159="130",2014.4*AO159*'CO2 Conversion Factors'!$D$20/0.8/1000,2096.16*AO159*'CO2 Conversion Factors'!$D$20/0.8/1000) -> 0 | AM159: =IF(O159="130",2014.4*AO159*'CO2 Conversion Factors'!$G$20/0.8/1000,2096.16*AO159*'CO2 Conversion Factors'!$G$20/0.8/1000) -> 0 | AN159: =IF(O159="130",2014.4*AO159*'CO2 Conversion Factors'!$J$20/0.8/1000,2096.16*AO159*'CO2 Conversion Factors'!$J$20/0.8/1000) -> 0 | AO159: 0 | AP159: 0 | AT159: 0 | AU159: 0 | AV159: 0 | AW159: 0 | AY159: FALSE | AZ159: FALSE | BA159: FALSE | BB159: FALSE
AL160: =IF(O160="130",2014.4*AO160*'CO2 Conversion Factors'!$D$20/0.8/1000,2096.16*AO160*'CO2 Conversion Factors'!$D$20/0.8/1000) -> 0 | AM160: =IF(O160="130",2014.4*AO160*'CO2 Conversion Factors'!$G$20/0.8/1000,2096.16*AO160*'CO2 Conversion Factors'!$G$20/0.8/1000) -> 0 | AN160: =IF(O160="130",2014.4*AO160*'CO2 Conversion Factors'!$J$20/0.8/1000,2096.16*AO160*'CO2 Conversion Factors'!$J$20/0.8/1000) -> 0 | AO160: 0 | AP160: 0 | AT160: 0 | AU160: 0 | AV160: 0 | AW160: 0 | AY160: FALSE | AZ160: FALSE | BA160: FALSE | BB160: FALSE
AL161: =IF(O161="130",2014.4*AO161*'CO2 Conversion Factors'!$D$20/0.8/1000,2096.16*AO161*'CO2 Conversion Factors'!$D$20/0.8/1000) -> 0 | AM161: =IF(O161="130",2014.4*AO161*'CO2 Conversion Factors'!$G$20/0.8/1000,2096.16*AO161*'CO2 Conversion Factors'!$G$20/0.8/1000) -> 0 | AN161: =IF(O161="130",2014.4*AO161*'CO2 Conversion Factors'!$J$20/0.8/1000,2096.16*AO161*'CO2 Conversion Factors'!$J$20/0.8/1000) -> 0 | AO161: 0 | AP161: 0 | AT161: 0 | AU161: 0 | AV161: 0 | AW161: 0 | AY161: FALSE | AZ161: FALSE | BA161: FALSE | BB161: FALSE
AL162: =IF(O162="130",2014.4*AO162*'CO2 Conversion Factors'!$D$20/0.8/1000,2096.16*AO162*'CO2 Conversion Factors'!$D$20/0.8/1000) -> 0 | AM162: =IF(O162="130",2014.4*AO162*'CO2 Conversion Factors'!$G$20/0.8/1000,2096.16*AO162*'CO2 Conversion Factors'!$G$20/0.8/1000) -> 0 | AN162: =IF(O162="130",2014.4*AO162*'CO2 Conversion Factors'!$J$20/0.8/1000,2096.16*AO162*'CO2 Conversion Factors'!$J$20/0.8/1000) -> 0 | AO162: 0 | AP162: 0 | AT162: 0 | AU162: 0 | AV162: 0 | AW162: 0 | AY162: FALSE | AZ162: FALSE | BA162: FALSE | BB162: FALSE
AL163: =IF(O163="130",2014.4*AO163*'CO2 Conversion Factors'!$D$20/0.8/1000,2096.16*AO163*'CO2 Conversion Factors'!$D$20/0.8/1000) -> 0 | AM163: =IF(O163="130",2014.4*AO163*'CO2 Conversion Factors'!$G$20/0.8/1000,2096.16*AO163*'CO2 Conversion Factors'!$G$20/0.8/1000) -> 0 | AN163: =IF(O163="130",2014.4*AO163*'CO2 Conversion Factors'!$J$20/0.8/1000,2096.16*AO163*'CO2 Conversion Factors'!$J$20/0.8/1000) -> 0 | AO163: 0 | AP163: 0 | AT163: 0 | AU163: 0 | AV163: 0 | AW163: 0 | AY163: FALSE | AZ163: FALSE | BA163: FALSE | BB163: FALSE
AL164: =IF(O164="130",2014.4*AO164*'CO2 Conversion Factors'!$D$20/0.8/1000,2096.16*AO164*'CO2 Conversion Factors'!$D$20/0.8/1000) -> 0 | AM164: =IF(O164="130",2014.4*AO164*'CO2 Conversion Factors'!$G$20/0.8/1000,2096.16*AO164*'CO2 Conversion Factors'!$G$20/0.8/1000) -> 0 | AN164: =IF(O164="130",2014.4*AO164*'CO2 Conversion Factors'!$J$20/0.8/1000,2096.16*AO164*'CO2 Conversion Factors'!$J$20/0.8/1000) -> 0 | AO164: 0 | AP164: 0 | AT164: 0 | AU164: 0 | AV164: 0 | AW164: 0 | AY164: FALSE | AZ164: FALSE | BA164: FALSE | BB164: FALSE
AL165: =IF(O165="130",2014.4*AO165*'CO2 Conversion Factors'!$D$20/0.8/1000,2096.16*AO165*'CO2 Conversion Factors'!$D$20/0.8/1000) -> 0 | AM165: =IF(O165="130",2014.4*AO165*'CO2 Conversion Factors'!$G$20/0.8/1000,2096.16*AO165*'CO2 Conversion Factors'!$G$20/0.8/1000) -> 0 | AN165: =IF(O165="130",2014.4*AO165*'CO2 Conversion Factors'!$J$20/0.8/1000,2096.16*AO165*'CO2 Conversion Factors'!$J$20/0.8/1000) -> 0 | AO165: 0 | AP165: 0 | AT165: 0 | AU165: 0 | AV165: 0 | AW165: 0 | AY165: FALSE | AZ165: FALSE | BA165: FALSE | BB165: FALSE
AL166: =IF(O166="130",2014.4*AO166*'CO2 Conversion Factors'!$D$20/0.8/1000,2096.16*AO166*'CO2 Conversion Factors'!$D$20/0.8/1000) -> 0 | AM166: =IF(O166="130",2014.4*AO166*'CO2 Conversion Factors'!$G$20/0.8/1000,2096.16*AO166*'CO2 Conversion Factors'!$G$20/0.8/1000) -> 0 | AN166: =IF(O166="130",2014.4*AO166*'CO2 Conversion Factors'!$J$20/0.8/1000,2096.16*AO166*'CO2 Conversion Factors'!$J$20/0.8/1000) -> 0 | AO166: 0 | AP166: 0 | AT166: 0 | AU166: 0 | AV166: 0 | AW166: 0 | AY166: FALSE | AZ166: FALSE | BA166: FALSE | BB166: FALSE
AL167: =IF(O167="130",2014.4*AO167*'CO2 Conversion Factors'!$D$20/0.8/1000,2096.16*AO167*'CO2 Conversion Factors'!$D$20/0.8/1000) -> 0 | AM167: =IF(O167="130",2014.4*AO167*'CO2 Conversion Factors'!$G$20/0.8/1000,2096.16*AO167*'CO2 Conversion Factors'!$G$20/0.8/1000) -> 0 | AN167: =IF(O167="130",2014.4*AO167*'CO2 Conversion Factors'!$J$20/0.8/1000,2096.16*AO167*'CO2 Conversion Factors'!$J$20/0.8/1000) -> 0 | AO167: 0 | AP167: 0 | AT167: 0 | AU167: 0 | AV167: 0 | AW167: 0 | AY167: FALSE | AZ167: FALSE | BA167: FALSE | BB167: FALSE
AL168: =IF(O168="130",2014.4*AO168*'CO2 Conversion Factors'!$D$20/0.8/1000,2096.16*AO168*'CO2 Conversion Factors'!$D$20/0.8/1000) -> 0 | AM168: =IF(O168="130",2014.4*AO168*'CO2 Conversion Factors'!$G$20/0.8/1000,2096.16*AO168*'CO2 Conversion Factors'!$G$20/0.8/1000) -> 0 | AN168: =IF(O168="130",2014.4*AO168*'CO2 Conversion Factors'!$J$20/0.8/1000,2096.16*AO168*'CO2 Conversion Factors'!$J$20/0.8/1000) -> 0 | AO168: 0 | AP168: 0 | AT168: 0 | AU168: 0 | AV168: 0 | AW168: 0 | AY168: FALSE | AZ168: FALSE | BA168: FALSE | BB168: FALSE
AL169: =IF(O169="130",2014.4*AO169*'CO2 Conversion Factors'!$D$20/0.8/1000,2096.16*AO169*'CO2 Conversion Factors'!$D$20/0.8/1000) -> 0 | AM169: =IF(O169="130",2014.4*AO169*'CO2 Conversion Factors'!$G$20/0.8/1000,2096.16*AO169*'CO2 Conversion Factors'!$G$20/0.8/1000) -> 0 | AN169: =IF(O169="130",2014.4*AO169*'CO2 Conversion Factors'!$J$20/0.8/1000,2096.16*AO169*'CO2 Conversion Factors'!$J$20/0.8/1000) -> 0 | AO169: 0 | AP169: 0 | AT169: 0 | AU169: 0 | AV169: 0 | AW169: 0 | AY169: FALSE | AZ169: FALSE | BA169: FALSE | BB169: FALSE
AL170: =IF(O170="130",2014.4*AO170*'CO2 Conversion Factors'!$D$20/0.8/1000,2096.16*AO170*'CO2 Conversion Factors'!$D$20/0.8/1000) -> 0 | AM170: =IF(O170="130",2014.4*AO170*'CO2 Conversion Factors'!$G$20/0.8/1000,2096.16*AO170*'CO2 Conversion Factors'!$G$20/0.8/1000) -> 0 | AN170: =IF(O170="130",2014.4*AO170*'CO2 Conversion Factors'!$J$20/0.8/1000,2096.16*AO170*'CO2 Conversion Factors'!$J$20/0.8/1000) -> 0 | AO170: 0 | AP170: 0 | AT170: 0 | AU170: 0 | AV170: 0 | AW170: 0 | AY170: FALSE | AZ170: FALSE | BA170: FALSE | BB170: FALSE
AL171: =IF(O171="130",2014.4*AO171*'CO2 Conversion Factors'!$D$20/0.8/1000,2096.16*AO171*'CO2 Conversion Factors'!$D$20/0.8/1000) -> 0 | AM171: =IF(O171="130",2014.4*AO171*'CO2 Conversion Factors'!$G$20/0.8/1000,2096.16*AO171*'CO2 Conversion Factors'!$G$20/0.8/1000) -> 0 | AN171: =IF(O171="130",2014.4*AO171*'CO2 Conversion Factors'!$J$20/0.8/1000,2096.16*AO171*'CO2 Conversion Factors'!$J$20/0.8/1000) -> 0 | AO171: 0 | AP171: 0 | AT171: 0 | AU171: 0 | AV171: 0 | AW171: 0 | AY171: FALSE | AZ171: FALSE | BA171: FALSE | BB171: FALSE
AL172: =IF(O172="130",2014.4*AO172*'CO2 Conversion Factors'!$D$20/0.8/1000,2096.16*AO172*'CO2 Conversion Factors'!$D$20/0.8/1000) -> 0 | AM172: =IF(O172="130",2014.4*AO172*'CO2 Conversion Factors'!$G$20/0.8/1000,2096.16*AO172*'CO2 Conversion Factors'!$G$20/0.8/1000) -> 0 | AN172: =IF(O172="130",2014.4*AO172*'CO2 Conversion Factors'!$J$20/0.8/1000,2096.16*AO172*'CO2 Conversion Factors'!$J$20/0.8/1000) -> 0 | AO172: 0 | AP172: 0 | AT172: 0 | AU172: 0 | AV172: 0 | AW172: 0 | AY172: FALSE | AZ172: FALSE | BA172: FALSE | BB172: FALSE
AL173: =IF(O173="130",2014.4*AO173*'CO2 Conversion Factors'!$D$20/0.8/1000,2096.16*AO173*'CO2 Conversion Factors'!$D$20/0.8/1000) -> 0 | AM173: =IF(O173="130",2014.4*AO173*'CO2 Conversion Factors'!$G$20/0.8/1000,2096.16*AO173*'CO2 Conversion Factors'!$G$20/0.8/1000) -> 0 | AN173: =IF(O173="130",2014.4*AO173*'CO2 Conversion Factors'!$J$20/0.8/1000,2096.16*AO173*'CO2 Conversion Factors'!$J$20/0.8/1000) -> 0 | AO173: 0 | AP173: 0 | AT173: 0 | AU173: 0 | AV173: 0 | AW173: 0 | AY173: FALSE | AZ173: FALSE | BA173: FALSE | BB173: FALSE
AL174: =IF(O174="130",2014.4*AO174*'CO2 Conversion Factors'!$D$20/0.8/1000,2096.16*AO174*'CO2 Conversion Factors'!$D$20/0.8/1000) -> 0 | AM174: =IF(O174="130",2014.4*AO174*'CO2 Conversion Factors'!$G$20/0.8/1000,2096.16*AO174*'CO2 Conversion Factors'!$G$20/0.8/1000) -> 0 | AN174: =IF(O174="130",2014.4*AO174*'CO2 Conversion Factors'!$J$20/0.8/1000,2096.16*AO174*'CO2 Conversion Factors'!$J$20/0.8/1000) -> 0 | AO174: 0 | AP174: 0 | AT174: 0 | AU174: 0 | AV174: 0 | AW174: 0 | AY174: FALSE | AZ174: FALSE | BA174: FALSE | BB174: FALSE
AL175: =IF(O175="130",2014.4*AO175*'CO2 Conversion Factors'!$D$20/0.8/1000,2096.16*AO175*'CO2 Conversion Factors'!$D$20/0.8/1000) -> 0 | AM175: =IF(O175="130",2014.4*AO175*'CO2 Conversion Factors'!$G$20/0.8/1000,2096.16*AO175*'CO2 Conversion Factors'!$G$20/0.8/1000) -> 0 | AN175: =IF(O175="130",2014.4*AO175*'CO2 Conversion Factors'!$J$20/0.8/1000,2096.16*AO175*'CO2 Conversion Factors'!$J$20/0.8/1000) -> 0 | AO175: 0 | AP175: 0 | AT175: 0 | AU175: 0 | AV175: 0 | AW175: 0 | AY175: FALSE | AZ175: FALSE | BA175: FALSE | BB175: FALSE
AL176: =IF(O176="130",2014.4*AO176*'CO2 Conversion Factors'!$D$20/0.8/1000,2096.16*AO176*'CO2 Conversion Factors'!$D$20/0.8/1000) -> 0 | AM176: =IF(O176="130",2014.4*AO176*'CO2 Conversion Factors'!$G$20/0.8/1000,2096.16*AO176*'CO2 Conversion Factors'!$G$20/0.8/1000) -> 0 | AN176: =IF(O176="130",2014.4*AO176*'CO2 Conversion Factors'!$J$20/0.8/1000,2096.16*AO176*'CO2 Conversion Factors'!$J$20/0.8/1000) -> 0 | AO176: 0 | AP176: 0 | AT176: 0 | AU176: 0 | AV176: 0 | AW176: 0 | AY176: FALSE | AZ176: FALSE | BA176: FALSE | BB176: FALSE
AL177: =IF(O177="130",2014.4*AO177*'CO2 Conversion Factors'!$D$20/0.8/1000,2096.16*AO177*'CO2 Conversion Factors'!$D$20/0.8/1000) -> 0 | AM177: =IF(O177="130",2014.4*AO177*'CO2 Conversion Factors'!$G$20/0.8/1000,2096.16*AO177*'CO2 Conversion Factors'!$G$20/0.8/1000) -> 0 | AN177: =IF(O177="130",2014.4*AO177*'CO2 Conversion Factors'!$J$20/0.8/1000,2096.16*AO177*'CO2 Conversion Factors'!$J$20/0.8/1000) -> 0 | AO177: 0 | AP177: 0 | AT177: 0 | AU177: 0 | AV177: 0 | AW177: 0 | AY177: FALSE | AZ177: FALSE | BA177: FALSE | BB177: FALSE
AL178: =IF(O178="130",2014.4*AO178*'CO2 Conversion Factors'!$D$20/0.8/1000,2096.16*AO178*'CO2 Conversion Factors'!$D$20/0.8/1000) -> 0 | AM178: =IF(O178="130",2014.4*AO178*'CO2 Conversion Factors'!$G$20/0.8/1000,2096.16*AO178*'CO2 Conversion Factors'!$G$20/0.8/1000) -> 0 | AN178: =IF(O178="130",2014.4*AO178*'CO2 Conversion Factors'!$J$20/0.8/1000,2096.16*AO178*'CO2 Conversion Factors'!$J$20/0.8/1000) -> 0 | AO178: 0 | AP178: 0 | AT178: 0 | AU178: 0 | AV178: 0 | AW178: 0 | AY178: FALSE | AZ178: FALSE | BA178: FALSE | BB178: FALSE
AL179: =IF(O179="130",2014.4*AO179*'CO2 Conversion Factors'!$D$20/0.8/1000,2096.16*AO179*'CO2 Conversion Factors'!$D$20/0.8/1000) -> 0 | AM179: =IF(O179="130",2014.4*AO179*'CO2 Conversion Factors'!$G$20/0.8/1000,2096.16*AO179*'CO2 Conversion Factors'!$G$20/0.8/1000) -> 0 | AN179: =IF(O179="130",2014.4*AO179*'CO2 Conversion Factors'!$J$20/0.8/1000,2096.16*AO179*'CO2 Conversion Factors'!$J$20/0.8/1000) -> 0 | AO179: 0 | AP179: 0 | AT179: 0 | AU179: 0 | AV179: 0 | AW179: 0 | AY179: FALSE | AZ179: FALSE | BA179: FALSE | BB179: FALSE
AL180: =IF(O180="130",2014.4*AO180*'CO2 Conversion Factors'!$D$20/0.8/1000,2096.16*AO180*'CO2 Conversion Factors'!$D$20/0.8/1000) -> 0 | AM180: =IF(O180="130",2014.4*AO180*'CO2 Conversion Factors'!$G$20/0.8/1000,2096.16*AO180*'CO2 Conversion Factors'!$G$20/0.8/1000) -> 0 | AN180: =IF(O180="130",2014.4*AO180*'CO2 Conversion Factors'!$J$20/0.8/1000,2096.16*AO180*'CO2 Conversion Factors'!$J$20/0.8/1000) -> 0 | AO180: 0 | AP180: 0 | AT180: 0 | AU180: 0 | AV180: 0 | AW180: 0 | AY180: FALSE | AZ180: FALSE | BA180: FALSE | BB180: FALSE
AL181: =IF(O181="130",2014.4*AO181*'CO2 Conversion Factors'!$D$20/0.8/1000,2096.16*AO181*'CO2 Conversion Factors'!$D$20/0.8/1000) -> 0 | AM181: =IF(O181="130",2014.4*AO181*'CO2 Conversion Factors'!$G$20/0.8/1000,2096.16*AO181*'CO2 Conversion Factors'!$G$20/0.8/1000) -> 0 | AN181: =IF(O181="130",2014.4*AO181*'CO2 Conversion Factors'!$J$20/0.8/1000,2096.16*AO181*'CO2 Conversion Factors'!$J$20/0.8/1000) -> 0 | AO181: 0 | AP181: 0 | AT181: 0 | AU181: 0 | AV181: 0 | AW181: 0 | AY181: FALSE | AZ181: FALSE | BA181: FALSE | BB181: FALSE
AL182: =IF(O182="130",2014.4*AO182*'CO2 Conversion Factors'!$D$20/0.8/1000,2096.16*AO182*'CO2 Conversion Factors'!$D$20/0.8/1000) -> 0 | AM182: =IF(O182="130",2014.4*AO182*'CO2 Conversion Factors'!$G$20/0.8/1000,2096.16*AO182*'CO2 Conversion Factors'!$G$20/0.8/1000) -> 0 | AN182: =IF(O182="130",2014.4*AO182*'CO2 Conversion Factors'!$J$20/0.8/1000,2096.16*AO182*'CO2 Conversion Factors'!$J$20/0.8/1000) -> 0 | AO182: 0 | AP182: 0 | AT182: 0 | AU182: 0 | AV182: 0 | AW182: 0 | AY182: FALSE | AZ182: FALSE | BA182: FALSE | BB182: FALSE
AL183: =IF(O183="130",2014.4*AO183*'CO2 Conversion Factors'!$D$20/0.8/1000,2096.16*AO183*'CO2 Conversion Factors'!$D$20/0.8/1000) -> 0 | AM183: =IF(O183="130",2014.4*AO183*'CO2 Conversion Factors'!$G$20/0.8/1000,2096.16*AO183*'CO2 Conversion Factors'!$G$20/0.8/1000) -> 0 | AN183: =IF(O183="130",2014.4*AO183*'CO2 Conversion Factors'!$J$20/0.8/1000,2096.16*AO183*'CO2 Conversion Factors'!$J$20/0.8/1000) -> 0 | AO183: 0 | AP183: 0 | AT183: 0 | AU183: 0 | AV183: 0 | AW183: 0 | AY183: FALSE | AZ183: FALSE | BA183: FALSE | BB183: FALSE
AL184: =IF(O184="130",2014.4*AO184*'CO2 Conversion Factors'!$D$20/0.8/1000,2096.16*AO184*'CO2 Conversion Factors'!$D$20/0.8/1000) -> 0 | AM184: =IF(O184="130",2014.4*AO184*'CO2 Conversion Factors'!$G$20/0.8/1000,2096.16*AO184*'CO2 Conversion Factors'!$G$20/0.8/1000) -> 0 | AN184: =IF(O184="130",2014.4*AO184*'CO2 Conversion Factors'!$J$20/0.8/1000,2096.16*AO184*'CO2 Conversion Factors'!$J$20/0.8/1000) -> 0 | AO184: 0 | AP184: 0 | AT184: 0 | AU184: 0 | AV184: 0 | AW184: 0 | AY184: FALSE | AZ184: FALSE | BA184: FALSE | BB184: FALSE
AL185: =IF(O185="130",2014.4*AO185*'CO2 Conversion Factors'!$D$20/0.8/1000,2096.16*AO185*'CO2 Conversion Factors'!$D$20/0.8/1000) -> 0 | AM185: =IF(O185="130",2014.4*AO185*'CO2 Conversion Factors'!$G$20/0.8/1000,2096.16*AO185*'CO2 Conversion Factors'!$G$20/0.8/1000) -> 0 | AN185: =IF(O185="130",2014.4*AO185*'CO2 Conversion Factors'!$J$20/0.8/1000,2096.16*AO185*'CO2 Conversion Factors'!$J$20/0.8/1000) -> 0 | AO185: 0 | AP185: 0 | AT185: 0 | AU185: 0 | AV185: 0 | AW185: 0 | AY185: FALSE | AZ185: FALSE | BA185: FALSE | BB185: FALSE
AL186: =IF(O186="130",2014.4*AO186*'CO2 Conversion Factors'!$D$20/0.8/1000,2096.16*AO186*'CO2 Conversion Factors'!$D$20/0.8/1000) -> 0 | AM186: =IF(O186="130",2014.4*AO186*'CO2 Conversion Factors'!$G$20/0.8/1000,2096.16*AO186*'CO2 Conversion Factors'!$G$20/0.8/1000) -> 0 | AN186: =IF(O186="130",2014.4*AO186*'CO2 Conversion Factors'!$J$20/0.8/1000,2096.16*AO186*'CO2 Conversion Factors'!$J$20/0.8/1000) -> 0 | AO186: 0 | AP186: 0 | AT186: 0 | AU186: 0 | AV186: 0 | AW186: 0 | AY186: FALSE | AZ186: FALSE | BA186: FALSE | BB186: FALSE
AL187: =IF(O187="130",2014.4*AO187*'CO2 Conversion Factors'!$D$20/0.8/1000,2096.16*AO187*'CO2 Conversion Factors'!$D$20/0.8/1000) -> 0 | AM187: =IF(O187="130",2014.4*AO187*'CO2 Conversion Factors'!$G$20/0.8/1000,2096.16*AO187*'CO2 Conversion Factors'!$G$20/0.8/1000) -> 0 | AN187: =IF(O187="130",2014.4*AO187*'CO2 Conversion Factors'!$J$20/0.8/1000,2096.16*AO187*'CO2 Conversion Factors'!$J$20/0.8/1000) -> 0 | AO187: 0 | AP187: 0 | AT187: 0 | AU187: 0 | AV187: 0 | AW187: 0 | AY187: FALSE | AZ187: FALSE | BA187: FALSE | BB187: FALSE
AL188: =IF(O188="130",2014.4*AO188*'CO2 Conversion Factors'!$D$20/0.8/1000,2096.16*AO188*'CO2 Conversion Factors'!$D$20/0.8/1000) -> 0 | AM188: =IF(O188="130",2014.4*AO188*'CO2 Conversion Factors'!$G$20/0.8/1000,2096.16*AO188*'CO2 Conversion Factors'!$G$20/0.8/1000) -> 0 | AN188: =IF(O188="130",2014.4*AO188*'CO2 Conversion Factors'!$J$20/0.8/1000,2096.16*AO188*'CO2 Conversion Factors'!$J$20/0.8/1000) -> 0 | AO188: 0 | AP188: 0 | AT188: 0 | AU188: 0 | AV188: 0 | AW188: 0 | AY188: FALSE | AZ188: FALSE | BA188: FALSE | BB188: FALSE
AL189: =IF(O189="130",2014.4*AO189*'CO2 Conversion Factors'!$D$20/0.8/1000,2096.16*AO189*'CO2 Conversion Factors'!$D$20/0.8/1000) -> 0 | AM189: =IF(O189="130",2014.4*AO189*'CO2 Conversion Factors'!$G$20/0.8/1000,2096.16*AO189*'CO2 Conversion Factors'!$G$20/0.8/1000) -> 0 | AN189: =IF(O189="130",2014.4*AO189*'CO2 Conversion Factors'!$J$20/0.8/1000,2096.16*AO189*'CO2 Conversion Factors'!$J$20/0.8/1000) -> 0 | AO189: 0 | AP189: 0 | AT189: 0 | AU189: 0 | AV189: 0 | AW189: 0 | AY189: FALSE | AZ189: FALSE | BA189: FALSE | BB189: FALSE
AL190: =IF(O190="130",2014.4*AO190*'CO2 Conversion Factors'!$D$20/0.8/1000,2096.16*AO190*'CO2 Conversion Factors'!$D$20/0.8/1000) -> 0 | AM190: =IF(O190="130",2014.4*AO190*'CO2 Conversion Factors'!$G$20/0.8/1000,2096.16*AO190*'CO2 Conversion Factors'!$G$20/0.8/1000) -> 0 | AN190: =IF(O190="130",2014.4*AO190*'CO2 Conversion Factors'!$J$20/0.8/1000,2096.16*AO190*'CO2 Conversion Factors'!$J$20/0.8/1000) -> 0 | AO190: 0 | AP190: 0 | AT190: 0 | AU190: 0 | AV190: 0 | AW190: 0 | AY190: FALSE | AZ190: FALSE | BA190: FALSE | BB190: FALSE
AL191: =IF(O191="130",2014.4*AO191*'CO2 Conversion Factors'!$D$20/0.8/1000,2096.16*AO191*'CO2 Conversion Factors'!$D$20/0.8/1000) -> 0 | AM191: =IF(O191="130",2014.4*AO191*'CO2 Conversion Factors'!$G$20/0.8/1000,2096.16*AO191*'CO2 Conversion Factors'!$G$20/0.8/1000) -> 0 | AN191: =IF(O191="130",2014.4*AO191*'CO2 Conversion Factors'!$J$20/0.8/1000,2096.16*AO191*'CO2 Conversion Factors'!$J$20/0.8/1000) -> 0 | AO191: 0 | AP191: 0 | AT191: 0 | AU191: 0 | AV191: 0 | AW191: 0 | AY191: FALSE | AZ191: FALSE | BA191: FALSE | BB191: FALSE
AL192: =IF(O192="130",2014.4*AO192*'CO2 Conversion Factors'!$D$20/0.8/1000,2096.16*AO192*'CO2 Conversion Factors'!$D$20/0.8/1000) -> 0 | AM192: =IF(O192="130",2014.4*AO192*'CO2 Conversion Factors'!$G$20/0.8/1000,2096.16*AO192*'CO2 Conversion Factors'!$G$20/0.8/1000) -> 0 | AN192: =IF(O192="130",2014.4*AO192*'CO2 Conversion Factors'!$J$20/0.8/1000,2096.16*AO192*'CO2 Conversion Factors'!$J$20/0.8/1000) -> 0 | AO192: 0 | AP192: 0 | AT192: 0 | AU192: 0 | AV192: 0 | AW192: 0 | AY192: FALSE | AZ192: FALSE | BA192: FALSE | BB192: FALSE
AL193: =IF(O193="130",2014.4*AO193*'CO2 Conversion Factors'!$D$20/0.8/1000,2096.16*AO193*'CO2 Conversion Factors'!$D$20/0.8/1000) -> 0 | AM193: =IF(O193="130",2014.4*AO193*'CO2 Conversion Factors'!$G$20/0.8/1000,2096.16*AO193*'CO2 Conversion Factors'!$G$20/0.8/1000) -> 0 | AN193: =IF(O193="130",2014.4*AO193*'CO2 Conversion Factors'!$J$20/0.8/1000,2096.16*AO193*'CO2 Conversion Factors'!$J$20/0.8/1000) -> 0 | AO193: 0 | AP193: 0 | AT193: 0 | AU193: 0 | AV193: 0 | AW193: 0 | AY193: FALSE | AZ193: FALSE | BA193: FALSE | BB193: FALSE
AL194: =IF(O194="130",2014.4*AO194*'CO2 Conversion Factors'!$D$20/0.8/1000,2096.16*AO194*'CO2 Conversion Factors'!$D$20/0.8/1000) -> 0 | AM194: =IF(O194="130",2014.4*AO194*'CO2 Conversion Factors'!$G$20/0.8/1000,2096.16*AO194*'CO2 Conversion Factors'!$G$20/0.8/1000) -> 0 | AN194: =IF(O194="130",2014.4*AO194*'CO2 Conversion Factors'!$J$20/0.8/1000,2096.16*AO194*'CO2 Conversion Factors'!$J$20/0.8/1000) -> 0 | AO194: 0 | AP194: 0 | AT194: 0 | AU194: 0 | AV194: 0 | AW194: 0 | AY194: FALSE | AZ194: FALSE | BA194: FALSE | BB194: FALSE
AL195: =IF(O195="130",2014.4*AO195*'CO2 Conversion Factors'!$D$20/0.8/1000,2096.16*AO195*'CO2 Conversion Factors'!$D$20/0.8/1000) -> 0 | AM195: =IF(O195="130",2014.4*AO195*'CO2 Conversion Factors'!$G$20/0.8/1000,2096.16*AO195*'CO2 Conversion Factors'!$G$20/0.8/1000) -> 0 | AN195: =IF(O195="130",2014.4*AO195*'CO2 Conversion Factors'!$J$20/0.8/1000,2096.16*AO195*'CO2 Conversion Factors'!$J$20/0.8/1000) -> 0 | AO195: =IFERROR(IF(OR(L195="BLW",L195="PRI",L195="LNK"),IF(Cover_Select_SteamCostUnits="£/1000kg",11.6*(VLOOKUP($I195,Abb_Lookup_OrifaceDia,2,FALSE)^2)*SQRT(($O195-$P195)*($O195+$P195)),25.57363*(VLOOKUP($I195,Abb_Lookup_OrifaceDia,2,FALSE)^2)*SQRT(($O195-$P195)*($O195+$P195)))*(VLOOKUP(AE195,Cover_Lookup_OpTime,4,FALSE)/1000),IF(L195="LL",IF(Cover_Select_SteamCostUnits="£/1000kg",11.6*(VLOOKUP($I195,Abb_Lookup_OrifaceDia,2,FALSE)^2)*SQRT(($O195-$P195)*($O195+$P195)),25.57363*(VLOOKUP($I195,Abb_Lookup_OrifaceDia,2,FALSE)^2)*SQRT(($O195-$P195)*($O195+$P195)))*(VLOOKUP(AE195,Cover_Lookup_OpTime,4,FALSE)/2000),IF(L195="SL",IF(Cover_Select_SteamCostUnits="£/1000kg",11.6*(VLOOKUP($I195,Abb_Lookup_OrifaceDia,2,FALSE)^2)*SQRT(($O195-$P195)*($O195+$P195)),25.57363*(VLOOKUP($I195,Abb_Lookup_OrifaceDia,2,FALSE)^2)*SQRT(($O195-$P195)*($O195+$P195)))*(VLOOKUP(AE195,Cover_Lookup_OpTime,4,FALSE)/4000),0))),0) -> 0 | AP195: 0 | AT195: 0 | AU195: 0 | AV195: 0 | AW195: 0 | AY195: FALSE | AZ195: FALSE | BA195: FALSE | BB195: FALSE
AL196: =IF(O196="130",2014.4*AO196*'CO2 Conversion Factors'!$D$20/0.8/1000,2096.16*AO196*'CO2 Conversion Factors'!$D$20/0.8/1000) -> 0 | AM196: =IF(O196="130",2014.4*AO196*'CO2 Conversion Factors'!$G$20/0.8/1000,2096.16*AO196*'CO2 Conversion Factors'!$G$20/0.8/1000) -> 0 | AN196: =IF(O196="130",2014.4*AO196*'CO2 Conversion Factors'!$J$20/0.8/1000,2096.16*AO196*'CO2 Conversion Factors'!$J$20/0.8/1000) -> 0 | AO196: 0 | AP196: =IFERROR(AO196*Cover_Select_SteamCost,0) -> 0 | AT196: =IF(NOT(OR(L196="NIS",L196="OFF")),F196) -> 0 | AU196: =IF(NOT(OR(L196="NIS",L196="OFF",L196="PO")),F196) -> 0 | AV196: =IF(NOT(OR(L196="NIS",L196="OFF")),H196) -> 0 | AW196: =IF(NOT(OR(L196="NIS",L196="OFF",L196="PO")),H196) -> 0 | AY196: FALSE | AZ196: FALSE | BA196: FALSE | BB196: FALSE
AL197: =IF(O197="130",2014.4*AO197*'CO2 Conversion Factors'!$D$20/0.8/1000,2096.16*AO197*'CO2 Conversion Factors'!$D$20/0.8/1000) -> 0 | AM197: =IF(O197="130",2014.4*AO197*'CO2 Conversion Factors'!$G$20/0.8/1000,2096.16*AO197*'CO2 Conversion Factors'!$G$20/0.8/1000) -> 0 | AN197: =IF(O197="130",2014.4*AO197*'CO2 Conversion Factors'!$J$20/0.8/1000,2096.16*AO197*'CO2 Conversion Factors'!$J$20/0.8/1000) -> 0 | AO197: 0 | AP197: 0 | AT197: 0 | AU197: 0 | AV197: 0 | AW197: 0 | AX197: =F197&H197 ->  | AY197: =IF(L197="CLD", H197) -> FALSE | AZ197: =IF(L197="SL", H197) -> FALSE | BA197: =IF(L197="LL", H197) -> FALSE | BB197: =IF(L197="BLW", H197) -> FALSE
AL198: =IF(O198="130",2014.4*AO198*'CO2 Conversion Factors'!$D$20/0.8/1000,2096.16*AO198*'CO2 Conversion Factors'!$D$20/0.8/1000) -> 0 | AM198: =IF(O198="130",2014.4*AO198*'CO2 Conversion Factors'!$G$20/0.8/1000,2096.16*AO198*'CO2 Conversion Factors'!$G$20/0.8/1000) -> 0 | AN198: =IF(O198="130",2014.4*AO198*'CO2 Conversion Factors'!$J$20/0.8/1000,2096.16*AO198*'CO2 Conversion Factors'!$J$20/0.8/1000) -> 0 | AO198: 0 | AP198: 0 | AT198: 0 | AU198: 0 | AV198: 0 | AW198: 0 | AY198: FALSE | AZ198: FALSE | BA198: FALSE | BB198: FALSE
AL199: =IF(O199="130",2014.4*AO199*'CO2 Conversion Factors'!$D$20/0.8/1000,2096.16*AO199*'CO2 Conversion Factors'!$D$20/0.8/1000) -> 0 | AM199: =IF(O199="130",2014.4*AO199*'CO2 Conversion Factors'!$G$20/0.8/1000,2096.16*AO199*'CO2 Conversion Factors'!$G$20/0.8/1000) -> 0 | AN199: =IF(O199="130",2014.4*AO199*'CO2 Conversion Factors'!$J$20/0.8/1000,2096.16*AO199*'CO2 Conversion Factors'!$J$20/0.8/1000) -> 0 | AO199: 0 | AP199: 0 | AT199: 0 | AU199: 0 | AV199: 0 | AW199: 0 | AY199: FALSE | AZ199: FALSE | BA199: FALSE | BB199: FALSE
AL200: =IF(O200="130",2014.4*AO200*'CO2 Conversion Factors'!$D$20/0.8/1000,2096.16*AO200*'CO2 Conversion Factors'!$D$20/0.8/1000) -> 0 | AM200: =IF(O200="130",2014.4*AO200*'CO2 Conversion Factors'!$G$20/0.8/1000,2096.16*AO200*'CO2 Conversion Factors'!$G$20/0.8/1000) -> 0 | AN200: =IF(O200="130",2014.4*AO200*'CO2 Conversion Factors'!$J$20/0.8/1000,2096.16*AO200*'CO2 Conversion Factors'!$J$20/0.8/1000) -> 0 | AO200: 0 | AP200: 0 | AT200: 0 | AU200: 0 | AV200: 0 | AW200: 0 | AY200: FALSE | AZ200: FALSE | BA200: FALSE | BB200: FALSE
... 1034 more rows

Sheet Abbreviations
B1: ABBREVIATION TABLES
B2: APPLICATION
B3: DP | C3: Drip
B4: UH | C4: Unit Heater
B5: AH | C5: Air Handler Coil
B6: HX | C6: Heat Exchanger
B7: TR | C7: Tracing
B8: FL | C8: Flash Tank
B9: PC | C9: Process Coil
B10: SS | C10: Steam Separator
B11: OTH | C11: Others
B13: SIZE
B14: 3/8 | C14: 3/8"
B15: 1/2 | C15: 1/2"
B16: 3/4 | C16: 3/4"
B17: 1 | C17: 1"
B18: 1 1/4 | C18: 1 1/4"
B19: 1 1/2 | C19: 1.5"
B20: 2.0 | C20: 2.0"
B21: 2 1/4 | C21: 2 1/4"
B22: 2 1/2 | C22: 2 1/2"
B23: 3 | C23: 3"
B25: MANUFACTURER
B26: ARM | C26: Armstrong
B27: BLO | C27: Blok Gouda
B28: COL | C28: Colton
B29: ERW | C29: Erwell
B30: GES | C30: Gestra
B31: HOF | C31: Hoffman
B32: NIC | C32: Nicholson
B33: JUK | C33: Jucker
B34: SPI | C34: Spirax Sarco
B35: TLV | C35: TLV
B36: UNK | C36: Unknown or illegible
B37: TRA | C37: Trane
B38: VEL | C38: Velan
B39: WLW | C39: Watlow
B40: YAR | C40: Yarway
B42: STEAM TYPE
B43: SUP | C43: Superheat
B44: SAT | C44: Saturated
B47: OPERATION STATUS
B48: PO | C48: Proper Operation
B49: BLW | C49: Blowing Failure Mode
B50: LL | C50: Large Leak
B51: SL | C51: Small Leak
B52: PRI | C52: Loss of Prime (IB Only)
B53: LNK | C53: Linkage
B54: CHK | C54: Check Valve Problem
B55: ACC | C55: Could Not Access
B56: SBD | C56: Steam binding
B57: CLD | C57: Cold - (below op temp)
B58: NIS | C58: Not in Service (steam on)
B59: OFF | C59: Steam service was off
B62: STEAM TRAP TYPE
B63: IB | C63: Inverted Bucket
B64: FT | C64: Float & Thermostatic
B65: FF | C65: Free Float
B66: TD | C66: Thermodynamic
B67: TS | C67: Thermostatic
B68: BM | C68: Bi-metallic
B69: O | C69: Orifice
B71: CONNECTION TYPE
B72: NPT | C72: Threaded
B73: SW | C73: Socket Weld
B74: FLG | C74: Flanged
B75: CMP | C75: Compression
B77: YES NO
B78: Y | C78: Yes
B79: N | C79: No
B80: N/A | C80: N/A
B82: ORIFACE DIAMETER
B83: 1/32 | C83: 0.03125
B84: 1/16 | C84: 0.0625
B85: 3/32 | C85: 0.09375
B86: 1/8 | C86: 0.125
B87: 5/32 | C87: 0.15625
B88: 3/16 | C88: 0.1875
B89: 7/32 | C89: 0.21875
B90: 1/4 | C90: 0.25
B91: 9/32 | C91: 0.28125
B92: 5/16 | C92: 0.3125
B93: 11/32 | C93: 0.34375
B94: 3/8 | C94: 0.375
B95: 13/32 | C95: 0.40625
B96: 7/16 | C96: 0.4375
B97: 15/32 | C97: 0.46875
B98: 1/2 | C98: 0.5
B99: Copy Rights: Not to be copied or distributed without specific permission from Inveno Engineering LLC; kelly.paffel@invenoeng.com

Sheet Orifice
B1: Steam Trap Orifice Diameters
B2: TLV Steam Trap | F2: K Factor | H2: Inches | J2: mm
C3: HP | D3: MP | E3: LP
C4: 66 bar (957.25 psi) | D4: 21 bar (304.58 psi)) | E4: 5 bar (72.52 psi)
B5: A46 | C5: 0.125 | D5: 0.125 | E5: 0.125
B6: A46S | C6: 0.125 | D6: 0.125 | E6: 0.125
B7: A65 | C7: 0.125 | D7: 0.125 | E7: 0.125
B8: A65S | C8: 0.125 | D8: 0.125 | E8: 0.125
B9: FL
B10: FREE FLOAT
B11: HN5N
B12: HR80A | C12: 0.125 | D12: 0.125 | E12: 0.125
B13: HRF 3
B14: JH10 | C14: 0.5 | D14: 0.5 | E14: 0.5
B15: JH7.5 | C15: 0.5 | D15: 0.5 | E15: 0.5
B16: JH75-22A
B17: JH75N-70
B18: JH75R-40
B19: JH7N | C19: 0.5 | D19: 0.5 | E19: 0.5
B20: JH7N-12 | C20: 0.5 | D20: 0.5 | E20: 0.5
B21: JH8-3 | C21: 0.5 | D21: 0.5 | E21: 0.5
B22: JH8N 50 | C22: 0.5 | D22: 0.5 | E22: 0.5
B23: JH8SN H | C23: 0.5 | D23: 0.5 | E23: 0.5
B24: JHF 3N | C24: 0.1875 | D24: 0.1875 | E24: 0.1875
B25: P46SR | C25: 0.1875 | D25: 0.1875 | E25: 0.1875
B26: P46SR A | C26: 0.1875 | D26: 0.1875 | E26: 0.1875
B27: PF3N
B28: PF3N-300
B29: PF3N-900
B30: SS1 - 10 | C30: 0.0625 | H30: 1/16 | I30: 0.0625 | J30: 1.6
B31: SS3N-5 | C31: 0.1875 | D31: 0.1875 | E31: 0.1875
B32: UNK
B33: L21S | C33: 0.1875 | D33: 0.1875 | E33: 0.1875 | F33: 0.6 | G33: 0.131 from pics scale with K=0.6
B35: Armstrong
B36: 1822 | C36: 0.0625 | D36: =7/64 -> 0.109375 | E36: =3/16 -> 0.1875
B37: 1811 | C37: 0.0625 | D37: =5/64 -> 0.078125 | E37: =5/32 -> 0.15625
B38: 1810 | C38: 0.0625 | D38: 0.078125 | E38: =1/8 -> 0.125
B39: 2022 | C39: 0.0625 | D39: =7/64 -> 0.109375 | E39: 0.125
B40: 2011/5 | C40: 0.0625 | D40: =5/64 -> 0.078125 | E40: =5/32 -> 0.15625
B41: 401-SH | C41: 0.0625 | D41: 0.07 | E41: 0.07
B42: SH 900 H | C42: 0.0625 | D42: 0.0625 | E42: 0.0625
B43: 1012 | C43: 0.0625 | D43: =5/64 -> 0.078125 | E43: =1/8 -> 0.125
B44: 1012/7 | C44: 0.0625 | D44: =5/64 -> 0.078125 | E44: =1/8 -> 0.125
B45: TRP 814 | C45: 0.25 | D45: 0.25 | E45: 0.25
B47: Spirax Sarco
B48: TD42 | C48: 0.125 | D48: 0.125 | E48: 0.125
B49: TD32F | C49: 0.0625 | D49: 0.0625 | E49: 0.0625
B51: Yarway
B52: 761 | C52: 0.125 | D52: 0.125 | E52: 0.125 | F52: 0.1 | G52: From pictures measured 0.25" but K factor would be 0.1, so changed to 0.101 with K factor=0.6
B54: Gestra
B55: MK35/32 | C55: 0.125 | D55: 0.125 | E55: 0.125
B56: MK45-2 | C56: 0.125 | D56: 0.125 | E56: 0.125
B57: MK55/3 | C57: 0.125 | D57: 0.125 | E57: 0.125
B58: Copy Rights: Not to be copied or distributed without specific permission from Inveno Engineering LLC; kelly.paffel@invenoeng.com

Sheet Field Sheets
A1: TRAP ID | C1: DATE | E1: PLANT | H1: SPECIFIC LOCATION | L1: DESCRIPTION | Q1: INSTALLATION DETAILS | AC1: DRIP POCKET DETAILS | AG1: COMMENTS / NOTES | AH1: PHOTOS
B3: Location | C3: MANUFACTURER | D3: MODEL | E3: TYPE | F3: ORIFACE DIAMETER | G3: TRAP CAPACITY | H3: APPLICATION | I3: OPERATIONAL STATUS | J3: CONNECTION TYPE | K3: CONNECTION SIZE (INCHES) | L3: INLET PRESSURE | M3: OUTLET PRESSURE | N3: INLET TEMPERATURE | O3: OUTLET TEMPERATURE | P3: SUPERHEAT | Q3: INSTALLED ELEVATION | R3: CONDENSATE RETURN | S3: CONDENSATE ELEVATION RISE | T3: UPSTREAM ISOLATION VALVE | U3: DOWNSTREAM ISOLATION VALVE | V3: UNIVERSAL MOUNT | W3: STRAINER | X3: STRAINER BLOWDOWN | Y3: DOWNSTREAM PIPE SIZE INCREASE | Z3: CHECK VALVE | AA3: BYPASS | AB3: OPERATION TIME | AC3: HEADER SIZE | AD3: POCKET SIZE | AE3: POCKET LENGTH | AF3: BLOWDOWN
A4: 1 | C4: SPI | D4: TD30L | E4: TD | F4: 1/16 | G4: 300 | H4: DP | I4: CLD | J4: SW | K4: 1 | L4: 40 | M4: 0 | N4: 10 | O4: 10 | P4: Y | Q4: 1 | R4: Y | S4: 5 | T4: N | U4: N | V4: Y | W4: Y | X4: N | Y4: N | Z4: N | AA4: N | AB4: ALL YEAR | AG4: PRIMARY ISOLATION VALVE INACCESSABLE. LOKRING UNION USED FOR CONNECTION OF OLD TO NEW PIPEWORK. LAGGING NOT REPLACED ON NEW PIPEWORK ABOVE HEAD HEIGHT. | AH4: 911

Sheet CO2 Conversion Factors
A2: Fuel Type | B2: lbs CO2 / MMBtu | C2: kg CO2 / MMBtu | D2: kg CO2 / GJ | E2: lbs NOX / MMBtu | F2: g NOX / MMBtu | G2: kg NOX / GJ | H2: lbs SO2 /MMBtu | I2: g SO2 /MMBtu | J2: kg CH4 /GJ | K2: BTU/unit
A3: Black Liquor | B3: =C3*2.204623 -> 221.598089 | C3: =D3*1.055056 -> 100.5151851 | D3: 95.27
A4: Blast Furnace Gas | B4: =C4*2.204623 -> 562.8921752 | C4: =D4*1.055056 -> 255.323552 | D4: 242 | E4: 0.2421 | F4: =E4*0.45359237 -> 0.1098147128 | G4: =F4/1.055056 -> 0.1040842503 | H4: 8.5 | I4: =H4*0.45359237 -> 3.855535145 | J4: =I4/1.055056 -> 3.654341708 | K4: 95 | L4: BTU/scf
A5: Butane | B5: 140.1648036 | C5: =D5*1.055056 -> 63.57767456 | D5: 60.26 | E5: 0.147 | F5: =E5*0.45359237 -> 0.06667807839 | G5: =F5/1.055056 -> 0.06319861542 | H5: 0.0805 | I5: =H5*0.45359237 -> 0.03651418579 | J5: =I5/1.055056 -> 0.03460876559 | K5: 102032 | L5: BTU/gal
A6: Coal | B6: 220.0396685 | C6: 99.8082976 | D6: 94.6 | E6: 0.457 | F6: 0.2072917131 | G6: 0.1964746071 | H6: 2.591 | I6: 1.175257831 | J6: 1.113929337 | K6: 12000 | L6: BTU/lb
A7: Coke | B7: 251.6732783 | C7: 114.1570592 | D7: 108.2 | E7: 0.75 | F7: 0.3401942775 | G7: 0.3224419154 | H7: 4.179 | I7: 1.895562514 | J7: 1.796646353 | K7: 14000 | L7: BTU/lb
A8: Coke Oven Gas | B8: 110.9502345 | C8: 50.3261712 | D8: 47.7 | E8: 0.139 | F8: 0.06304933943 | G8: 0.05975923499 | H8: 2.369 | I8: 1.074560325 | J8: 1.01848653 | K8: 574 | L8: BTU/scf
A9: Crude Petrolium
A10: Diesel (Light/#2 Fuel Oil) | B10: 172.3566536 | C10: 78.1796496 | D10: 74.1 | E10: 0.0721 | F10: 0.03270400988 | G10: 0.03099741613 | H10: 1.0238 | I10: 0.4643878684 | J10: 0.4401547107 | K10: 137380 | L10: BTU/gal
A11: Electricity (purchased) | B11: 127.5578797 | C11: 57.85927104 | D11: 54.84 | F11: 0 | I11: 0 | K11: 3413 | L11: BTU/KWh
A12: Gasoline | B12: 161.1918502 | C12: 73.1153808 | D12: 69.3 | E12: 1.63 | F12: 0.7393555631 | G12: 0.7007737628 | H12: 0.084 | I12: 0.03810175908 | J12: 0.03611349453 | K12: 124340 | L12: BTU/gal
A13: Kerosene (#1 Fuel Oil) | B13: 166.3090518 | C13: 75.436504 | D13: 71.5 | E13: 0.729 | F13: 0.3306688377 | G13: 0.3134135418 | H13: 0.303 | I13: 0.1374384881 | J13: 0.1302665338 | K13: 134000 | L13: BTU/gal
A14: Liquefied Petroleum Gas (LPG) | B14: 146.7706457 | C14: 66.5740336 | D14: 63.1 | E14: 0.211 | F14: 0.09570799007 | G14: 0.09071365887 | H14: 0.091 | I14: 0.04127690567 | J14: 0.0391229524 | K14: 95475 | L14: BTU/gal
A15: Methane / Landfill Gas | B15: 127.9300398 | C15: 58.02808 | D15: 55 | E15: 0.0673 | F15: 0.0305267665 | G15: 0.02893378788 | H15: 5.75e-06 | I15: 2.608156128e-06 | J15: 2.472054685e-06 | K15: 490 | L15: BTU/MMscf
A16: Municipal refuse (Dry) | B16: 145.8867654 | C16: 66.17311232 | D16: 62.72 | E16: 0.5555 | F16: 0.2519705615 | G16: 0.2388219787 | H16: 0.1888 | I16: 0.08563823946 | J16: 0.08116937817 | K16: 4500 | L16: BTU/lb
A17: Natural Gas | B17: 132.1168411 | C17: 59.9271808 | D17: 56.8 | E17: 0.092 | F17: 0.04173049804 | G17: 0.03056 | H17: 1 | I17: 0.45359237 | J17: 0.08611 | K17: 1020 | L17: BTU/scf
A18: Propane | B18: 136.7688426 | C18: 62.0372928 | D18: 58.8 | E18: 0.1422 | F18: 0.06450083501 | G18: 0.06113498716 | H18: 0.08 | I18: 0.0362873896 | J18: 0.03439380431 | K18: 91410 | L18: BTU/gal
A19: Wood | B19: 230.5066717 | C19: 104.5560496 | D19: 99.1 | F19: 0 | I19: 0
A20: Residual Fuel Oil (Heavy/#6 Fuel Oil) | B20: 183.4749371 | C20: 83.22281728 | D20: 78.88 | E20: 0.448 | F20: 0.2032093818 | G20: 0.21667 | H20: 1.122 | I20: 0.5089306391 | J20: 0.0833
A22: CO2 Conversion Factor Source: | B22: DEFRA
A23: NOX Conversion Factor Source: | B23: DEFRA
A24: CH4 Conversion Factor Source: | B24: DEFRA
A25: Copy Rights: Not to be copied or distributed without specific permission from Inveno Engineering LLC; kelly.paffel@invenoeng.com

Sheet SOP
B3: This workbook contains the worksheets needed to complete a steam trap survey. Worksheets are:
B5: Report Sheet | D5: This worksheet is the sheet that field information should be typed into. This sheet will be included in the steam trap report.
B6: Field Survey Sheet | D6: This is to be printed out and used in the field to record steam trap survey results.
B7: Abbreviations | D7: This sheet should also be printed out and taken into the field as a reference and refered to when recording results so that the recorded data will be the same
B8: Steam Leak rev 8.1 | D8: A calculation worksheet that assists with energy loss and emission calculations for input on the "Report Sheet" Energy and Emission Loss area
B9: Steam water pres table May-2009 | D9: Supporting worksheet for Steam Leak rev 8.1.
B10: CO2 conversion factors | D10: Supporting worksheet for Steam Leak rev 8.1.
B13: Steam Trap Survey Procedures - Field Survey
B15: 1 | C15: Print out "Field Survey Sheet" to take into the field. (Make sure that enough copies of the "Field Survey Sheet" are made)
B16: 2 | C16: Print out "Abbreviations" sheet to be used when filling out "Field Survey Sheet"
B17: 3 | C17: Put data collected from Field Steam Trap Survey onto "Report Sheet" in excel
B18: 4 | C18: On the "Cover" sheet select the fuel, costs and units
B19: 5 | C19: The energy and emission losses will be calculated automatically
B24: Change History
B26: Ver 3.1 | C26: Fixed steam cost not showing up for $/1000lbs steam on Report Sheet "AQ"
B28: Copy Rights: Not to be copied or distributed without specific permission from Inveno Engineering LLC; kelly.paffel@invenoeng.com

Sheet X Steam Example
B1: Steam Tables (English Units)
B2: Excel macros, IF-97 Steam tables. | D2: The excel scripts are stored inside this workbook. A complete list of functions for use is available on the "Calling functions" worksheet
D3: The steam tables are free and provided as is. We take no responsibilities for any errors in the code or damage thereby.
D4: OBS: This workbook uses macros. Set security options in Tools:Macro:Security… to enable macros.
B6: Saturation properties given temperature | F6: Saturation properties given pressure
B7: Temperature | C7: 50 | D7: degF | F7: Pressure | G7: 30 | H7: psi (a)
B8: Saturation pressure | C8: =psat_t(C7) -> 0.17813301 | D8: psi (a) | F8: Saturation temperature | G8: =Tsat_p(G7) -> 250.3011484 | H8: degF
B9: Liquid | F9: Liquid
B10: Enthalpy | C10: =hL_T(C7) -> 18.06581627 | D10: btu/lb | F10: Enthalpy | G10: =hL_p(G7) -> 218.9253403 | H10: btu/lb
B11: Density | C11: =rhoL_T(C7) -> 62.40634262 | D11: lb /ft3 | F11: Density | G11: =rhoL_P(G7) -> 58.81161788 | H11: lb /ft3
B12: Entropy | C12: =sL_T(C7) -> 0.0360860529 | D12: btu/(lb F) | F12: Entropy | G12: =sL_p(G7) -> 0.3682040685 | H12: btu/(lb F)
B13: Vapour | F13: Vapour
B14: Vapour enthalpy | C14: =hV_T(C7) -> 1083.073877 | D14: btu/lb | F14: Vapour enthalpy | G14: =hV_p(G7) -> 1164.138086 | H14: btu/lb
B15: Vapour density | C15: =rhoV_T(C7) -> 0.0005872328646 | D15: lb /ft3 | F15: Vapour density | G15: =rhoV_p(G7) -> 0.07273661271 | H15: lb /ft3
B16: Vapour Entropy | C16: =sV_T(C7) -> 2.125691679 | D16: btu/(lb F) | F16: vapour Entropy | G16: =sV_p(G7) -> 1.699539025 | H16: btu/(lb F)
B17: Evaporation energy | C17: =C14-C10 -> 1065.008061 | D17: btu/lb | F17: Evaporation energy | G17: =G14-G10 -> 945.2127459 | H17: btu/lb
B19: Properties given pressure and temperature | F19: Properties given pressure and enthalpy
B20: Pressure | C20: 100 | D20: psi (a) | F20: Pressure | G20: 12.57 | H20: psi (a)
B21: Temperature | C21: 50 | D21: degF | F21: Enthalpy | G21: 2788 | H21: btu/lb
B22: Enthalpy | C22: =h_pt(C20,C21) -> 18.3543276 | D22: btu/lb | F22: Temperature | G22: =T_ph(G20,G21) -> 3074.570748 | H22: degF
B23: Density | C23: =rho_pT(C20,C21) -> 62.42685928 | D23: lb /ft3 | F23: Density | G23: =rho_ph(G20,G21) -> 0.005970345217 | H23: lb /ft3
B24: Entropy | C24: =s_pT(C20,C21) -> 0.03607146366 | D24: btu/(lb F) | F24: Entropy | G24: =s_ph(G20,G21) -> 2.674276314 | H24: btu/(lb F)
B25: Vapour fraction | C25: =x_ph(C20,C22)*100 -> 0 | D25: % | F25: Vapour fraction | G25: =x_ph(G20,G21)*100 -> 100 | H25: %
B26: IF97 Region | C26: =region_pt(C20/10,C21+273.15) -> 1 | F26: IF97 Region | G26: =region_ph(G20/10,G21) -> 2
B27: Phase | C27: =IF(C26=2,"Steam",IF(C26=1,"Liquid",IF(C26=4,"Mixture",""))) -> Liquid | F27: Phase | G27: =IF(G26=2,"Steam",IF(G26=1,"Liquid",IF(G26=4,"Mixture",""))) -> Steam
B28: Isobaric heat capacity | C28: =Cp_pT(C20,C21) -> 1.001534033 | D28: btu/(lb F) | F28: Isobaric heat capacity | G28: =Cp_ph(G20,G21) -> 0.6752417934 | H28: btu/(lb F)
B29: Speed of sound | C29: =w_pT(C20,C21) -> 4752.240198 | D29: ft/s | F29: Speed of sound | G29: =w_ph(G20,G21) -> 3414.439144 | H29: ft/s
B31: Copy Rights: Not to be copied or distributed without specific permission from Inveno Engineering LLC; kelly.paffel@invenoeng.com

Sheet SEA Steam Leak Est rev 8.1 (hidden)
B1: Swagelok Energy Advisors www.swagelokenergy.com | R1: Pipe Diameter Reference
B2: Steam loss can be estimated using the following variant of Napier's formula:
D3: Steam Loss = 22.88 x Pa X D^2 | J3: Emissions Factors Used by Save Energy Now Program (CO2/MMBtu Primary), other emissions provided by USA EIA. | R3: Nominal Pipe Size | T3: OD (in) | U3: ID (in)
D4: 22.88 = constant | R4: Size | S4: Schedule
D5: Pa = Absolute Steam Pressure | R5: 1/8 | S5: STD | T5: 0.405 | U5: 0.269
D6: D = Diameter of leak | S6: XS | U6: 0.215
D7: Cost of Steam | E7: 10 | F7: $/1000lbs | G7: Add the steam cost per thousand lbs of steam
D8: Fuel type | E8: Natural Gas | H8: Drop down window for fuel selections | R8: 1/4 | S8: STD | T8: 0.54 | U8: 0.364
B11: Quick Calculation - User defined | S11: XS | U11: 0.302
B12: CELLS THAT CAN BE MODIFY | R12: 3/8 | S12: STD | T12: 0.675 | U12: 0.493
B13: Pressure | D13: Abs Pressure | E13: Constant | F13: Diameter | G13: D^2 | H13: Steam Loss (pph) | I13: Cost / Hour | J13: Days / Year | K13: Cost / Year | L13: CO2 Emissions / Year | M13: NOX | N13: SO2 | O13: Particulates | P13: Mercury | S13: XS | U13: 0.423
B14: 15 | D14: =B14+14.696 -> 29.696 | E14: 22.88 | F14: 0.125 | G14: =F14^2 -> 0.015625 | H14: =D14*E14*G14 -> 10.61632 | I14: =(H14/1000)*E7 -> 0.1061632 | J14: 350 | K14: =I14*24*J14 -> 891.77088 | L14: =((((VLOOKUP($B14,#REF!,8,FALSE)*$H14)/1000000)*(VLOOKUP($E$8,'CO2 Conversion Factors'!$A$3:$J$20,3,FALSE)))*24)*$J14 ->  | M14: =((((VLOOKUP($B14,#REF!,8,FALSE)*$H14)/1000000)*(VLOOKUP($E$8,'CO2 Conversion Factors'!$A$3:$J$20,4,FALSE)))*24)*$J14 ->  | N14: =((((VLOOKUP($B14,#REF!,8,FALSE)*$H14)/1000000)*(VLOOKUP($E$8,'CO2 Conversion Factors'!$A$3:$J$20,5,FALSE)))*24)*$J14 ->  | O14: =((((VLOOKUP($B14,#REF!,8,FALSE)*$H14)/1000000)*(VLOOKUP($E$8,'CO2 Conversion Factors'!$A$3:$J$20,6,FALSE)))*24)*$J14 ->  | P14: =((((VLOOKUP($B14,#REF!,8,FALSE)*$H14)/1000000)*(VLOOKUP($E$8,'CO2 Conversion Factors'!$A$3:$J$20,7,FALSE)))*24)*$J14 ->  | R14: 1/2 | S14: STD | T14: 0.84 | U14: 0.622
S15: XS | U15: 0.546
B16: 1/16" Leak | S16: XXS | U16: 0.252
B17: Pressure | C17: Bar | D17: Abs Pressure | E17: Constant | F17: Diameter | G17: D^2 | H17: Steam Loss (pph) | I17: Cost / Hour | J17: Days / Year | K17: Cost / Year | L17: CO2 Emissions / Year | M17: NOX | N17: SO2 | O17: Particulates | P17: Mercury | R17: 3/4 | S17: STD | T17: 1.05 | U17: 0.824
B18: 5 | D18: =B18+14.696 -> 19.696 | E18: 22.88 | F18: =1/16 -> 0.0625 | G18: =F18^2 -> 0.00390625 | H18: =D18*E18*G18 -> 1.76033 | I18: =(H18/1000)*E$7 -> 0.0176033 | J18: 365 | K18: =I18*24*J18 -> 154.204908 | L18: =((((hV_p(B18+14.696)*$H18)/1000000)*(VLOOKUP($E$8,'CO2 Conversion Factors'!$A$3:$J$20,3,FALSE)))*24)*$J18 -> 1068.171506 | M18: =((((hV_p(B18+14.696)*$H18)/1000000)*(VLOOKUP($E$8,'CO2 Conversion Factors'!$A$3:$J$20,4,FALSE)))*24)*$J18 -> 1012.431099 | N18: =((((hV_p(B18+14.696)*$H18)/1000000)*(VLOOKUP($E$8,'CO2 Conversion Factors'!$A$3:$J$20,5,FALSE)))*24)*$J18 -> 1.639853189 | O18: =((((hV_p(B18+14.696)*$H18)/1000000)*(VLOOKUP($E$8,'CO2 Conversion Factors'!$A$3:$J$20,6,FALSE)))*24)*$J18 -> 0.7438248943 | P18: =((((hV_p(B18+14.696)*$H18)/1000000)*(VLOOKUP($E$8,'CO2 Conversion Factors'!$A$3:$J$20,7,FALSE)))*24)*$J18 -> 0.5447164505 | S18: XS | U18: 0.742 | Y18: 0.01 | Z18: 16897
B19: 15 | D19: 29.696 | E19: 22.88 | F19: 0.0625 | G19: 0.00390625 | H19: 2.65408 | I19: 0.0265408 | J19: 365 | K19: 232.497408 | L19: =((((hV_p(B19+14.696)*$H19)/1000000)*(VLOOKUP($E$8,'CO2 Conversion Factors'!$A$3:$J$20,3,FALSE)))*24)*$J19 -> 1621.703544 | M19: =((((hV_p(B19+14.696)*$H19)/1000000)*(VLOOKUP($E$8,'CO2 Conversion Factors'!$A$3:$J$20,4,FALSE)))*24)*$J19 -> 1537.078168 | N19: =((((hV_p(B19+14.696)*$H19)/1000000)*(VLOOKUP($E$8,'CO2 Conversion Factors'!$A$3:$J$20,5,FALSE)))*24)*$J19 -> 2.489633653 | O19: =((((hV_p(B19+14.696)*$H19)/1000000)*(VLOOKUP($E$8,'CO2 Conversion Factors'!$A$3:$J$20,6,FALSE)))*24)*$J19 -> 1.129278829 | P19: =((((hV_p(B19+14.696)*$H19)/1000000)*(VLOOKUP($E$8,'CO2 Conversion Factors'!$A$3:$J$20,7,FALSE)))*24)*$J19 -> 0.8269913526 | S19: XXS | U19: 0.434 | X19: =F19 -> 0.0625 | Y19: =(X19+X21)/2 -> 0.09375 | Z19: =L21 -> 2457.813691
B20: 25 | D20: 39.696 | E20: 22.88 | F20: 0.0625 | G20: 0.00390625 | H20: 3.54783 | I20: 0.0354783 | J20: 365 | K20: 310.789908 | L20: =((((hV_p(B20+14.696)*$H20)/1000000)*(VLOOKUP($E$8,'CO2 Conversion Factors'!$A$3:$J$20,3,FALSE)))*24)*$J20 -> 2178.496086 | M20: =((((hV_p(B20+14.696)*$H20)/1000000)*(VLOOKUP($E$8,'CO2 Conversion Factors'!$A$3:$J$20,4,FALSE)))*24)*$J20 -> 2064.815599 | N20: =((((hV_p(B20+14.696)*$H20)/1000000)*(VLOOKUP($E$8,'CO2 Conversion Factors'!$A$3:$J$20,5,FALSE)))*24)*$J20 -> 3.344419631 | O20: =((((hV_p(B20+14.696)*$H20)/1000000)*(VLOOKUP($E$8,'CO2 Conversion Factors'!$A$3:$J$20,6,FALSE)))*24)*$J20 -> 1.517003227 | P20: =((((hV_p(B20+14.696)*$H20)/1000000)*(VLOOKUP($E$8,'CO2 Conversion Factors'!$A$3:$J$20,7,FALSE)))*24)*$J20 -> 1.110928956
B21: 30 | D21: 44.696 | E21: 22.88 | F21: 0.0625 | G21: 0.00390625 | H21: 3.994705 | I21: 0.03994705 | J21: 365 | K21: 349.936158 | L21: =((((hV_p(B21+14.696)*$H21)/1000000)*(VLOOKUP($E$8,'CO2 Conversion Factors'!$A$3:$J$20,3,FALSE)))*24)*$J21 -> 2457.813691 | M21: =((((hV_p(B21+14.696)*$H21)/1000000)*(VLOOKUP($E$8,'CO2 Conversion Factors'!$A$3:$J$20,4,FALSE)))*24)*$J21 -> 2329.55757 | N21: =((((hV_p(B21+14.696)*$H21)/1000000)*(VLOOKUP($E$8,'CO2 Conversion Factors'!$A$3:$J$20,5,FALSE)))*24)*$J21 -> 3.77322705 | O21: =((((hV_p(B21+14.696)*$H21)/1000000)*(VLOOKUP($E$8,'CO2 Conversion Factors'!$A$3:$J$20,6,FALSE)))*24)*$J21 -> 1.711507 | P21: =((((hV_p(B21+14.696)*$H21)/1000000)*(VLOOKUP($E$8,'CO2 Conversion Factors'!$A$3:$J$20,7,FALSE)))*24)*$J21 -> 1.253367594 | R21: 1 | S21: STD | T21: 1.315 | U21: 1.049 | X21: =F34 -> 0.125 | Y21: =(X21+X22)/2 -> 0.15625 | Z21: =L37 -> 9831.254766
B22: 40 | D22: 54.696 | E22: 22.88 | F22: 0.0625 | G22: 0.00390625 | H22: 4.888455 | I22: 0.04888455 | J22: 365 | K22: 428.228658 | L22: =((((hV_p(B22+14.696)*$H22)/1000000)*(VLOOKUP($E$8,'CO2 Conversion Factors'!$A$3:$J$20,3,FALSE)))*24)*$J22 -> 3017.91264 | M22: =((((hV_p(B22+14.696)*$H22)/1000000)*(VLOOKUP($E$8,'CO2 Conversion Factors'!$A$3:$J$20,4,FALSE)))*24)*$J22 -> 2860.428868 | N22: =((((hV_p(B22+14.696)*$H22)/1000000)*(VLOOKUP($E$8,'CO2 Conversion Factors'!$A$3:$J$20,5,FALSE)))*24)*$J22 -> 4.633089011 | O22: =((((hV_p(B22+14.696)*$H22)/1000000)*(VLOOKUP($E$8,'CO2 Conversion Factors'!$A$3:$J$20,6,FALSE)))*24)*$J22 -> 2.101533825 | P22: =((((hV_p(B22+14.696)*$H22)/1000000)*(VLOOKUP($E$8,'CO2 Conversion Factors'!$A$3:$J$20,7,FALSE)))*24)*$J22 -> 1.538991306 | S22: XS | U22: 0.957 | X22: =F50 -> 0.1875 | Y22: =(X22+X24)/2 -> 0.21875 | Z22: =L54 -> 27161.21376
B23: 50 | D23: 64.696 | E23: 22.88 | F23: 0.0625 | G23: 0.00390625 | H23: 5.782205 | I23: 0.05782205 | J23: 365 | K23: 506.521158 | L23: =((((hV_p(B23+14.696)*$H23)/1000000)*(VLOOKUP($E$8,'CO2 Conversion Factors'!$A$3:$J$20,3,FALSE)))*24)*$J23 -> 3579.612648 | M23: =((((hV_p(B23+14.696)*$H23)/1000000)*(VLOOKUP($E$8,'CO2 Conversion Factors'!$A$3:$J$20,4,FALSE)))*24)*$J23 -> 3392.817678 | N23: =((((hV_p(B23+14.696)*$H23)/1000000)*(VLOOKUP($E$8,'CO2 Conversion Factors'!$A$3:$J$20,5,FALSE)))*24)*$J23 -> 5.495408915 | O23: =((((hV_p(B23+14.696)*$H23)/1000000)*(VLOOKUP($E$8,'CO2 Conversion Factors'!$A$3:$J$20,6,FALSE)))*24)*$J23 -> 2.492675554 | P23: =((((hV_p(B23+14.696)*$H23)/1000000)*(VLOOKUP($E$8,'CO2 Conversion Factors'!$A$3:$J$20,7,FALSE)))*24)*$J23 -> 1.825431483
B24: 75 | D24: 89.696 | E24: 22.88 | F24: 0.0625 | G24: 0.00390625 | H24: 8.01658 | I24: 0.0801658 | J24: 365 | K24: 702.252408 | L24: =((((hV_p(B24+14.696)*$H24)/1000000)*(VLOOKUP($E$8,'CO2 Conversion Factors'!$A$3:$J$20,3,FALSE)))*24)*$J24 -> 4989.019276 | M24: =((((hV_p(B24+14.696)*$H24)/1000000)*(VLOOKUP($E$8,'CO2 Conversion Factors'!$A$3:$J$20,4,FALSE)))*24)*$J24 -> 4728.677223 | N24: =((((hV_p(B24+14.696)*$H24)/1000000)*(VLOOKUP($E$8,'CO2 Conversion Factors'!$A$3:$J$20,5,FALSE)))*24)*$J24 -> 7.65912508 | O24: =((((hV_p(B24+14.696)*$H24)/1000000)*(VLOOKUP($E$8,'CO2 Conversion Factors'!$A$3:$J$20,6,FALSE)))*24)*$J24 -> 3.474120697 | P24: =((((hV_p(B24+14.696)*$H24)/1000000)*(VLOOKUP($E$8,'CO2 Conversion Factors'!$A$3:$J$20,7,FALSE)))*24)*$J24 -> 2.544161548 | S24: XXS | U24: 0.599 | X24: =F66 -> 0.25 | Y24: =(X24+X25)/2 -> 0.3125 | Z24: =L69 -> 39325.01906
B25: 100 | D25: 114.696 | E25: 22.88 | F25: 0.0625 | G25: 0.00390625 | H25: 10.250955 | I25: 0.10250955 | J25: 365 | K25: 897.983658 | L25: =((((hV_p(B25+14.696)*$H25)/1000000)*(VLOOKUP($E$8,'CO2 Conversion Factors'!$A$3:$J$20,3,FALSE)))*24)*$J25 -> 6403.564513 | M25: =((((hV_p(B25+14.696)*$H25)/1000000)*(VLOOKUP($E$8,'CO2 Conversion Factors'!$A$3:$J$20,4,FALSE)))*24)*$J25 -> 6069.407229 | N25: =((((hV_p(B25+14.696)*$H25)/1000000)*(VLOOKUP($E$8,'CO2 Conversion Factors'!$A$3:$J$20,5,FALSE)))*24)*$J25 -> 9.830730018 | O25: =((((hV_p(B25+14.696)*$H25)/1000000)*(VLOOKUP($E$8,'CO2 Conversion Factors'!$A$3:$J$20,6,FALSE)))*24)*$J25 -> 4.459144128 | P25: =((((hV_p(B25+14.696)*$H25)/1000000)*(VLOOKUP($E$8,'CO2 Conversion Factors'!$A$3:$J$20,7,FALSE)))*24)*$J25 -> 3.265512058 | R25: 1-1/4 | S25: STD | T25: 1.66 | U25: 1.38 | X25: =F82 -> 0.375 | Y25: =(X25+X30)/2 -> 0.4375 | Z25: =L85 -> 88481.29289
B26: 150 | D26: 164.696 | E26: 22.88 | F26: 0.0625 | G26: 0.00390625 | H26: 14.719705 | I26: 0.14719705 | J26: 365 | K26: 1289.446158 | L26: =((((hV_p(B26+14.696)*$H26)/1000000)*(VLOOKUP($E$8,'CO2 Conversion Factors'!$A$3:$J$20,3,FALSE)))*24)*$J26 -> 9241.572264 | M26: =((((hV_p(B26+14.696)*$H26)/1000000)*(VLOOKUP($E$8,'CO2 Conversion Factors'!$A$3:$J$20,4,FALSE)))*24)*$J26 -> 8759.319187 | N26: =((((hV_p(B26+14.696)*$H26)/1000000)*(VLOOKUP($E$8,'CO2 Conversion Factors'!$A$3:$J$20,5,FALSE)))*24)*$J26 -> 14.18762967 | O26: =((((hV_p(B26+14.696)*$H26)/1000000)*(VLOOKUP($E$8,'CO2 Conversion Factors'!$A$3:$J$20,6,FALSE)))*24)*$J26 -> 6.435400566 | P26: =((((hV_p(B26+14.696)*$H26)/1000000)*(VLOOKUP($E$8,'CO2 Conversion Factors'!$A$3:$J$20,7,FALSE)))*24)*$J26 -> 4.712760464 | X26: =F83 -> 0.375 | Y26: =(X26+X31)/2 -> 0.1875 | Z26: =L86 -> 108644.855
B27: 250 | D27: 264.696 | E27: 22.88 | F27: 0.0625 | G27: 0.00390625 | H27: 23.657205 | I27: 0.23657205 | J27: 365 | K27: 2072.371158 | L27: =((((hV_p(B27+14.696)*$H27)/1000000)*(VLOOKUP($E$8,'CO2 Conversion Factors'!$A$3:$J$20,3,FALSE)))*24)*$J27 -> 14930.30684 | M27: =((((hV_p(B27+14.696)*$H27)/1000000)*(VLOOKUP($E$8,'CO2 Conversion Factors'!$A$3:$J$20,4,FALSE)))*24)*$J27 -> 14151.19846 | N27: =((((hV_p(B27+14.696)*$H27)/1000000)*(VLOOKUP($E$8,'CO2 Conversion Factors'!$A$3:$J$20,5,FALSE)))*24)*$J27 -> 22.92095524 | O27: =((((hV_p(B27+14.696)*$H27)/1000000)*(VLOOKUP($E$8,'CO2 Conversion Factors'!$A$3:$J$20,6,FALSE)))*24)*$J27 -> 10.39677041 | P27: =((((hV_p(B27+14.696)*$H27)/1000000)*(VLOOKUP($E$8,'CO2 Conversion Factors'!$A$3:$J$20,7,FALSE)))*24)*$J27 -> 7.613743394 | S27: XS | U27: 1.278 | X27: =F84 -> 0.375 | Y27: =(X27+X32)/2 -> 0.1875 | Z27: =L87 -> 128866.0553
B28: 300 | D28: 314.696 | E28: 22.88 | F28: 0.0625 | G28: 0.00390625 | H28: 28.125955 | I28: 0.28125955 | J28: 365 | K28: 2463.833658 | L28: =((((hV_p(B28+14.696)*$H28)/1000000)*(VLOOKUP($E$8,'CO2 Conversion Factors'!$A$3:$J$20,3,FALSE)))*24)*$J28 -> 17773.68515 | M28: =((((hV_p(B28+14.696)*$H28)/1000000)*(VLOOKUP($E$8,'CO2 Conversion Factors'!$A$3:$J$20,4,FALSE)))*24)*$J28 -> 16846.20072 | N28: =((((hV_p(B28+14.696)*$H28)/1000000)*(VLOOKUP($E$8,'CO2 Conversion Factors'!$A$3:$J$20,5,FALSE)))*24)*$J28 -> 27.28609976 | O28: =((((hV_p(B28+14.696)*$H28)/1000000)*(VLOOKUP($E$8,'CO2 Conversion Factors'!$A$3:$J$20,6,FALSE)))*24)*$J28 -> 12.37676666 | P28: =((((hV_p(B28+14.696)*$H28)/1000000)*(VLOOKUP($E$8,'CO2 Conversion Factors'!$A$3:$J$20,7,FALSE)))*24)*$J28 -> 9.063730529 | S28: XXS | U28: 0.896 | X28: =F85 -> 0.375 | Y28: =(X28+X33)/2 -> 0.1875 | Z28: =L88 -> 179604.694
B29: 400 | D29: 414.696 | E29: 22.88 | F29: 0.0625 | G29: 0.00390625 | H29: 37.063455 | I29: 0.37063455 | J29: 365 | K29: 3246.758658 | L29: =((((hV_p(B29+14.696)*$H29)/1000000)*(VLOOKUP($E$8,'CO2 Conversion Factors'!$A$3:$J$20,3,FALSE)))*24)*$J29 -> 23448.00367 | M29: =((((hV_p(B29+14.696)*$H29)/1000000)*(VLOOKUP($E$8,'CO2 Conversion Factors'!$A$3:$J$20,4,FALSE)))*24)*$J29 -> 22224.41621 | N29: =((((hV_p(B29+14.696)*$H29)/1000000)*(VLOOKUP($E$8,'CO2 Conversion Factors'!$A$3:$J$20,5,FALSE)))*24)*$J29 -> 35.99729386 | O29: =((((hV_p(B29+14.696)*$H29)/1000000)*(VLOOKUP($E$8,'CO2 Conversion Factors'!$A$3:$J$20,6,FALSE)))*24)*$J29 -> 16.32809784 | P29: =((((hV_p(B29+14.696)*$H29)/1000000)*(VLOOKUP($E$8,'CO2 Conversion Factors'!$A$3:$J$20,7,FALSE)))*24)*$J29 -> 11.95736196 | R29: 1-1/2 | S29: STD | T29: 1.9 | U29: 1.61 | X29: =F86 -> 0.375 | Y29: =(X29+X34)/2 -> 0.1875 | Z29: =L89 -> 230528.3225
B30: 600 | D30: 614.696 | E30: 22.88 | F30: 0.0625 | G30: 0.00390625 | H30: 54.938455 | I30: 0.54938455 | J30: 365 | K30: 4812.608658 | L30: =((((hV_p(B30+14.696)*$H30)/1000000)*(VLOOKUP($E$8,'CO2 Conversion Factors'!$A$3:$J$20,3,FALSE)))*24)*$J30 -> 34713.30739 | M30: =((((hV_p(B30+14.696)*$H30)/1000000)*(VLOOKUP($E$8,'CO2 Conversion Factors'!$A$3:$J$20,4,FALSE)))*24)*$J30 -> 32901.86245 | N30: =((((hV_p(B30+14.696)*$H30)/1000000)*(VLOOKUP($E$8,'CO2 Conversion Factors'!$A$3:$J$20,5,FALSE)))*24)*$J30 -> 53.29174903 | O30: =((((hV_p(B30+14.696)*$H30)/1000000)*(VLOOKUP($E$8,'CO2 Conversion Factors'!$A$3:$J$20,6,FALSE)))*24)*$J30 -> 24.17273075 | P30: =((((hV_p(B30+14.696)*$H30)/1000000)*(VLOOKUP($E$8,'CO2 Conversion Factors'!$A$3:$J$20,7,FALSE)))*24)*$J30 -> 17.70212881 | S30: XS | U30: 1.5 | X30: =F98 -> 0.5 | Y30: =G98 -> 0.25
S31: XXS | U31: 0.95
B32: 1/8" Leak | R32: 2 | S32: STD | T32: 2.375 | U32: 2.067
B33: Pressure | D33: Abs Pressure | E33: Constant | F33: Diameter | G33: D^2 | H33: Steam Loss (pph) | I33: Cost / Hour | J33: Days / Year | K33: Cost / Year | L33: CO2 Emissions / Year | M33: NOX | N33: SO2 | O33: Particulates | P33: Mercury
B34: 5 | D34: =B34+14.696 -> 19.696 | E34: 22.88 | F34: =1/8 -> 0.125 | G34: =F34^2 -> 0.015625 | H34: =D34*E34*G34 -> 7.04132 | I34: =(H34/1000)*E$7 -> 0.0704132 | J34: 365 | K34: =I34*24*J34 -> 616.819632 | L34: =((((hV_p(B34+14.696)*$H34)/1000000)*(VLOOKUP($E$8,'CO2 Conversion Factors'!$A$3:$J$20,3,FALSE)))*24)*$J34 -> 4272.686022 | M34: =((((hV_p(B34+14.696)*$H34)/1000000)*(VLOOKUP($E$8,'CO2 Conversion Factors'!$A$3:$J$20,4,FALSE)))*24)*$J34 -> 4049.724396 | N34: =((((hV_p(B34+14.696)*$H34)/1000000)*(VLOOKUP($E$8,'CO2 Conversion Factors'!$A$3:$J$20,5,FALSE)))*24)*$J34 -> 6.559412754 | O34: =((((hV_p(B34+14.696)*$H34)/1000000)*(VLOOKUP($E$8,'CO2 Conversion Factors'!$A$3:$J$20,6,FALSE)))*24)*$J34 -> 2.975299577 | P34: =((((hV_p(B34+14.696)*$H34)/1000000)*(VLOOKUP($E$8,'CO2 Conversion Factors'!$A$3:$J$20,7,FALSE)))*24)*$J34 -> 2.178865802 | S34: XS | U34: 1.939
B35: 15 | D35: 29.696 | E35: 22.88 | F35: 0.125 | G35: 0.015625 | H35: 10.61632 | I35: 0.1061632 | J35: 365 | K35: 929.989632 | L35: =((((hV_p(B35+14.696)*$H35)/1000000)*(VLOOKUP($E$8,'CO2 Conversion Factors'!$A$3:$J$20,3,FALSE)))*24)*$J35 -> 6486.814176 | M35: =((((hV_p(B35+14.696)*$H35)/1000000)*(VLOOKUP($E$8,'CO2 Conversion Factors'!$A$3:$J$20,4,FALSE)))*24)*$J35 -> 6148.312674 | N35: =((((hV_p(B35+14.696)*$H35)/1000000)*(VLOOKUP($E$8,'CO2 Conversion Factors'!$A$3:$J$20,5,FALSE)))*24)*$J35 -> 9.958534612 | O35: =((((hV_p(B35+14.696)*$H35)/1000000)*(VLOOKUP($E$8,'CO2 Conversion Factors'!$A$3:$J$20,6,FALSE)))*24)*$J35 -> 4.517115316 | P35: =((((hV_p(B35+14.696)*$H35)/1000000)*(VLOOKUP($E$8,'CO2 Conversion Factors'!$A$3:$J$20,7,FALSE)))*24)*$J35 -> 3.30796541 | S35: XXS | U35: 1.503
B36: 25 | D36: 39.696 | E36: 22.88 | F36: 0.125 | G36: 0.015625 | H36: 14.19132 | I36: 0.1419132 | J36: 365 | K36: 1243.159632 | L36: =((((hV_p(B36+14.696)*$H36)/1000000)*(VLOOKUP($E$8,'CO2 Conversion Factors'!$A$3:$J$20,3,FALSE)))*24)*$J36 -> 8713.984345 | M36: =((((hV_p(B36+14.696)*$H36)/1000000)*(VLOOKUP($E$8,'CO2 Conversion Factors'!$A$3:$J$20,4,FALSE)))*24)*$J36 -> 8259.262394 | N36: =((((hV_p(B36+14.696)*$H36)/1000000)*(VLOOKUP($E$8,'CO2 Conversion Factors'!$A$3:$J$20,5,FALSE)))*24)*$J36 -> 13.37767853 | O36: =((((hV_p(B36+14.696)*$H36)/1000000)*(VLOOKUP($E$8,'CO2 Conversion Factors'!$A$3:$J$20,6,FALSE)))*24)*$J36 -> 6.068012908 | P36: =((((hV_p(B36+14.696)*$H36)/1000000)*(VLOOKUP($E$8,'CO2 Conversion Factors'!$A$3:$J$20,7,FALSE)))*24)*$J36 -> 4.443715823
B37: 30 | D37: 44.696 | E37: 22.88 | F37: 0.125 | G37: 0.015625 | H37: 15.97882 | I37: 0.1597882 | J37: 365 | K37: 1399.744632 | L37: =((((hV_p(B37+14.696)*$H37)/1000000)*(VLOOKUP($E$8,'CO2 Conversion Factors'!$A$3:$J$20,3,FALSE)))*24)*$J37 -> 9831.254766 | M37: =((((hV_p(B37+14.696)*$H37)/1000000)*(VLOOKUP($E$8,'CO2 Conversion Factors'!$A$3:$J$20,4,FALSE)))*24)*$J37 -> 9318.230279 | N37: =((((hV_p(B37+14.696)*$H37)/1000000)*(VLOOKUP($E$8,'CO2 Conversion Factors'!$A$3:$J$20,5,FALSE)))*24)*$J37 -> 15.0929082 | O37: =((((hV_p(B37+14.696)*$H37)/1000000)*(VLOOKUP($E$8,'CO2 Conversion Factors'!$A$3:$J$20,6,FALSE)))*24)*$J37 -> 6.846028 | P37: =((((hV_p(B37+14.696)*$H37)/1000000)*(VLOOKUP($E$8,'CO2 Conversion Factors'!$A$3:$J$20,7,FALSE)))*24)*$J37 -> 5.013470376 | R37: 2-1/2 | S37: STD | T37: 2.875 | U37: 2.469
B38: 40 | D38: 54.696 | E38: 22.88 | F38: 0.125 | G38: 0.015625 | H38: 19.55382 | I38: 0.1955382 | J38: 365 | K38: 1712.914632 | L38: =((((hV_p(B38+14.696)*$H38)/1000000)*(VLOOKUP($E$8,'CO2 Conversion Factors'!$A$3:$J$20,3,FALSE)))*24)*$J38 -> 12071.65056 | M38: =((((hV_p(B38+14.696)*$H38)/1000000)*(VLOOKUP($E$8,'CO2 Conversion Factors'!$A$3:$J$20,4,FALSE)))*24)*$J38 -> 11441.71547 | N38: =((((hV_p(B38+14.696)*$H38)/1000000)*(VLOOKUP($E$8,'CO2 Conversion Factors'!$A$3:$J$20,5,FALSE)))*24)*$J38 -> 18.53235605 | O38: =((((hV_p(B38+14.696)*$H38)/1000000)*(VLOOKUP($E$8,'CO2 Conversion Factors'!$A$3:$J$20,6,FALSE)))*24)*$J38 -> 8.406135301 | P38: =((((hV_p(B38+14.696)*$H38)/1000000)*(VLOOKUP($E$8,'CO2 Conversion Factors'!$A$3:$J$20,7,FALSE)))*24)*$J38 -> 6.155965226 | S38: XS | U38: 2.323
B39: 50 | D39: 64.696 | E39: 22.88 | F39: 0.125 | G39: 0.015625 | H39: 23.12882 | I39: 0.2312882 | J39: 365 | K39: 2026.084632 | L39: =((((hV_p(B39+14.696)*$H39)/1000000)*(VLOOKUP($E$8,'CO2 Conversion Factors'!$A$3:$J$20,3,FALSE)))*24)*$J39 -> 14318.45059 | M39: =((((hV_p(B39+14.696)*$H39)/1000000)*(VLOOKUP($E$8,'CO2 Conversion Factors'!$A$3:$J$20,4,FALSE)))*24)*$J39 -> 13571.27071 | N39: =((((hV_p(B39+14.696)*$H39)/1000000)*(VLOOKUP($E$8,'CO2 Conversion Factors'!$A$3:$J$20,5,FALSE)))*24)*$J39 -> 21.98163566 | O39: =((((hV_p(B39+14.696)*$H39)/1000000)*(VLOOKUP($E$8,'CO2 Conversion Factors'!$A$3:$J$20,6,FALSE)))*24)*$J39 -> 9.970702215 | P39: =((((hV_p(B39+14.696)*$H39)/1000000)*(VLOOKUP($E$8,'CO2 Conversion Factors'!$A$3:$J$20,7,FALSE)))*24)*$J39 -> 7.301725932
B40: 75 | D40: 89.696 | E40: 22.88 | F40: 0.125 | G40: 0.015625 | H40: 32.06632 | I40: 0.3206632 | J40: 365 | K40: 2809.009632 | L40: =((((hV_p(B40+14.696)*$H40)/1000000)*(VLOOKUP($E$8,'CO2 Conversion Factors'!$A$3:$J$20,3,FALSE)))*24)*$J40 -> 19956.07711 | M40: =((((hV_p(B40+14.696)*$H40)/1000000)*(VLOOKUP($E$8,'CO2 Conversion Factors'!$A$3:$J$20,4,FALSE)))*24)*$J40 -> 18914.70889 | N40: =((((hV_p(B40+14.696)*$H40)/1000000)*(VLOOKUP($E$8,'CO2 Conversion Factors'!$A$3:$J$20,5,FALSE)))*24)*$J40 -> 30.63650032 | O40: =((((hV_p(B40+14.696)*$H40)/1000000)*(VLOOKUP($E$8,'CO2 Conversion Factors'!$A$3:$J$20,6,FALSE)))*24)*$J40 -> 13.89648279 | P40: =((((hV_p(B40+14.696)*$H40)/1000000)*(VLOOKUP($E$8,'CO2 Conversion Factors'!$A$3:$J$20,7,FALSE)))*24)*$J40 -> 10.17664619 | S40: XXS | U40: 1.771
B41: 100 | D41: 114.696 | E41: 22.88 | F41: 0.125 | G41: 0.015625 | H41: 41.00382 | I41: 0.4100382 | J41: 365 | K41: 3591.934632 | L41: =((((hV_p(B41+14.696)*$H41)/1000000)*(VLOOKUP($E$8,'CO2 Conversion Factors'!$A$3:$J$20,3,FALSE)))*24)*$J41 -> 25614.25805 | M41: =((((hV_p(B41+14.696)*$H41)/1000000)*(VLOOKUP($E$8,'CO2 Conversion Factors'!$A$3:$J$20,4,FALSE)))*24)*$J41 -> 24277.62891 | N41: =((((hV_p(B41+14.696)*$H41)/1000000)*(VLOOKUP($E$8,'CO2 Conversion Factors'!$A$3:$J$20,5,FALSE)))*24)*$J41 -> 39.32292007 | O41: =((((hV_p(B41+14.696)*$H41)/1000000)*(VLOOKUP($E$8,'CO2 Conversion Factors'!$A$3:$J$20,6,FALSE)))*24)*$J41 -> 17.83657651 | P41: =((((hV_p(B41+14.696)*$H41)/1000000)*(VLOOKUP($E$8,'CO2 Conversion Factors'!$A$3:$J$20,7,FALSE)))*24)*$J41 -> 13.06204823 | R41: 3 | S41: STD | T41: 3.5 | U41: 3.068
B42: 150 | D42: 164.696 | E42: 22.88 | F42: 0.125 | G42: 0.015625 | H42: 58.87882 | I42: 0.5887882 | J42: 365 | K42: 5157.784632 | L42: =((((hV_p(B42+14.696)*$H42)/1000000)*(VLOOKUP($E$8,'CO2 Conversion Factors'!$A$3:$J$20,3,FALSE)))*24)*$J42 -> 36966.28906 | M42: =((((hV_p(B42+14.696)*$H42)/1000000)*(VLOOKUP($E$8,'CO2 Conversion Factors'!$A$3:$J$20,4,FALSE)))*24)*$J42 -> 35037.27675 | N42: =((((hV_p(B42+14.696)*$H42)/1000000)*(VLOOKUP($E$8,'CO2 Conversion Factors'!$A$3:$J$20,5,FALSE)))*24)*$J42 -> 56.75051868 | O42: =((((hV_p(B42+14.696)*$H42)/1000000)*(VLOOKUP($E$8,'CO2 Conversion Factors'!$A$3:$J$20,6,FALSE)))*24)*$J42 -> 25.74160227 | P42: =((((hV_p(B42+14.696)*$H42)/1000000)*(VLOOKUP($E$8,'CO2 Conversion Factors'!$A$3:$J$20,7,FALSE)))*24)*$J42 -> 18.85104186 | S42: XS | U42: 2.9
B43: 250 | D43: 264.696 | E43: 22.88 | F43: 0.125 | G43: 0.015625 | H43: 94.62882 | I43: 0.9462882 | J43: 365 | K43: 8289.484632 | L43: =((((hV_p(B43+14.696)*$H43)/1000000)*(VLOOKUP($E$8,'CO2 Conversion Factors'!$A$3:$J$20,3,FALSE)))*24)*$J43 -> 59721.22735 | M43: =((((hV_p(B43+14.696)*$H43)/1000000)*(VLOOKUP($E$8,'CO2 Conversion Factors'!$A$3:$J$20,4,FALSE)))*24)*$J43 -> 56604.79382 | N43: =((((hV_p(B43+14.696)*$H43)/1000000)*(VLOOKUP($E$8,'CO2 Conversion Factors'!$A$3:$J$20,5,FALSE)))*24)*$J43 -> 91.68382098 | O43: =((((hV_p(B43+14.696)*$H43)/1000000)*(VLOOKUP($E$8,'CO2 Conversion Factors'!$A$3:$J$20,6,FALSE)))*24)*$J43 -> 41.58708165 | P43: =((((hV_p(B43+14.696)*$H43)/1000000)*(VLOOKUP($E$8,'CO2 Conversion Factors'!$A$3:$J$20,7,FALSE)))*24)*$J43 -> 30.45497358 | S43: XXS | U43: 2.3
B44: 300 | D44: 314.696 | E44: 22.88 | F44: 0.125 | G44: 0.015625 | H44: 112.50382 | I44: 1.1250382 | J44: 365 | K44: 9855.334632 | L44: =((((hV_p(B44+14.696)*$H44)/1000000)*(VLOOKUP($E$8,'CO2 Conversion Factors'!$A$3:$J$20,3,FALSE)))*24)*$J44 -> 71094.74059 | M44: =((((hV_p(B44+14.696)*$H44)/1000000)*(VLOOKUP($E$8,'CO2 Conversion Factors'!$A$3:$J$20,4,FALSE)))*24)*$J44 -> 67384.80288 | N44: =((((hV_p(B44+14.696)*$H44)/1000000)*(VLOOKUP($E$8,'CO2 Conversion Factors'!$A$3:$J$20,5,FALSE)))*24)*$J44 -> 109.144399 | O44: =((((hV_p(B44+14.696)*$H44)/1000000)*(VLOOKUP($E$8,'CO2 Conversion Factors'!$A$3:$J$20,6,FALSE)))*24)*$J44 -> 49.50706663 | P44: =((((hV_p(B44+14.696)*$H44)/1000000)*(VLOOKUP($E$8,'CO2 Conversion Factors'!$A$3:$J$20,7,FALSE)))*24)*$J44 -> 36.25492211 | R44: 3-1/2 | S44: STD | T44: 4 | U44: 3.548
B45: 400 | D45: 414.696 | E45: 22.88 | F45: 0.125 | G45: 0.015625 | H45: 148.25382 | I45: 1.4825382 | J45: 365 | K45: 12987.03463 | L45: =((((hV_p(B45+14.696)*$H45)/1000000)*(VLOOKUP($E$8,'CO2 Conversion Factors'!$A$3:$J$20,3,FALSE)))*24)*$J45 -> 93792.01468 | M45: =((((hV_p(B45+14.696)*$H45)/1000000)*(VLOOKUP($E$8,'CO2 Conversion Factors'!$A$3:$J$20,4,FALSE)))*24)*$J45 -> 88897.66485 | N45: =((((hV_p(B45+14.696)*$H45)/1000000)*(VLOOKUP($E$8,'CO2 Conversion Factors'!$A$3:$J$20,5,FALSE)))*24)*$J45 -> 143.9891755 | O45: =((((hV_p(B45+14.696)*$H45)/1000000)*(VLOOKUP($E$8,'CO2 Conversion Factors'!$A$3:$J$20,6,FALSE)))*24)*$J45 -> 65.31239135 | P45: =((((hV_p(B45+14.696)*$H45)/1000000)*(VLOOKUP($E$8,'CO2 Conversion Factors'!$A$3:$J$20,7,FALSE)))*24)*$J45 -> 47.82944785 | S45: XS | U45: 3.364
B46: 600 | D46: 614.696 | E46: 22.88 | F46: 0.125 | G46: 0.015625 | H46: 219.75382 | I46: 2.1975382 | J46: 365 | K46: 19250.43463 | L46: =((((hV_p(B46+14.696)*$H46)/1000000)*(VLOOKUP($E$8,'CO2 Conversion Factors'!$A$3:$J$20,3,FALSE)))*24)*$J46 -> 138853.2295 | M46: =((((hV_p(B46+14.696)*$H46)/1000000)*(VLOOKUP($E$8,'CO2 Conversion Factors'!$A$3:$J$20,4,FALSE)))*24)*$J46 -> 131607.4498 | N46: =((((hV_p(B46+14.696)*$H46)/1000000)*(VLOOKUP($E$8,'CO2 Conversion Factors'!$A$3:$J$20,5,FALSE)))*24)*$J46 -> 213.1669961 | O46: =((((hV_p(B46+14.696)*$H46)/1000000)*(VLOOKUP($E$8,'CO2 Conversion Factors'!$A$3:$J$20,6,FALSE)))*24)*$J46 -> 96.69092298 | P46: =((((hV_p(B46+14.696)*$H46)/1000000)*(VLOOKUP($E$8,'CO2 Conversion Factors'!$A$3:$J$20,7,FALSE)))*24)*$J46 -> 70.80851524
S47: XXS | U47: 2.728
B48: 3/16" Leak | R48: 4 | S48: STD | T48: 4.5 | U48: 4.026
B49: Pressure | D49: Abs Pressure | E49: Constant | F49: Diameter | G49: D^2 | H49: Steam Loss (pph) | I49: Cost / Hour | J49: Days / Year | K49: Cost / Year | L49: CO2 Emissions / Year | M49: NOX | N49: SO2 | O49: Particulates | P49: Mercury
B50: 5 | D50: =B50+14.696 -> 19.696 | E50: 22.88 | F50: =3/16 -> 0.1875 | G50: =F50^2 -> 0.03515625 | H50: =D50*E50*G50 -> 15.84297 | I50: =(H50/1000)*E$7 -> 0.1584297 | J50: 365 | K50: =I50*24*J50 -> 1387.844172 | L50: =((((hV_p(B50+14.696)*$H50)/1000000)*(VLOOKUP($E$8,'CO2 Conversion Factors'!$A$3:$J$20,3,FALSE)))*24)*$J50 -> 9613.543551 | M50: =((((hV_p(B50+14.696)*$H50)/1000000)*(VLOOKUP($E$8,'CO2 Conversion Factors'!$A$3:$J$20,4,FALSE)))*24)*$J50 -> 9111.879891 | N50: =((((hV_p(B50+14.696)*$H50)/1000000)*(VLOOKUP($E$8,'CO2 Conversion Factors'!$A$3:$J$20,5,FALSE)))*24)*$J50 -> 14.7586787 | O50: =((((hV_p(B50+14.696)*$H50)/1000000)*(VLOOKUP($E$8,'CO2 Conversion Factors'!$A$3:$J$20,6,FALSE)))*24)*$J50 -> 6.694424048 | P50: =((((hV_p(B50+14.696)*$H50)/1000000)*(VLOOKUP($E$8,'CO2 Conversion Factors'!$A$3:$J$20,7,FALSE)))*24)*$J50 -> 4.902448054 | S50: XS | U50: 3.826
B51: 15 | D51: 29.696 | E51: 22.88 | F51: 0.1875 | G51: 0.03515625 | H51: 23.88672 | I51: 0.2388672 | J51: 365 | K51: 2092.476672 | L51: =((((hV_p(B51+14.696)*$H51)/1000000)*(VLOOKUP($E$8,'CO2 Conversion Factors'!$A$3:$J$20,3,FALSE)))*24)*$J51 -> 14595.3319 | M51: =((((hV_p(B51+14.696)*$H51)/1000000)*(VLOOKUP($E$8,'CO2 Conversion Factors'!$A$3:$J$20,4,FALSE)))*24)*$J51 -> 13833.70352 | N51: =((((hV_p(B51+14.696)*$H51)/1000000)*(VLOOKUP($E$8,'CO2 Conversion Factors'!$A$3:$J$20,5,FALSE)))*24)*$J51 -> 22.40670288 | O51: =((((hV_p(B51+14.696)*$H51)/1000000)*(VLOOKUP($E$8,'CO2 Conversion Factors'!$A$3:$J$20,6,FALSE)))*24)*$J51 -> 10.16350946 | P51: =((((hV_p(B51+14.696)*$H51)/1000000)*(VLOOKUP($E$8,'CO2 Conversion Factors'!$A$3:$J$20,7,FALSE)))*24)*$J51 -> 7.442922173 | S51: XXS | U51: 3.152
B52: 25 | D52: 39.696 | E52: 22.88 | F52: 0.1875 | G52: 0.03515625 | H52: 31.93047 | I52: 0.3193047 | J52: 365 | K52: 2797.109172 | L52: =((((hV_p(B52+14.696)*$H52)/1000000)*(VLOOKUP($E$8,'CO2 Conversion Factors'!$A$3:$J$20,3,FALSE)))*24)*$J52 -> 19606.46478 | M52: =((((hV_p(B52+14.696)*$H52)/1000000)*(VLOOKUP($E$8,'CO2 Conversion Factors'!$A$3:$J$20,4,FALSE)))*24)*$J52 -> 18583.34039 | N52: =((((hV_p(B52+14.696)*$H52)/1000000)*(VLOOKUP($E$8,'CO2 Conversion Factors'!$A$3:$J$20,5,FALSE)))*24)*$J52 -> 30.09977668 | O52: =((((hV_p(B52+14.696)*$H52)/1000000)*(VLOOKUP($E$8,'CO2 Conversion Factors'!$A$3:$J$20,6,FALSE)))*24)*$J52 -> 13.65302904 | P52: =((((hV_p(B52+14.696)*$H52)/1000000)*(VLOOKUP($E$8,'CO2 Conversion Factors'!$A$3:$J$20,7,FALSE)))*24)*$J52 -> 9.998360603 | R52: 5 | S52: STD | T52: 5.563 | U52: 5.047
B53: 30 | D53: 44.696 | E53: 22.88 | F53: 0.1875 | G53: 0.03515625 | H53: 35.952345 | I53: 0.35952345 | J53: 365 | K53: 3149.425422 | L53: =((((hV_p(B53+14.696)*$H53)/1000000)*(VLOOKUP($E$8,'CO2 Conversion Factors'!$A$3:$J$20,3,FALSE)))*24)*$J53 -> 22120.32322 | M53: =((((hV_p(B53+14.696)*$H53)/1000000)*(VLOOKUP($E$8,'CO2 Conversion Factors'!$A$3:$J$20,4,FALSE)))*24)*$J53 -> 20966.01813 | N53: =((((hV_p(B53+14.696)*$H53)/1000000)*(VLOOKUP($E$8,'CO2 Conversion Factors'!$A$3:$J$20,5,FALSE)))*24)*$J53 -> 33.95904345 | O53: =((((hV_p(B53+14.696)*$H53)/1000000)*(VLOOKUP($E$8,'CO2 Conversion Factors'!$A$3:$J$20,6,FALSE)))*24)*$J53 -> 15.403563 | P53: =((((hV_p(B53+14.696)*$H53)/1000000)*(VLOOKUP($E$8,'CO2 Conversion Factors'!$A$3:$J$20,7,FALSE)))*24)*$J53 -> 11.28030835 | S53: XS | U53: 4.813
B54: 40 | D54: 54.696 | E54: 22.88 | F54: 0.1875 | G54: 0.03515625 | H54: 43.996095 | I54: 0.43996095 | J54: 365 | K54: 3854.057922 | L54: =((((hV_p(B54+14.696)*$H54)/1000000)*(VLOOKUP($E$8,'CO2 Conversion Factors'!$A$3:$J$20,3,FALSE)))*24)*$J54 -> 27161.21376 | M54: =((((hV_p(B54+14.696)*$H54)/1000000)*(VLOOKUP($E$8,'CO2 Conversion Factors'!$A$3:$J$20,4,FALSE)))*24)*$J54 -> 25743.85981 | N54: =((((hV_p(B54+14.696)*$H54)/1000000)*(VLOOKUP($E$8,'CO2 Conversion Factors'!$A$3:$J$20,5,FALSE)))*24)*$J54 -> 41.6978011 | O54: =((((hV_p(B54+14.696)*$H54)/1000000)*(VLOOKUP($E$8,'CO2 Conversion Factors'!$A$3:$J$20,6,FALSE)))*24)*$J54 -> 18.91380443 | P54: =((((hV_p(B54+14.696)*$H54)/1000000)*(VLOOKUP($E$8,'CO2 Conversion Factors'!$A$3:$J$20,7,FALSE)))*24)*$J54 -> 13.85092176 | S54: XXS | U54: 4.063
B55: 50 | D55: 64.696 | E55: 22.88 | F55: 0.1875 | G55: 0.03515625 | H55: 52.039845 | I55: 0.52039845 | J55: 365 | K55: 4558.690422 | L55: =((((hV_p(B55+14.696)*$H55)/1000000)*(VLOOKUP($E$8,'CO2 Conversion Factors'!$A$3:$J$20,3,FALSE)))*24)*$J55 -> 32216.51383 | M55: =((((hV_p(B55+14.696)*$H55)/1000000)*(VLOOKUP($E$8,'CO2 Conversion Factors'!$A$3:$J$20,4,FALSE)))*24)*$J55 -> 30535.3591 | N55: =((((hV_p(B55+14.696)*$H55)/1000000)*(VLOOKUP($E$8,'CO2 Conversion Factors'!$A$3:$J$20,5,FALSE)))*24)*$J55 -> 49.45868023 | O55: =((((hV_p(B55+14.696)*$H55)/1000000)*(VLOOKUP($E$8,'CO2 Conversion Factors'!$A$3:$J$20,6,FALSE)))*24)*$J55 -> 22.43407998 | P55: =((((hV_p(B55+14.696)*$H55)/1000000)*(VLOOKUP($E$8,'CO2 Conversion Factors'!$A$3:$J$20,7,FALSE)))*24)*$J55 -> 16.42888335 | R55: 6 | S55: STD | T55: 6.625 | U55: 6.065
B56: 75 | D56: 89.696 | E56: 22.88 | F56: 0.1875 | G56: 0.03515625 | H56: 72.14922 | I56: 0.7214922 | J56: 365 | K56: 6320.271672 | L56: =((((hV_p(B56+14.696)*$H56)/1000000)*(VLOOKUP($E$8,'CO2 Conversion Factors'!$A$3:$J$20,3,FALSE)))*24)*$J56 -> 44901.17349 | M56: =((((hV_p(B56+14.696)*$H56)/1000000)*(VLOOKUP($E$8,'CO2 Conversion Factors'!$A$3:$J$20,4,FALSE)))*24)*$J56 -> 42558.09501 | N56: =((((hV_p(B56+14.696)*$H56)/1000000)*(VLOOKUP($E$8,'CO2 Conversion Factors'!$A$3:$J$20,5,FALSE)))*24)*$J56 -> 68.93212572 | O56: =((((hV_p(B56+14.696)*$H56)/1000000)*(VLOOKUP($E$8,'CO2 Conversion Factors'!$A$3:$J$20,6,FALSE)))*24)*$J56 -> 31.26708627 | P56: =((((hV_p(B56+14.696)*$H56)/1000000)*(VLOOKUP($E$8,'CO2 Conversion Factors'!$A$3:$J$20,7,FALSE)))*24)*$J56 -> 22.89745393 | S56: XS | U56: 5.761
B57: 100 | D57: 114.696 | E57: 22.88 | F57: 0.1875 | G57: 0.03515625 | H57: 92.258595 | I57: 0.92258595 | J57: 365 | K57: 8081.852922 | L57: =((((hV_p(B57+14.696)*$H57)/1000000)*(VLOOKUP($E$8,'CO2 Conversion Factors'!$A$3:$J$20,3,FALSE)))*24)*$J57 -> 57632.08062 | M57: =((((hV_p(B57+14.696)*$H57)/1000000)*(VLOOKUP($E$8,'CO2 Conversion Factors'!$A$3:$J$20,4,FALSE)))*24)*$J57 -> 54624.66506 | N57: =((((hV_p(B57+14.696)*$H57)/1000000)*(VLOOKUP($E$8,'CO2 Conversion Factors'!$A$3:$J$20,5,FALSE)))*24)*$J57 -> 88.47657016 | O57: =((((hV_p(B57+14.696)*$H57)/1000000)*(VLOOKUP($E$8,'CO2 Conversion Factors'!$A$3:$J$20,6,FALSE)))*24)*$J57 -> 40.13229715 | P57: =((((hV_p(B57+14.696)*$H57)/1000000)*(VLOOKUP($E$8,'CO2 Conversion Factors'!$A$3:$J$20,7,FALSE)))*24)*$J57 -> 29.38960852 | S57: XXS | U57: 4.897
B58: 150 | D58: 164.696 | E58: 22.88 | F58: 0.1875 | G58: 0.03515625 | H58: 132.477345 | I58: 1.32477345 | J58: 365 | K58: 11605.01542 | L58: =((((hV_p(B58+14.696)*$H58)/1000000)*(VLOOKUP($E$8,'CO2 Conversion Factors'!$A$3:$J$20,3,FALSE)))*24)*$J58 -> 83174.15038 | M58: =((((hV_p(B58+14.696)*$H58)/1000000)*(VLOOKUP($E$8,'CO2 Conversion Factors'!$A$3:$J$20,4,FALSE)))*24)*$J58 -> 78833.87268 | N58: =((((hV_p(B58+14.696)*$H58)/1000000)*(VLOOKUP($E$8,'CO2 Conversion Factors'!$A$3:$J$20,5,FALSE)))*24)*$J58 -> 127.688667 | O58: =((((hV_p(B58+14.696)*$H58)/1000000)*(VLOOKUP($E$8,'CO2 Conversion Factors'!$A$3:$J$20,6,FALSE)))*24)*$J58 -> 57.9186051 | P58: =((((hV_p(B58+14.696)*$H58)/1000000)*(VLOOKUP($E$8,'CO2 Conversion Factors'!$A$3:$J$20,7,FALSE)))*24)*$J58 -> 42.41484418 | R58: 8 | S58: STD | T58: 8.625 | U58: 7.981
B59: 250 | D59: 264.696 | E59: 22.88 | F59: 0.1875 | G59: 0.03515625 | H59: 212.914845 | I59: 2.12914845 | J59: 365 | K59: 18651.34042 | L59: =((((hV_p(B59+14.696)*$H59)/1000000)*(VLOOKUP($E$8,'CO2 Conversion Factors'!$A$3:$J$20,3,FALSE)))*24)*$J59 -> 134372.7615 | M59: =((((hV_p(B59+14.696)*$H59)/1000000)*(VLOOKUP($E$8,'CO2 Conversion Factors'!$A$3:$J$20,4,FALSE)))*24)*$J59 -> 127360.7861 | N59: =((((hV_p(B59+14.696)*$H59)/1000000)*(VLOOKUP($E$8,'CO2 Conversion Factors'!$A$3:$J$20,5,FALSE)))*24)*$J59 -> 206.2885972 | O59: =((((hV_p(B59+14.696)*$H59)/1000000)*(VLOOKUP($E$8,'CO2 Conversion Factors'!$A$3:$J$20,6,FALSE)))*24)*$J59 -> 93.57093371 | P59: =((((hV_p(B59+14.696)*$H59)/1000000)*(VLOOKUP($E$8,'CO2 Conversion Factors'!$A$3:$J$20,7,FALSE)))*24)*$J59 -> 68.52369055
B60: 300 | D60: 314.696 | E60: 22.88 | F60: 0.1875 | G60: 0.03515625 | H60: 253.133595 | I60: 2.53133595 | J60: 365 | K60: 22174.50292 | L60: =((((hV_p(B60+14.696)*$H60)/1000000)*(VLOOKUP($E$8,'CO2 Conversion Factors'!$A$3:$J$20,3,FALSE)))*24)*$J60 -> 159963.1663 | M60: =((((hV_p(B60+14.696)*$H60)/1000000)*(VLOOKUP($E$8,'CO2 Conversion Factors'!$A$3:$J$20,4,FALSE)))*24)*$J60 -> 151615.8065 | N60: =((((hV_p(B60+14.696)*$H60)/1000000)*(VLOOKUP($E$8,'CO2 Conversion Factors'!$A$3:$J$20,5,FALSE)))*24)*$J60 -> 245.5748978 | O60: =((((hV_p(B60+14.696)*$H60)/1000000)*(VLOOKUP($E$8,'CO2 Conversion Factors'!$A$3:$J$20,6,FALSE)))*24)*$J60 -> 111.3908999 | P60: =((((hV_p(B60+14.696)*$H60)/1000000)*(VLOOKUP($E$8,'CO2 Conversion Factors'!$A$3:$J$20,7,FALSE)))*24)*$J60 -> 81.57357476 | S60: XS | U60: 7.825
B61: 400 | D61: 414.696 | E61: 22.88 | F61: 0.1875 | G61: 0.03515625 | H61: 333.571095 | I61: 3.33571095 | J61: 365 | K61: 29220.82792 | L61: =((((hV_p(B61+14.696)*$H61)/1000000)*(VLOOKUP($E$8,'CO2 Conversion Factors'!$A$3:$J$20,3,FALSE)))*24)*$J61 -> 211032.033 | M61: =((((hV_p(B61+14.696)*$H61)/1000000)*(VLOOKUP($E$8,'CO2 Conversion Factors'!$A$3:$J$20,4,FALSE)))*24)*$J61 -> 200019.7459 | N61: =((((hV_p(B61+14.696)*$H61)/1000000)*(VLOOKUP($E$8,'CO2 Conversion Factors'!$A$3:$J$20,5,FALSE)))*24)*$J61 -> 323.9756448 | O61: =((((hV_p(B61+14.696)*$H61)/1000000)*(VLOOKUP($E$8,'CO2 Conversion Factors'!$A$3:$J$20,6,FALSE)))*24)*$J61 -> 146.9528805 | P61: =((((hV_p(B61+14.696)*$H61)/1000000)*(VLOOKUP($E$8,'CO2 Conversion Factors'!$A$3:$J$20,7,FALSE)))*24)*$J61 -> 107.6162577 | S61: XXS | U61: 6.875
B62: 600 | D62: 614.696 | E62: 22.88 | F62: 0.1875 | G62: 0.03515625 | H62: 494.446095 | I62: 4.94446095 | J62: 365 | K62: 43313.47792 | L62: =((((hV_p(B62+14.696)*$H62)/1000000)*(VLOOKUP($E$8,'CO2 Conversion Factors'!$A$3:$J$20,3,FALSE)))*24)*$J62 -> 312419.7665 | M62: =((((hV_p(B62+14.696)*$H62)/1000000)*(VLOOKUP($E$8,'CO2 Conversion Factors'!$A$3:$J$20,4,FALSE)))*24)*$J62 -> 296116.762 | N62: =((((hV_p(B62+14.696)*$H62)/1000000)*(VLOOKUP($E$8,'CO2 Conversion Factors'!$A$3:$J$20,5,FALSE)))*24)*$J62 -> 479.6257413 | O62: =((((hV_p(B62+14.696)*$H62)/1000000)*(VLOOKUP($E$8,'CO2 Conversion Factors'!$A$3:$J$20,6,FALSE)))*24)*$J62 -> 217.5545767 | P62: =((((hV_p(B62+14.696)*$H62)/1000000)*(VLOOKUP($E$8,'CO2 Conversion Factors'!$A$3:$J$20,7,FALSE)))*24)*$J62 -> 159.3191593
R63: 10 | S63: STD | T63: 10.75 | U63: 10.02
B64: 1/4" Leak | S64: XS | U64: 9.75
B65: Pressure | D65: Abs Pressure | E65: Constant | F65: Diameter | G65: D^2 | H65: Steam Loss (pph) | I65: Cost / Hour | J65: Days / Year | K65: Cost / Year | L65: CO2 Emissions / Year | M65: NOX | N65: SO2 | O65: Particulates | P65: Mercury
B66: 5 | D66: =B66+14.696 -> 19.696 | E66: 22.88 | F66: =4/16 -> 0.25 | G66: =F66^2 -> 0.0625 | H66: =D66*E66*G66 -> 28.16528 | I66: =(H66/1000)*E$7 -> 0.2816528 | J66: 365 | K66: =I66*24*J66 -> 2467.278528 | L66: =((((hV_p(B66+14.696)*$H66)/1000000)*(VLOOKUP($E$8,'CO2 Conversion Factors'!$A$3:$J$20,3,FALSE)))*24)*$J66 -> 17090.74409 | M66: =((((hV_p(B66+14.696)*$H66)/1000000)*(VLOOKUP($E$8,'CO2 Conversion Factors'!$A$3:$J$20,4,FALSE)))*24)*$J66 -> 16198.89758 | N66: =((((hV_p(B66+14.696)*$H66)/1000000)*(VLOOKUP($E$8,'CO2 Conversion Factors'!$A$3:$J$20,5,FALSE)))*24)*$J66 -> 26.23765102 | O66: =((((hV_p(B66+14.696)*$H66)/1000000)*(VLOOKUP($E$8,'CO2 Conversion Factors'!$A$3:$J$20,6,FALSE)))*24)*$J66 -> 11.90119831 | P66: =((((hV_p(B66+14.696)*$H66)/1000000)*(VLOOKUP($E$8,'CO2 Conversion Factors'!$A$3:$J$20,7,FALSE)))*24)*$J66 -> 8.715463207 | S66: XXS
B67: 15 | D67: 29.696 | E67: 22.88 | F67: 0.25 | G67: 0.0625 | H67: 42.46528 | I67: 0.4246528 | J67: 365 | K67: 3719.958528 | L67: =((((hV_p(B67+14.696)*$H67)/1000000)*(VLOOKUP($E$8,'CO2 Conversion Factors'!$A$3:$J$20,3,FALSE)))*24)*$J67 -> 25947.2567 | M67: =((((hV_p(B67+14.696)*$H67)/1000000)*(VLOOKUP($E$8,'CO2 Conversion Factors'!$A$3:$J$20,4,FALSE)))*24)*$J67 -> 24593.25069 | N67: =((((hV_p(B67+14.696)*$H67)/1000000)*(VLOOKUP($E$8,'CO2 Conversion Factors'!$A$3:$J$20,5,FALSE)))*24)*$J67 -> 39.83413845 | O67: =((((hV_p(B67+14.696)*$H67)/1000000)*(VLOOKUP($E$8,'CO2 Conversion Factors'!$A$3:$J$20,6,FALSE)))*24)*$J67 -> 18.06846127 | P67: =((((hV_p(B67+14.696)*$H67)/1000000)*(VLOOKUP($E$8,'CO2 Conversion Factors'!$A$3:$J$20,7,FALSE)))*24)*$J67 -> 13.23186164 | R67: 12 | S67: STD | T67: 12.75 | U67: 12
B68: 25 | D68: 39.696 | E68: 22.88 | F68: 0.25 | G68: 0.0625 | H68: 56.76528 | I68: 0.5676528 | J68: 365 | K68: 4972.638528 | L68: =((((hV_p(B68+14.696)*$H68)/1000000)*(VLOOKUP($E$8,'CO2 Conversion Factors'!$A$3:$J$20,3,FALSE)))*24)*$J68 -> 34855.93738 | M68: =((((hV_p(B68+14.696)*$H68)/1000000)*(VLOOKUP($E$8,'CO2 Conversion Factors'!$A$3:$J$20,4,FALSE)))*24)*$J68 -> 33037.04958 | N68: =((((hV_p(B68+14.696)*$H68)/1000000)*(VLOOKUP($E$8,'CO2 Conversion Factors'!$A$3:$J$20,5,FALSE)))*24)*$J68 -> 53.5107141 | O68: =((((hV_p(B68+14.696)*$H68)/1000000)*(VLOOKUP($E$8,'CO2 Conversion Factors'!$A$3:$J$20,6,FALSE)))*24)*$J68 -> 24.27205163 | P68: =((((hV_p(B68+14.696)*$H68)/1000000)*(VLOOKUP($E$8,'CO2 Conversion Factors'!$A$3:$J$20,7,FALSE)))*24)*$J68 -> 17.77486329
B69: 30 | D69: 44.696 | E69: 22.88 | F69: 0.25 | G69: 0.0625 | H69: 63.91528 | I69: 0.6391528 | J69: 365 | K69: 5598.978528 | L69: =((((hV_p(B69+14.696)*$H69)/1000000)*(VLOOKUP($E$8,'CO2 Conversion Factors'!$A$3:$J$20,3,FALSE)))*24)*$J69 -> 39325.01906 | M69: =((((hV_p(B69+14.696)*$H69)/1000000)*(VLOOKUP($E$8,'CO2 Conversion Factors'!$A$3:$J$20,4,FALSE)))*24)*$J69 -> 37272.92112 | N69: =((((hV_p(B69+14.696)*$H69)/1000000)*(VLOOKUP($E$8,'CO2 Conversion Factors'!$A$3:$J$20,5,FALSE)))*24)*$J69 -> 60.3716328 | O69: =((((hV_p(B69+14.696)*$H69)/1000000)*(VLOOKUP($E$8,'CO2 Conversion Factors'!$A$3:$J$20,6,FALSE)))*24)*$J69 -> 27.384112 | P69: =((((hV_p(B69+14.696)*$H69)/1000000)*(VLOOKUP($E$8,'CO2 Conversion Factors'!$A$3:$J$20,7,FALSE)))*24)*$J69 -> 20.0538815 | S69: XS | U69: 11.75
B70: 40 | D70: 54.696 | E70: 22.88 | F70: 0.25 | G70: 0.0625 | H70: 78.21528 | I70: 0.7821528 | J70: 365 | K70: 6851.658528 | L70: =((((hV_p(B70+14.696)*$H70)/1000000)*(VLOOKUP($E$8,'CO2 Conversion Factors'!$A$3:$J$20,3,FALSE)))*24)*$J70 -> 48286.60224 | M70: =((((hV_p(B70+14.696)*$H70)/1000000)*(VLOOKUP($E$8,'CO2 Conversion Factors'!$A$3:$J$20,4,FALSE)))*24)*$J70 -> 45766.86189 | N70: =((((hV_p(B70+14.696)*$H70)/1000000)*(VLOOKUP($E$8,'CO2 Conversion Factors'!$A$3:$J$20,5,FALSE)))*24)*$J70 -> 74.12942418 | O70: =((((hV_p(B70+14.696)*$H70)/1000000)*(VLOOKUP($E$8,'CO2 Conversion Factors'!$A$3:$J$20,6,FALSE)))*24)*$J70 -> 33.6245412 | P70: =((((hV_p(B70+14.696)*$H70)/1000000)*(VLOOKUP($E$8,'CO2 Conversion Factors'!$A$3:$J$20,7,FALSE)))*24)*$J70 -> 24.6238609 | S70: XXS
B71: 50 | D71: 64.696 | E71: 22.88 | F71: 0.25 | G71: 0.0625 | H71: 92.51528 | I71: 0.9251528 | J71: 365 | K71: 8104.338528 | L71: =((((hV_p(B71+14.696)*$H71)/1000000)*(VLOOKUP($E$8,'CO2 Conversion Factors'!$A$3:$J$20,3,FALSE)))*24)*$J71 -> 57273.80236 | M71: =((((hV_p(B71+14.696)*$H71)/1000000)*(VLOOKUP($E$8,'CO2 Conversion Factors'!$A$3:$J$20,4,FALSE)))*24)*$J71 -> 54285.08284 | N71: =((((hV_p(B71+14.696)*$H71)/1000000)*(VLOOKUP($E$8,'CO2 Conversion Factors'!$A$3:$J$20,5,FALSE)))*24)*$J71 -> 87.92654263 | O71: =((((hV_p(B71+14.696)*$H71)/1000000)*(VLOOKUP($E$8,'CO2 Conversion Factors'!$A$3:$J$20,6,FALSE)))*24)*$J71 -> 39.88280886 | P71: =((((hV_p(B71+14.696)*$H71)/1000000)*(VLOOKUP($E$8,'CO2 Conversion Factors'!$A$3:$J$20,7,FALSE)))*24)*$J71 -> 29.20690373 | R71: >12 OD is nominal size
B72: 75 | D72: 89.696 | E72: 22.88 | F72: 0.25 | G72: 0.0625 | H72: 128.26528 | I72: 1.2826528 | J72: 365 | K72: 11236.03853 | L72: =((((hV_p(B72+14.696)*$H72)/1000000)*(VLOOKUP($E$8,'CO2 Conversion Factors'!$A$3:$J$20,3,FALSE)))*24)*$J72 -> 79824.30842 | M72: =((((hV_p(B72+14.696)*$H72)/1000000)*(VLOOKUP($E$8,'CO2 Conversion Factors'!$A$3:$J$20,4,FALSE)))*24)*$J72 -> 75658.83557 | N72: =((((hV_p(B72+14.696)*$H72)/1000000)*(VLOOKUP($E$8,'CO2 Conversion Factors'!$A$3:$J$20,5,FALSE)))*24)*$J72 -> 122.5460013 | O72: =((((hV_p(B72+14.696)*$H72)/1000000)*(VLOOKUP($E$8,'CO2 Conversion Factors'!$A$3:$J$20,6,FALSE)))*24)*$J72 -> 55.58593115 | P72: =((((hV_p(B72+14.696)*$H72)/1000000)*(VLOOKUP($E$8,'CO2 Conversion Factors'!$A$3:$J$20,7,FALSE)))*24)*$J72 -> 40.70658477
B73: 100 | D73: 114.696 | E73: 22.88 | F73: 0.25 | G73: 0.0625 | H73: 164.01528 | I73: 1.6401528 | J73: 365 | K73: 14367.73853 | L73: =((((hV_p(B73+14.696)*$H73)/1000000)*(VLOOKUP($E$8,'CO2 Conversion Factors'!$A$3:$J$20,3,FALSE)))*24)*$J73 -> 102457.0322 | M73: =((((hV_p(B73+14.696)*$H73)/1000000)*(VLOOKUP($E$8,'CO2 Conversion Factors'!$A$3:$J$20,4,FALSE)))*24)*$J73 -> 97110.51566 | N73: =((((hV_p(B73+14.696)*$H73)/1000000)*(VLOOKUP($E$8,'CO2 Conversion Factors'!$A$3:$J$20,5,FALSE)))*24)*$J73 -> 157.2916803 | O73: =((((hV_p(B73+14.696)*$H73)/1000000)*(VLOOKUP($E$8,'CO2 Conversion Factors'!$A$3:$J$20,6,FALSE)))*24)*$J73 -> 71.34630604 | P73: =((((hV_p(B73+14.696)*$H73)/1000000)*(VLOOKUP($E$8,'CO2 Conversion Factors'!$A$3:$J$20,7,FALSE)))*24)*$J73 -> 52.24819293 | R73: STD = 0.375 wall thickness
B74: 150 | D74: 164.696 | E74: 22.88 | F74: 0.25 | G74: 0.0625 | H74: 235.51528 | I74: 2.3551528 | J74: 365 | K74: 20631.13853 | L74: =((((hV_p(B74+14.696)*$H74)/1000000)*(VLOOKUP($E$8,'CO2 Conversion Factors'!$A$3:$J$20,3,FALSE)))*24)*$J74 -> 147865.1562 | M74: =((((hV_p(B74+14.696)*$H74)/1000000)*(VLOOKUP($E$8,'CO2 Conversion Factors'!$A$3:$J$20,4,FALSE)))*24)*$J74 -> 140149.107 | N74: =((((hV_p(B74+14.696)*$H74)/1000000)*(VLOOKUP($E$8,'CO2 Conversion Factors'!$A$3:$J$20,5,FALSE)))*24)*$J74 -> 227.0020747 | O74: =((((hV_p(B74+14.696)*$H74)/1000000)*(VLOOKUP($E$8,'CO2 Conversion Factors'!$A$3:$J$20,6,FALSE)))*24)*$J74 -> 102.9664091 | P74: =((((hV_p(B74+14.696)*$H74)/1000000)*(VLOOKUP($E$8,'CO2 Conversion Factors'!$A$3:$J$20,7,FALSE)))*24)*$J74 -> 75.40416742 | R74: XS = 0.500 wall thickness
B75: 250 | D75: 264.696 | E75: 22.88 | F75: 0.25 | G75: 0.0625 | H75: 378.51528 | I75: 3.7851528 | J75: 365 | K75: 33157.93853 | L75: =((((hV_p(B75+14.696)*$H75)/1000000)*(VLOOKUP($E$8,'CO2 Conversion Factors'!$A$3:$J$20,3,FALSE)))*24)*$J75 -> 238884.9094 | M75: =((((hV_p(B75+14.696)*$H75)/1000000)*(VLOOKUP($E$8,'CO2 Conversion Factors'!$A$3:$J$20,4,FALSE)))*24)*$J75 -> 226419.1753 | N75: =((((hV_p(B75+14.696)*$H75)/1000000)*(VLOOKUP($E$8,'CO2 Conversion Factors'!$A$3:$J$20,5,FALSE)))*24)*$J75 -> 366.7352839 | O75: =((((hV_p(B75+14.696)*$H75)/1000000)*(VLOOKUP($E$8,'CO2 Conversion Factors'!$A$3:$J$20,6,FALSE)))*24)*$J75 -> 166.3483266 | P75: =((((hV_p(B75+14.696)*$H75)/1000000)*(VLOOKUP($E$8,'CO2 Conversion Factors'!$A$3:$J$20,7,FALSE)))*24)*$J75 -> 121.8198943
B76: 300 | D76: 314.696 | E76: 22.88 | F76: 0.25 | G76: 0.0625 | H76: 450.01528 | I76: 4.5001528 | J76: 365 | K76: 39421.33853 | L76: =((((hV_p(B76+14.696)*$H76)/1000000)*(VLOOKUP($E$8,'CO2 Conversion Factors'!$A$3:$J$20,3,FALSE)))*24)*$J76 -> 284378.9624 | M76: =((((hV_p(B76+14.696)*$H76)/1000000)*(VLOOKUP($E$8,'CO2 Conversion Factors'!$A$3:$J$20,4,FALSE)))*24)*$J76 -> 269539.2115 | N76: =((((hV_p(B76+14.696)*$H76)/1000000)*(VLOOKUP($E$8,'CO2 Conversion Factors'!$A$3:$J$20,5,FALSE)))*24)*$J76 -> 436.5775961 | O76: =((((hV_p(B76+14.696)*$H76)/1000000)*(VLOOKUP($E$8,'CO2 Conversion Factors'!$A$3:$J$20,6,FALSE)))*24)*$J76 -> 198.0282665 | P76: =((((hV_p(B76+14.696)*$H76)/1000000)*(VLOOKUP($E$8,'CO2 Conversion Factors'!$A$3:$J$20,7,FALSE)))*24)*$J76 -> 145.0196885
B77: 400 | D77: 414.696 | E77: 22.88 | F77: 0.25 | G77: 0.0625 | H77: 593.01528 | I77: 5.9301528 | J77: 365 | K77: 51948.13853 | L77: =((((hV_p(B77+14.696)*$H77)/1000000)*(VLOOKUP($E$8,'CO2 Conversion Factors'!$A$3:$J$20,3,FALSE)))*24)*$J77 -> 375168.0587 | M77: =((((hV_p(B77+14.696)*$H77)/1000000)*(VLOOKUP($E$8,'CO2 Conversion Factors'!$A$3:$J$20,4,FALSE)))*24)*$J77 -> 355590.6594 | N77: =((((hV_p(B77+14.696)*$H77)/1000000)*(VLOOKUP($E$8,'CO2 Conversion Factors'!$A$3:$J$20,5,FALSE)))*24)*$J77 -> 575.9567018 | O77: =((((hV_p(B77+14.696)*$H77)/1000000)*(VLOOKUP($E$8,'CO2 Conversion Factors'!$A$3:$J$20,6,FALSE)))*24)*$J77 -> 261.2495654 | P77: =((((hV_p(B77+14.696)*$H77)/1000000)*(VLOOKUP($E$8,'CO2 Conversion Factors'!$A$3:$J$20,7,FALSE)))*24)*$J77 -> 191.3177914
B78: 600 | D78: 614.696 | E78: 22.88 | F78: 0.25 | G78: 0.0625 | H78: 879.01528 | I78: 8.7901528 | J78: 365 | K78: 77001.73853 | L78: =((((hV_p(B78+14.696)*$H78)/1000000)*(VLOOKUP($E$8,'CO2 Conversion Factors'!$A$3:$J$20,3,FALSE)))*24)*$J78 -> 555412.9182 | M78: =((((hV_p(B78+14.696)*$H78)/1000000)*(VLOOKUP($E$8,'CO2 Conversion Factors'!$A$3:$J$20,4,FALSE)))*24)*$J78 -> 526429.7992 | N78: =((((hV_p(B78+14.696)*$H78)/1000000)*(VLOOKUP($E$8,'CO2 Conversion Factors'!$A$3:$J$20,5,FALSE)))*24)*$J78 -> 852.6679846 | O78: =((((hV_p(B78+14.696)*$H78)/1000000)*(VLOOKUP($E$8,'CO2 Conversion Factors'!$A$3:$J$20,6,FALSE)))*24)*$J78 -> 386.7636919 | P78: =((((hV_p(B78+14.696)*$H78)/1000000)*(VLOOKUP($E$8,'CO2 Conversion Factors'!$A$3:$J$20,7,FALSE)))*24)*$J78 -> 283.234061
B80: 3/8" Leak
B81: Pressure | D81: Abs Pressure | E81: Constant | F81: Diameter | G81: D^2 | H81: Steam Loss (pph) | I81: Cost / Hour | J81: Days / Year | K81: Cost / Year | L81: CO2 Emissions / Year | M81: NOX | N81: SO2 | O81: Particulates | P81: Mercury
B82: 5 | D82: =B82+14.696 -> 19.696 | E82: 22.88 | F82: 0.375 | G82: =F82^2 -> 0.140625 | H82: =D82*E82*G82 -> 63.37188 | I82: =(H82/1000)*E$7 -> 0.6337188 | J82: 365 | K82: =I82*24*J82 -> 5551.376688 | L82: =((((hV_p(B82+14.696)*$H82)/1000000)*(VLOOKUP($E$8,'CO2 Conversion Factors'!$A$3:$J$20,3,FALSE)))*24)*$J82 -> 38454.1742 | M82: =((((hV_p(B82+14.696)*$H82)/1000000)*(VLOOKUP($E$8,'CO2 Conversion Factors'!$A$3:$J$20,4,FALSE)))*24)*$J82 -> 36447.51957 | N82: =((((hV_p(B82+14.696)*$H82)/1000000)*(VLOOKUP($E$8,'CO2 Conversion Factors'!$A$3:$J$20,5,FALSE)))*24)*$J82 -> 59.03471479 | O82: =((((hV_p(B82+14.696)*$H82)/1000000)*(VLOOKUP($E$8,'CO2 Conversion Factors'!$A$3:$J$20,6,FALSE)))*24)*$J82 -> 26.77769619 | P82: =((((hV_p(B82+14.696)*$H82)/1000000)*(VLOOKUP($E$8,'CO2 Conversion Factors'!$A$3:$J$20,7,FALSE)))*24)*$J82 -> 19.60979222
B83: 15 | D83: 29.696 | E83: 22.88 | F83: 0.375 | G83: 0.140625 | H83: 95.54688 | I83: 0.9554688 | J83: 365 | K83: 8369.906688 | L83: =((((hV_p(B83+14.696)*$H83)/1000000)*(VLOOKUP($E$8,'CO2 Conversion Factors'!$A$3:$J$20,3,FALSE)))*24)*$J83 -> 58381.32758 | M83: =((((hV_p(B83+14.696)*$H83)/1000000)*(VLOOKUP($E$8,'CO2 Conversion Factors'!$A$3:$J$20,4,FALSE)))*24)*$J83 -> 55334.81406 | N83: =((((hV_p(B83+14.696)*$H83)/1000000)*(VLOOKUP($E$8,'CO2 Conversion Factors'!$A$3:$J$20,5,FALSE)))*24)*$J83 -> 89.62681151 | O83: =((((hV_p(B83+14.696)*$H83)/1000000)*(VLOOKUP($E$8,'CO2 Conversion Factors'!$A$3:$J$20,6,FALSE)))*24)*$J83 -> 40.65403785 | P83: =((((hV_p(B83+14.696)*$H83)/1000000)*(VLOOKUP($E$8,'CO2 Conversion Factors'!$A$3:$J$20,7,FALSE)))*24)*$J83 -> 29.77168869
B84: 25 | D84: 39.696 | E84: 22.88 | F84: 0.375 | G84: 0.140625 | H84: 127.72188 | I84: 1.2772188 | J84: 365 | K84: 11188.43669 | L84: =((((hV_p(B84+14.696)*$H84)/1000000)*(VLOOKUP($E$8,'CO2 Conversion Factors'!$A$3:$J$20,3,FALSE)))*24)*$J84 -> 78425.8591 | M84: =((((hV_p(B84+14.696)*$H84)/1000000)*(VLOOKUP($E$8,'CO2 Conversion Factors'!$A$3:$J$20,4,FALSE)))*24)*$J84 -> 74333.36155 | N84: =((((hV_p(B84+14.696)*$H84)/1000000)*(VLOOKUP($E$8,'CO2 Conversion Factors'!$A$3:$J$20,5,FALSE)))*24)*$J84 -> 120.3991067 | O84: =((((hV_p(B84+14.696)*$H84)/1000000)*(VLOOKUP($E$8,'CO2 Conversion Factors'!$A$3:$J$20,6,FALSE)))*24)*$J84 -> 54.61211617 | P84: =((((hV_p(B84+14.696)*$H84)/1000000)*(VLOOKUP($E$8,'CO2 Conversion Factors'!$A$3:$J$20,7,FALSE)))*24)*$J84 -> 39.99344241
B85: 30 | D85: 44.696 | E85: 22.88 | F85: 0.375 | G85: 0.140625 | H85: 143.80938 | I85: 1.4380938 | J85: 365 | K85: 12597.70169 | L85: =((((hV_p(B85+14.696)*$H85)/1000000)*(VLOOKUP($E$8,'CO2 Conversion Factors'!$A$3:$J$20,3,FALSE)))*24)*$J85 -> 88481.29289 | M85: =((((hV_p(B85+14.696)*$H85)/1000000)*(VLOOKUP($E$8,'CO2 Conversion Factors'!$A$3:$J$20,4,FALSE)))*24)*$J85 -> 83864.07251 | N85: =((((hV_p(B85+14.696)*$H85)/1000000)*(VLOOKUP($E$8,'CO2 Conversion Factors'!$A$3:$J$20,5,FALSE)))*24)*$J85 -> 135.8361738 | O85: =((((hV_p(B85+14.696)*$H85)/1000000)*(VLOOKUP($E$8,'CO2 Conversion Factors'!$A$3:$J$20,6,FALSE)))*24)*$J85 -> 61.614252 | P85: =((((hV_p(B85+14.696)*$H85)/1000000)*(VLOOKUP($E$8,'CO2 Conversion Factors'!$A$3:$J$20,7,FALSE)))*24)*$J85 -> 45.12123338
B86: 40 | D86: 54.696 | E86: 22.88 | F86: 0.375 | G86: 0.140625 | H86: 175.98438 | I86: 1.7598438 | J86: 365 | K86: 15416.23169 | L86: =((((hV_p(B86+14.696)*$H86)/1000000)*(VLOOKUP($E$8,'CO2 Conversion Factors'!$A$3:$J$20,3,FALSE)))*24)*$J86 -> 108644.855 | M86: =((((hV_p(B86+14.696)*$H86)/1000000)*(VLOOKUP($E$8,'CO2 Conversion Factors'!$A$3:$J$20,4,FALSE)))*24)*$J86 -> 102975.4392 | N86: =((((hV_p(B86+14.696)*$H86)/1000000)*(VLOOKUP($E$8,'CO2 Conversion Factors'!$A$3:$J$20,5,FALSE)))*24)*$J86 -> 166.7912044 | O86: =((((hV_p(B86+14.696)*$H86)/1000000)*(VLOOKUP($E$8,'CO2 Conversion Factors'!$A$3:$J$20,6,FALSE)))*24)*$J86 -> 75.65521771 | P86: =((((hV_p(B86+14.696)*$H86)/1000000)*(VLOOKUP($E$8,'CO2 Conversion Factors'!$A$3:$J$20,7,FALSE)))*24)*$J86 -> 55.40368703
B87: 50 | D87: 64.696 | E87: 22.88 | F87: 0.375 | G87: 0.140625 | H87: 208.15938 | I87: 2.0815938 | J87: 365 | K87: 18234.76169 | L87: =((((hV_p(B87+14.696)*$H87)/1000000)*(VLOOKUP($E$8,'CO2 Conversion Factors'!$A$3:$J$20,3,FALSE)))*24)*$J87 -> 128866.0553 | M87: =((((hV_p(B87+14.696)*$H87)/1000000)*(VLOOKUP($E$8,'CO2 Conversion Factors'!$A$3:$J$20,4,FALSE)))*24)*$J87 -> 122141.4364 | N87: =((((hV_p(B87+14.696)*$H87)/1000000)*(VLOOKUP($E$8,'CO2 Conversion Factors'!$A$3:$J$20,5,FALSE)))*24)*$J87 -> 197.8347209 | O87: =((((hV_p(B87+14.696)*$H87)/1000000)*(VLOOKUP($E$8,'CO2 Conversion Factors'!$A$3:$J$20,6,FALSE)))*24)*$J87 -> 89.73631993 | P87: =((((hV_p(B87+14.696)*$H87)/1000000)*(VLOOKUP($E$8,'CO2 Conversion Factors'!$A$3:$J$20,7,FALSE)))*24)*$J87 -> 65.71553339
B88: 75 | D88: 89.696 | E88: 22.88 | F88: 0.375 | G88: 0.140625 | H88: 288.59688 | I88: 2.8859688 | J88: 365 | K88: 25281.08669 | L88: =((((hV_p(B88+14.696)*$H88)/1000000)*(VLOOKUP($E$8,'CO2 Conversion Factors'!$A$3:$J$20,3,FALSE)))*24)*$J88 -> 179604.694 | M88: =((((hV_p(B88+14.696)*$H88)/1000000)*(VLOOKUP($E$8,'CO2 Conversion Factors'!$A$3:$J$20,4,FALSE)))*24)*$J88 -> 170232.38 | N88: =((((hV_p(B88+14.696)*$H88)/1000000)*(VLOOKUP($E$8,'CO2 Conversion Factors'!$A$3:$J$20,5,FALSE)))*24)*$J88 -> 275.7285029 | O88: =((((hV_p(B88+14.696)*$H88)/1000000)*(VLOOKUP($E$8,'CO2 Conversion Factors'!$A$3:$J$20,6,FALSE)))*24)*$J88 -> 125.0683451 | P88: =((((hV_p(B88+14.696)*$H88)/1000000)*(VLOOKUP($E$8,'CO2 Conversion Factors'!$A$3:$J$20,7,FALSE)))*24)*$J88 -> 91.58981574
B89: 100 | D89: 114.696 | E89: 22.88 | F89: 0.375 | G89: 0.140625 | H89: 369.03438 | I89: 3.6903438 | J89: 365 | K89: 32327.41169 | L89: =((((hV_p(B89+14.696)*$H89)/1000000)*(VLOOKUP($E$8,'CO2 Conversion Factors'!$A$3:$J$20,3,FALSE)))*24)*$J89 -> 230528.3225 | M89: =((((hV_p(B89+14.696)*$H89)/1000000)*(VLOOKUP($E$8,'CO2 Conversion Factors'!$A$3:$J$20,4,FALSE)))*24)*$J89 -> 218498.6602 | N89: =((((hV_p(B89+14.696)*$H89)/1000000)*(VLOOKUP($E$8,'CO2 Conversion Factors'!$A$3:$J$20,5,FALSE)))*24)*$J89 -> 353.9062807 | O89: =((((hV_p(B89+14.696)*$H89)/1000000)*(VLOOKUP($E$8,'CO2 Conversion Factors'!$A$3:$J$20,6,FALSE)))*24)*$J89 -> 160.5291886 | P89: =((((hV_p(B89+14.696)*$H89)/1000000)*(VLOOKUP($E$8,'CO2 Conversion Factors'!$A$3:$J$20,7,FALSE)))*24)*$J89 -> 117.5584341
B90: 150 | D90: 164.696 | E90: 22.88 | F90: 0.375 | G90: 0.140625 | H90: 529.90938 | I90: 5.2990938 | J90: 365 | K90: 46420.06169 | L90: =((((hV_p(B90+14.696)*$H90)/1000000)*(VLOOKUP($E$8,'CO2 Conversion Factors'!$A$3:$J$20,3,FALSE)))*24)*$J90 -> 332696.6015 | M90: =((((hV_p(B90+14.696)*$H90)/1000000)*(VLOOKUP($E$8,'CO2 Conversion Factors'!$A$3:$J$20,4,FALSE)))*24)*$J90 -> 315335.4907 | N90: =((((hV_p(B90+14.696)*$H90)/1000000)*(VLOOKUP($E$8,'CO2 Conversion Factors'!$A$3:$J$20,5,FALSE)))*24)*$J90 -> 510.7546681 | O90: =((((hV_p(B90+14.696)*$H90)/1000000)*(VLOOKUP($E$8,'CO2 Conversion Factors'!$A$3:$J$20,6,FALSE)))*24)*$J90 -> 231.6744204 | P90: =((((hV_p(B90+14.696)*$H90)/1000000)*(VLOOKUP($E$8,'CO2 Conversion Factors'!$A$3:$J$20,7,FALSE)))*24)*$J90 -> 169.6593767
B91: 250 | D91: 264.696 | E91: 22.88 | F91: 0.375 | G91: 0.140625 | H91: 851.65938 | I91: 8.5165938 | J91: 365 | K91: 74605.36169 | L91: =((((hV_p(B91+14.696)*$H91)/1000000)*(VLOOKUP($E$8,'CO2 Conversion Factors'!$A$3:$J$20,3,FALSE)))*24)*$J91 -> 537491.0461 | M91: =((((hV_p(B91+14.696)*$H91)/1000000)*(VLOOKUP($E$8,'CO2 Conversion Factors'!$A$3:$J$20,4,FALSE)))*24)*$J91 -> 509443.1444 | N91: =((((hV_p(B91+14.696)*$H91)/1000000)*(VLOOKUP($E$8,'CO2 Conversion Factors'!$A$3:$J$20,5,FALSE)))*24)*$J91 -> 825.1543888 | O91: =((((hV_p(B91+14.696)*$H91)/1000000)*(VLOOKUP($E$8,'CO2 Conversion Factors'!$A$3:$J$20,6,FALSE)))*24)*$J91 -> 374.2837348 | P91: =((((hV_p(B91+14.696)*$H91)/1000000)*(VLOOKUP($E$8,'CO2 Conversion Factors'!$A$3:$J$20,7,FALSE)))*24)*$J91 -> 274.0947622
B92: 300 | D92: 314.696 | E92: 22.88 | F92: 0.375 | G92: 0.140625 | H92: 1012.53438 | I92: 10.1253438 | J92: 365 | K92: 88698.01169 | L92: =((((hV_p(B92+14.696)*$H92)/1000000)*(VLOOKUP($E$8,'CO2 Conversion Factors'!$A$3:$J$20,3,FALSE)))*24)*$J92 -> 639852.6653 | M92: =((((hV_p(B92+14.696)*$H92)/1000000)*(VLOOKUP($E$8,'CO2 Conversion Factors'!$A$3:$J$20,4,FALSE)))*24)*$J92 -> 606463.2259 | N92: =((((hV_p(B92+14.696)*$H92)/1000000)*(VLOOKUP($E$8,'CO2 Conversion Factors'!$A$3:$J$20,5,FALSE)))*24)*$J92 -> 982.2995913 | O92: =((((hV_p(B92+14.696)*$H92)/1000000)*(VLOOKUP($E$8,'CO2 Conversion Factors'!$A$3:$J$20,6,FALSE)))*24)*$J92 -> 445.5635997 | P92: =((((hV_p(B92+14.696)*$H92)/1000000)*(VLOOKUP($E$8,'CO2 Conversion Factors'!$A$3:$J$20,7,FALSE)))*24)*$J92 -> 326.294299
B93: 400 | D93: 414.696 | E93: 22.88 | F93: 0.375 | G93: 0.140625 | H93: 1334.28438 | I93: 13.3428438 | J93: 365 | K93: 116883.3117 | L93: =((((hV_p(B93+14.696)*$H93)/1000000)*(VLOOKUP($E$8,'CO2 Conversion Factors'!$A$3:$J$20,3,FALSE)))*24)*$J93 -> 844128.1321 | M93: =((((hV_p(B93+14.696)*$H93)/1000000)*(VLOOKUP($E$8,'CO2 Conversion Factors'!$A$3:$J$20,4,FALSE)))*24)*$J93 -> 800078.9836 | N93: =((((hV_p(B93+14.696)*$H93)/1000000)*(VLOOKUP($E$8,'CO2 Conversion Factors'!$A$3:$J$20,5,FALSE)))*24)*$J93 -> 1295.902579 | O93: =((((hV_p(B93+14.696)*$H93)/1000000)*(VLOOKUP($E$8,'CO2 Conversion Factors'!$A$3:$J$20,6,FALSE)))*24)*$J93 -> 587.8115221 | P93: =((((hV_p(B93+14.696)*$H93)/1000000)*(VLOOKUP($E$8,'CO2 Conversion Factors'!$A$3:$J$20,7,FALSE)))*24)*$J93 -> 430.4650306
B94: 600 | D94: 614.696 | E94: 22.88 | F94: 0.375 | G94: 0.140625 | H94: 1977.78438 | I94: 19.7778438 | J94: 365 | K94: 173253.9117 | L94: =((((hV_p(B94+14.696)*$H94)/1000000)*(VLOOKUP($E$8,'CO2 Conversion Factors'!$A$3:$J$20,3,FALSE)))*24)*$J94 -> 1249679.066 | M94: =((((hV_p(B94+14.696)*$H94)/1000000)*(VLOOKUP($E$8,'CO2 Conversion Factors'!$A$3:$J$20,4,FALSE)))*24)*$J94 -> 1184467.048 | N94: =((((hV_p(B94+14.696)*$H94)/1000000)*(VLOOKUP($E$8,'CO2 Conversion Factors'!$A$3:$J$20,5,FALSE)))*24)*$J94 -> 1918.502965 | O94: =((((hV_p(B94+14.696)*$H94)/1000000)*(VLOOKUP($E$8,'CO2 Conversion Factors'!$A$3:$J$20,6,FALSE)))*24)*$J94 -> 870.2183069 | P94: =((((hV_p(B94+14.696)*$H94)/1000000)*(VLOOKUP($E$8,'CO2 Conversion Factors'!$A$3:$J$20,7,FALSE)))*24)*$J94 -> 637.2766372
B96: 1/2" Leak
B97: Pressure | D97: Abs Pressure | E97: Constant | F97: Diameter | G97: D^2 | H97: Steam Loss (pph) | I97: Cost / Hour | J97: Days / Year | K97: Cost / Year | L97: CO2 Emissions / Year | M97: NOX | N97: SO2 | O97: Particulates | P97: Mercury
B98: 5 | D98: =B98+14.696 -> 19.696 | E98: 22.88 | F98: 0.5 | G98: =F98^2 -> 0.25 | H98: =D98*E98*G98 -> 112.66112 | I98: =(H98/1000)*E$7 -> 1.1266112 | J98: 365 | K98: =I98*24*J98 -> 9869.114112 | L98: =((((hV_p(B98+14.696)*$H98)/1000000)*(VLOOKUP($E$8,'CO2 Conversion Factors'!$A$3:$J$20,3,FALSE)))*24)*$J98 -> 68362.97636 | M98: =((((hV_p(B98+14.696)*$H98)/1000000)*(VLOOKUP($E$8,'CO2 Conversion Factors'!$A$3:$J$20,4,FALSE)))*24)*$J98 -> 64795.59034 | N98: =((((hV_p(B98+14.696)*$H98)/1000000)*(VLOOKUP($E$8,'CO2 Conversion Factors'!$A$3:$J$20,5,FALSE)))*24)*$J98 -> 104.9506041 | O98: =((((hV_p(B98+14.696)*$H98)/1000000)*(VLOOKUP($E$8,'CO2 Conversion Factors'!$A$3:$J$20,6,FALSE)))*24)*$J98 -> 47.60479323 | P98: =((((hV_p(B98+14.696)*$H98)/1000000)*(VLOOKUP($E$8,'CO2 Conversion Factors'!$A$3:$J$20,7,FALSE)))*24)*$J98 -> 34.86185283
B99: 15 | D99: 29.696 | E99: 22.88 | F99: 0.5 | G99: 0.25 | H99: 169.86112 | I99: 1.6986112 | J99: 365 | K99: 14879.83411 | L99: =((((hV_p(B99+14.696)*$H99)/1000000)*(VLOOKUP($E$8,'CO2 Conversion Factors'!$A$3:$J$20,3,FALSE)))*24)*$J99 -> 103789.0268 | M99: =((((hV_p(B99+14.696)*$H99)/1000000)*(VLOOKUP($E$8,'CO2 Conversion Factors'!$A$3:$J$20,4,FALSE)))*24)*$J99 -> 98373.00278 | N99: =((((hV_p(B99+14.696)*$H99)/1000000)*(VLOOKUP($E$8,'CO2 Conversion Factors'!$A$3:$J$20,5,FALSE)))*24)*$J99 -> 159.3365538 | O99: =((((hV_p(B99+14.696)*$H99)/1000000)*(VLOOKUP($E$8,'CO2 Conversion Factors'!$A$3:$J$20,6,FALSE)))*24)*$J99 -> 72.27384506 | P99: =((((hV_p(B99+14.696)*$H99)/1000000)*(VLOOKUP($E$8,'CO2 Conversion Factors'!$A$3:$J$20,7,FALSE)))*24)*$J99 -> 52.92744656
B100: 25 | D100: 39.696 | E100: 22.88 | F100: 0.5 | G100: 0.25 | H100: 227.06112 | I100: 2.2706112 | J100: 365 | K100: 19890.55411 | L100: =((((hV_p(B100+14.696)*$H100)/1000000)*(VLOOKUP($E$8,'CO2 Conversion Factors'!$A$3:$J$20,3,FALSE)))*24)*$J100 -> 139423.7495 | M100: =((((hV_p(B100+14.696)*$H100)/1000000)*(VLOOKUP($E$8,'CO2 Conversion Factors'!$A$3:$J$20,4,FALSE)))*24)*$J100 -> 132148.1983 | N100: =((((hV_p(B100+14.696)*$H100)/1000000)*(VLOOKUP($E$8,'CO2 Conversion Factors'!$A$3:$J$20,5,FALSE)))*24)*$J100 -> 214.0428564 | O100: =((((hV_p(B100+14.696)*$H100)/1000000)*(VLOOKUP($E$8,'CO2 Conversion Factors'!$A$3:$J$20,6,FALSE)))*24)*$J100 -> 97.08820652 | P100: =((((hV_p(B100+14.696)*$H100)/1000000)*(VLOOKUP($E$8,'CO2 Conversion Factors'!$A$3:$J$20,7,FALSE)))*24)*$J100 -> 71.09945317
B101: 30 | D101: 44.696 | E101: 22.88 | F101: 0.5 | G101: 0.25 | H101: 255.66112 | I101: 2.5566112 | J101: 365 | K101: 22395.91411 | L101: =((((hV_p(B101+14.696)*$H101)/1000000)*(VLOOKUP($E$8,'CO2 Conversion Factors'!$A$3:$J$20,3,FALSE)))*24)*$J101 -> 157300.0762 | M101: =((((hV_p(B101+14.696)*$H101)/1000000)*(VLOOKUP($E$8,'CO2 Conversion Factors'!$A$3:$J$20,4,FALSE)))*24)*$J101 -> 149091.6845 | N101: =((((hV_p(B101+14.696)*$H101)/1000000)*(VLOOKUP($E$8,'CO2 Conversion Factors'!$A$3:$J$20,5,FALSE)))*24)*$J101 -> 241.4865312 | O101: =((((hV_p(B101+14.696)*$H101)/1000000)*(VLOOKUP($E$8,'CO2 Conversion Factors'!$A$3:$J$20,6,FALSE)))*24)*$J101 -> 109.536448 | P101: =((((hV_p(B101+14.696)*$H101)/1000000)*(VLOOKUP($E$8,'CO2 Conversion Factors'!$A$3:$J$20,7,FALSE)))*24)*$J101 -> 80.21552601
B102: 40 | D102: 54.696 | E102: 22.88 | F102: 0.5 | G102: 0.25 | H102: 312.86112 | I102: 3.1286112 | J102: 365 | K102: 27406.63411 | L102: =((((hV_p(B102+14.696)*$H102)/1000000)*(VLOOKUP($E$8,'CO2 Conversion Factors'!$A$3:$J$20,3,FALSE)))*24)*$J102 -> 193146.4089 | M102: =((((hV_p(B102+14.696)*$H102)/1000000)*(VLOOKUP($E$8,'CO2 Conversion Factors'!$A$3:$J$20,4,FALSE)))*24)*$J102 -> 183067.4475 | N102: =((((hV_p(B102+14.696)*$H102)/1000000)*(VLOOKUP($E$8,'CO2 Conversion Factors'!$A$3:$J$20,5,FALSE)))*24)*$J102 -> 296.5176967 | O102: =((((hV_p(B102+14.696)*$H102)/1000000)*(VLOOKUP($E$8,'CO2 Conversion Factors'!$A$3:$J$20,6,FALSE)))*24)*$J102 -> 134.4981648 | P102: =((((hV_p(B102+14.696)*$H102)/1000000)*(VLOOKUP($E$8,'CO2 Conversion Factors'!$A$3:$J$20,7,FALSE)))*24)*$J102 -> 98.49544361
B103: 50 | D103: 64.696 | E103: 22.88 | F103: 0.5 | G103: 0.25 | H103: 370.06112 | I103: 3.7006112 | J103: 365 | K103: 32417.35411 | L103: =((((hV_p(B103+14.696)*$H103)/1000000)*(VLOOKUP($E$8,'CO2 Conversion Factors'!$A$3:$J$20,3,FALSE)))*24)*$J103 -> 229095.2095 | M103: =((((hV_p(B103+14.696)*$H103)/1000000)*(VLOOKUP($E$8,'CO2 Conversion Factors'!$A$3:$J$20,4,FALSE)))*24)*$J103 -> 217140.3314 | N103: =((((hV_p(B103+14.696)*$H103)/1000000)*(VLOOKUP($E$8,'CO2 Conversion Factors'!$A$3:$J$20,5,FALSE)))*24)*$J103 -> 351.7061705 | O103: =((((hV_p(B103+14.696)*$H103)/1000000)*(VLOOKUP($E$8,'CO2 Conversion Factors'!$A$3:$J$20,6,FALSE)))*24)*$J103 -> 159.5312354 | P103: =((((hV_p(B103+14.696)*$H103)/1000000)*(VLOOKUP($E$8,'CO2 Conversion Factors'!$A$3:$J$20,7,FALSE)))*24)*$J103 -> 116.8276149
B104: 75 | D104: 89.696 | E104: 22.88 | F104: 0.5 | G104: 0.25 | H104: 513.06112 | I104: 5.1306112 | J104: 365 | K104: 44944.15411 | L104: =((((hV_p(B104+14.696)*$H104)/1000000)*(VLOOKUP($E$8,'CO2 Conversion Factors'!$A$3:$J$20,3,FALSE)))*24)*$J104 -> 319297.2337 | M104: =((((hV_p(B104+14.696)*$H104)/1000000)*(VLOOKUP($E$8,'CO2 Conversion Factors'!$A$3:$J$20,4,FALSE)))*24)*$J104 -> 302635.3423 | N104: =((((hV_p(B104+14.696)*$H104)/1000000)*(VLOOKUP($E$8,'CO2 Conversion Factors'!$A$3:$J$20,5,FALSE)))*24)*$J104 -> 490.1840051 | O104: =((((hV_p(B104+14.696)*$H104)/1000000)*(VLOOKUP($E$8,'CO2 Conversion Factors'!$A$3:$J$20,6,FALSE)))*24)*$J104 -> 222.3437246 | P104: =((((hV_p(B104+14.696)*$H104)/1000000)*(VLOOKUP($E$8,'CO2 Conversion Factors'!$A$3:$J$20,7,FALSE)))*24)*$J104 -> 162.8263391
B105: 100 | D105: 114.696 | E105: 22.88 | F105: 0.5 | G105: 0.25 | H105: 656.06112 | I105: 6.5606112 | J105: 365 | K105: 57470.95411 | L105: =((((hV_p(B105+14.696)*$H105)/1000000)*(VLOOKUP($E$8,'CO2 Conversion Factors'!$A$3:$J$20,3,FALSE)))*24)*$J105 -> 409828.1288 | M105: =((((hV_p(B105+14.696)*$H105)/1000000)*(VLOOKUP($E$8,'CO2 Conversion Factors'!$A$3:$J$20,4,FALSE)))*24)*$J105 -> 388442.0626 | N105: =((((hV_p(B105+14.696)*$H105)/1000000)*(VLOOKUP($E$8,'CO2 Conversion Factors'!$A$3:$J$20,5,FALSE)))*24)*$J105 -> 629.1667212 | O105: =((((hV_p(B105+14.696)*$H105)/1000000)*(VLOOKUP($E$8,'CO2 Conversion Factors'!$A$3:$J$20,6,FALSE)))*24)*$J105 -> 285.3852242 | P105: =((((hV_p(B105+14.696)*$H105)/1000000)*(VLOOKUP($E$8,'CO2 Conversion Factors'!$A$3:$J$20,7,FALSE)))*24)*$J105 -> 208.9927717
B106: 150 | D106: 164.696 | E106: 22.88 | F106: 0.5 | G106: 0.25 | H106: 942.06112 | I106: 9.4206112 | J106: 365 | K106: 82524.55411 | L106: =((((hV_p(B106+14.696)*$H106)/1000000)*(VLOOKUP($E$8,'CO2 Conversion Factors'!$A$3:$J$20,3,FALSE)))*24)*$J106 -> 591460.6249 | M106: =((((hV_p(B106+14.696)*$H106)/1000000)*(VLOOKUP($E$8,'CO2 Conversion Factors'!$A$3:$J$20,4,FALSE)))*24)*$J106 -> 560596.428 | N106: =((((hV_p(B106+14.696)*$H106)/1000000)*(VLOOKUP($E$8,'CO2 Conversion Factors'!$A$3:$J$20,5,FALSE)))*24)*$J106 -> 908.0082988 | O106: =((((hV_p(B106+14.696)*$H106)/1000000)*(VLOOKUP($E$8,'CO2 Conversion Factors'!$A$3:$J$20,6,FALSE)))*24)*$J106 -> 411.8656362 | P106: =((((hV_p(B106+14.696)*$H106)/1000000)*(VLOOKUP($E$8,'CO2 Conversion Factors'!$A$3:$J$20,7,FALSE)))*24)*$J106 -> 301.6166697
B107: 250 | D107: 264.696 | E107: 22.88 | F107: 0.5 | G107: 0.25 | H107: 1514.06112 | I107: 15.1406112 | J107: 365 | K107: 132631.7541 | L107: =((((hV_p(B107+14.696)*$H107)/1000000)*(VLOOKUP($E$8,'CO2 Conversion Factors'!$A$3:$J$20,3,FALSE)))*24)*$J107 -> 955539.6376 | M107: =((((hV_p(B107+14.696)*$H107)/1000000)*(VLOOKUP($E$8,'CO2 Conversion Factors'!$A$3:$J$20,4,FALSE)))*24)*$J107 -> 905676.7011 | N107: =((((hV_p(B107+14.696)*$H107)/1000000)*(VLOOKUP($E$8,'CO2 Conversion Factors'!$A$3:$J$20,5,FALSE)))*24)*$J107 -> 1466.941136 | O107: =((((hV_p(B107+14.696)*$H107)/1000000)*(VLOOKUP($E$8,'CO2 Conversion Factors'!$A$3:$J$20,6,FALSE)))*24)*$J107 -> 665.3933064 | P107: =((((hV_p(B107+14.696)*$H107)/1000000)*(VLOOKUP($E$8,'CO2 Conversion Factors'!$A$3:$J$20,7,FALSE)))*24)*$J107 -> 487.2795772
B108: 300 | D108: 314.696 | E108: 22.88 | F108: 0.5 | G108: 0.25 | H108: 1800.06112 | I108: 18.0006112 | J108: 365 | K108: 157685.3541 | L108: =((((hV_p(B108+14.696)*$H108)/1000000)*(VLOOKUP($E$8,'CO2 Conversion Factors'!$A$3:$J$20,3,FALSE)))*24)*$J108 -> 1137515.849 | M108: =((((hV_p(B108+14.696)*$H108)/1000000)*(VLOOKUP($E$8,'CO2 Conversion Factors'!$A$3:$J$20,4,FALSE)))*24)*$J108 -> 1078156.846 | N108: =((((hV_p(B108+14.696)*$H108)/1000000)*(VLOOKUP($E$8,'CO2 Conversion Factors'!$A$3:$J$20,5,FALSE)))*24)*$J108 -> 1746.310385 | O108: =((((hV_p(B108+14.696)*$H108)/1000000)*(VLOOKUP($E$8,'CO2 Conversion Factors'!$A$3:$J$20,6,FALSE)))*24)*$J108 -> 792.1130661 | P108: =((((hV_p(B108+14.696)*$H108)/1000000)*(VLOOKUP($E$8,'CO2 Conversion Factors'!$A$3:$J$20,7,FALSE)))*24)*$J108 -> 580.0787538
B109: 400 | D109: 414.696 | E109: 22.88 | F109: 0.5 | G109: 0.25 | H109: 2372.06112 | I109: 23.7206112 | J109: 365 | K109: 207792.5541 | L109: =((((hV_p(B109+14.696)*$H109)/1000000)*(VLOOKUP($E$8,'CO2 Conversion Factors'!$A$3:$J$20,3,FALSE)))*24)*$J109 -> 1500672.235 | M109: =((((hV_p(B109+14.696)*$H109)/1000000)*(VLOOKUP($E$8,'CO2 Conversion Factors'!$A$3:$J$20,4,FALSE)))*24)*$J109 -> 1422362.638 | N109: =((((hV_p(B109+14.696)*$H109)/1000000)*(VLOOKUP($E$8,'CO2 Conversion Factors'!$A$3:$J$20,5,FALSE)))*24)*$J109 -> 2303.826807 | O109: =((((hV_p(B109+14.696)*$H109)/1000000)*(VLOOKUP($E$8,'CO2 Conversion Factors'!$A$3:$J$20,6,FALSE)))*24)*$J109 -> 1044.998262 | P109: =((((hV_p(B109+14.696)*$H109)/1000000)*(VLOOKUP($E$8,'CO2 Conversion Factors'!$A$3:$J$20,7,FALSE)))*24)*$J109 -> 765.2711655
B110: 600 | D110: 614.696 | E110: 22.88 | F110: 0.5 | G110: 0.25 | H110: 3516.06112 | I110: 35.1606112 | J110: 365 | K110: 308006.9541 | L110: =((((hV_p(B110+14.696)*$H110)/1000000)*(VLOOKUP($E$8,'CO2 Conversion Factors'!$A$3:$J$20,3,FALSE)))*24)*$J110 -> 2221651.673 | M110: =((((hV_p(B110+14.696)*$H110)/1000000)*(VLOOKUP($E$8,'CO2 Conversion Factors'!$A$3:$J$20,4,FALSE)))*24)*$J110 -> 2105719.197 | N110: =((((hV_p(B110+14.696)*$H110)/1000000)*(VLOOKUP($E$8,'CO2 Conversion Factors'!$A$3:$J$20,5,FALSE)))*24)*$J110 -> 3410.671938 | O110: =((((hV_p(B110+14.696)*$H110)/1000000)*(VLOOKUP($E$8,'CO2 Conversion Factors'!$A$3:$J$20,6,FALSE)))*24)*$J110 -> 1547.054768 | P110: =((((hV_p(B110+14.696)*$H110)/1000000)*(VLOOKUP($E$8,'CO2 Conversion Factors'!$A$3:$J$20,7,FALSE)))*24)*$J110 -> 1132.936244

Sheet X Steam Functions
A1: Steam Tables | D1: v2.6
A3: The excel scripts are stored inside this workbook. (No extra files are needed. Start from a copy of this workbook. This page can be removed)
A5: The steam tables are free and provided as is. We take no responsibilities for any errors in the code or damage thereby.
A6: OBS: This workbook uses macros. Set security options in Tools:Macro:Security… to enable macros.
A8: Temperature | F8: English Result | H8: Function
A9: Tsat_p | B9: 14.5037738 | C9: psi | F9: =Tsat_p(B9) -> 211.2906536 | G9: °F | H9: Saturation temperature
A10: T_ph | B10: 1 | C10: psi | D10: 100 | E10: btu/lb | F10: =T_ph(B10,D10) -> 101.6943372 | G10: °F | H10: Temperture as a function of pressure and enthalpy
A11: T_ps | B11: 1 | C11: psi | D11: 1 | E11: btu/(lb F) | F11: =T_ps(B11,D11) -> 101.6943372 | G11: °F | H11: Temperture as a function of pressure and entropy
A12: T_hs | B12: 100 | C12: btu/lb | D12: 0.2 | E12: btu/(lb F) | F12: =T_hs(B12,D12) -> 40.71270876 | G12: °F | H12: Temperture as a function of enthalpy and entropy
A13: Pressure
A14: psat_T | B14: 100 | C14: deg F | F14: =psat_t(B14) -> 0.9504393308 | G14: psi (a) | H14: Saturation pressure
A15: p_hs | B15: 100 | C15: btu/lb | D15: =F49 -> 0.1851252476 | E15: btu/(lb F) | F15: =p_hs(B15,D15) -> 5.988291907 | G15: psi (a) | H15: Pressure as a function of h and s.
A16: p_hrho | B16: 100 | C16: btu/lb | D16: 5 | E16: lb/ft3 | F16: =p_hrho(B16,D16) -> 2.273731918 | G16: psi (a) | H16: Pressure as a function of h and rho (density). Very unaccurate for solid water region since it's almost incompressible!
A17: Enthalpy
A18: hV_p | B18: 100 | C18: psi | F18: =hV_p(B18) -> 1187.49278 | G18: btu/lb | H18: Saturated vapour enthalpy
A19: hL_p | B19: 1 | C19: psi | F19: =hL_p(B19) -> 69.72823905 | G19: btu/lb | H19: Saturated liquid enthalpy
A20: hV_T | B20: 100 | C20: deg F | F20: =hV_T(B20) -> 1104.714855 | G20: btu/lb | H20: Saturated vapour enthalpy
A21: hL_T | B21: 100 | C21: deg F | F21: =hL_T(B21) -> 68.03698564 | G21: btu/lb | H21: Saturated liquid enthalpy
A22: h_pT | B22: 14.5037738 | C22: psi | D22: 68 | E22: deg F | F22: =h_pt(B22,D22) -> 36.11857746 | G22: btu/lb | H22: Entalpy as a function of pressure and temperature.
A23: h_ps | B23: 1 | C23: psi | D23: 1 | E23: btu/(lb F) | F23: =h_ps(B23,D23) -> 556.6369136 | G23: btu/lb | H23: Entalpy as a function of pressure and entropy.
A24: h_px | B24: 1 | C24: psi | D24: 0.5 | F24: =h_px(B24,D24) -> 587.5837889 | G24: btu/lb | H24: Entalpy as a function of pressure and vapour fraction
A25: h_Tx | B25: 100 | C25: deg F | D25: 0.5 | F25: =h_tx(B25,D25) -> 586.3759202 | G25: btu/lb | H25: Entalpy as a function of temperature and vapour fraction
A26: h_prho | B26: 1 | C26: psi | D26: 2 | E26: lb/ft3 | F26: =h_prho(B26,D26) -> 71.23095397 | G26: btu/lb | H26: Entalpy as a function of pressure and density. Observe for low temperatures (liquid) this equation has 2 solutions. (Not valid!!)
A27: Specific volume
A28: vV_p | B28: 1 | C28: psi | F28: =vV_p(B28) -> 333.5075189 | G28: ft3/lb | H28: Saturated vapour volume
A29: vL_p | B29: 1 | C29: psi | F29: =vL_p(B29) -> 0.01613681121 | G29: ft3/lb | H29: Saturated liquid volume
A30: vV_T | B30: 100 | C30: deg F | F30: =vV_T(B30) -> 349.8695999 | G30: ft3/lb | H30: Saturated vapour volume
A31: vL_T | B31: 100 | C31: deg F | F31: =vL_T(B31) -> 0.01613117433 | G31: ft3/lb | H31: Saturated liquid volume
A32: v_pT | B32: 1 | C32: psi | D32: 100 | E32: deg F | F32: =v_pT(B32,D32) -> 0.01613117189 | G32: ft3/lb | H32: Specific volume as a function of pressure and temperature.
A33: v_ph | B33: 1 | C33: psi | D33: 1000 | E33: btu/lb | F33: =v_ph(B33,D33) -> 299.5568248 | G33: ft3/lb | H33: Specific volume as a function of pressure and enthalpy
A34: v_ps | B34: 10 | C34: psi | D34: =F49 -> 0.1851252476 | E34: btu/(lb F) | F34: =v_ps(B34,D34) -> 0.01625542384 | G34: ft3/lb | H34: Specific volume as a function of pressure and entropy.
A35: Density
A36: rhoV_p | B36: 1 | C36: psi | F36: =rhoV_p(B36) -> 0.002998433148 | G36: lb/ft3 | H36: Saturated vapour density
A37: rhoL_p | B37: 1 | C37: psi | F37: =rhoL_P(B37) -> 61.97011213 | G37: lb/ft3 | H37: Saturated liquid density
A38: rhoV_T | B38: 100 | C38: deg F | F38: =rhoV_T(B38) -> 0.002858207745 | G38: lb/ft3 | H38: Saturated vapour density
A39: rhoL_T | B39: 100 | C39: deg F | F39: =rhoL_T(B39) -> 61.99176698 | G39: lb/ft3 | H39: Saturated liquid density
A40: rho_pT | B40: 1 | C40: psi | D40: 100 | E40: deg F | F40: =rho_pT(B40,D40) -> 61.99177634 | G40: lb/ft3 | H40: Density as a function of pressure and temperature.
A41: rho_ph | B41: 1 | C41: psi | D41: 1000 | E41: btu/lb | F41: =rho_ph(B41,D41) -> 0.003338264788 | G41: lb/ft3 | H41: Density as a function of pressure and enthalpy
A42: rho_ps | B42: 1 | C42: psi | D42: 1 | E42: btu/(lb F) | F42: =rho_ps(B42,D42) -> 0.006377666498 | G42: lb/ft3 | H42: Density as a function of pressure and entropy.
A43: Specific entropy
A44: sV_p | B44: 1 | C44: psi | F44: =sV_p(B44) -> 1.97762468 | G44: btu/(lb F) | H44: Saturated vapour entropy
A45: sL_p | B45: 1 | C45: psi | F45: =sL_p(B45) -> 0.1326314985 | G45: btu/(lb F) | H45: Saturated liquid entropy
A46: sV_T | B46: 50 | C46: deg F | F46: =sV_T(B46) -> 2.125691679 | G46: btu/(lb F) | H46: Saturated vapour entropy
A47: sL_T | B47: 100 | C47: deg F | F47: =sL_T(B47) -> 0.1296144513 | G47: btu/(lb F) | H47: Saturated liquid entropy
A48: s_pT | B48: 1 | C48: psi | D48: 50 | E48: deg F | F48: =s_pT(B48,D48) -> 0.0360859339 | G48: btu/(lb F) | H48: Specific entropy as a function of pressure and temperature (Returns saturated vapour entalpy if mixture.)
A49: s_ph | B49: 10 | C49: psi | D49: 100 | E49: btu/lb | F49: =s_ph(B49,D49) -> 0.1851252476 | G49: btu/(lb F) | H49: Specific entropy as a function of pressure and enthalpy
A50: Specific internal energy
A51: uV_p | B51: 1 | C51: psi | F51: =uV_p(B51) -> 1043.723867 | G51: btu/lb | H51: Saturated vapour internal energy
A52: uL_p | B52: 1 | C52: psi | F52: =uL_p(B52) -> 69.72525294 | G52: btu/lb | H52: Saturated liquid internal energy
A53: uV_T | B53: 100 | C53: deg F | F53: =uV_T(B53) -> 1043.180305 | G53: btu/lb | H53: Saturated vapour internal energy
A54: uL_T | B54: 100 | C54: deg F | F54: =uL_T(B54) -> 68.03414851 | G54: btu/lb | H54: Saturated liquid internal energy
A55: u_pT | B55: 1 | C55: psi | D55: 100 | E55: deg F | F55: =u_pT(B55,D55) -> 68.0341316 | G55: btu/lb | H55: Specific internal energy as a function of pressure and temperature.
A56: u_ph | B56: 1 | C56: psi | D56: 1000 | E56: btu/lb | F56: =u_ph(B56,D56) -> 944.567095 | G56: btu/lb | H56: Specific internal energy as a function of pressure and enthalpy
A57: u_ps | B57: 1 | C57: psi | D57: 1 | E57: btu/(lb F) | F57: =u_ps(B57,D57) -> 527.6216438 | G57: btu/lb | H57: Specific internal energy as a function of pressure and entropy.
A58: Specific isobaric heat capacity
A59: CpV_p | B59: 1 | C59: psi | F59: =CpV_p(B59) -> 0.4610466176 | G59: btu/(lb F) | H59: Saturated vapour heat capacity
A60: CpL_p | B60: 1 | C60: psi | F60: =CpL_p(B60) -> 0.9980961319 | G60: btu/(lb F) | H60: Saturated liquid heat capacity
A61: CpV_T | B61: 100 | C61: deg F | F61: =CpV_T(B61) -> 0.4607141352 | G61: btu/(lb F) | H61: Saturated vapour heat capacity
A62: CpL_T | B62: 100 | C62: deg F | F62: =CpL_T(B62) -> 0.9981101482 | G62: btu/(lb F) | H62: Saturated liquid heat capacity
A63: Cp_pT | B63: 1 | C63: psi | D63: 100 | E63: deg F | F63: =Cp_pT(B63,D63) -> 0.9981099431 | G63: btu/(lb F) | H63: Specific isobaric heat capacity as a function of pressure and temperature.
A64: Cp_ph | B64: 100 | C64: psi | D64: 200 | E64: btu/lb | F64: =Cp_ph(B64,D64) -> 1.010383515 | G64: btu/(lb F) | H64: Specific isobaric heat capacity as a function of pressure and enthalpy
A65: Cp_ps | B65: 100 | C65: psi | D65: =F49 -> 0.1851252476 | E65: btu/(lb F) | F65: =Cp_ps(B65,D65) -> 0.9983168509 | G65: btu/(lb F) | H65: Specific isobaric heat capacity as a function of pressure and entropy.
A66: Specific isochoric heat capacity
A67: CvV_p | B67: 1 | C67: psi | F67: =CvV_p(B67) -> 0.3473815118 | G67: btu/(lb F) | H67: Saturated vapour isochoric heat capacity
A68: CvL_p | B68: 1 | C68: psi | F68: =CvL_p(B68) -> 0.9741948707 | G68: btu/(lb F) | H68: Saturated liquid isochoric heat capacity
A69: CvV_T | B69: 100 | C69: deg F | F69: =CvV_T(B69) -> 0.3471349757 | G69: btu/(lb F) | H69: Saturated vapour isochoric heat capacity
A70: CvL_T | B70: 100 | C70: deg F | F70: =CvL_T(B70) -> 0.9752371398 | G70: btu/(lb F) | H70: Saturated liquid isochoric heat capacity
A71: Cv_pT | B71: 1 | C71: psi | D71: 100 | E71: deg F | F71: =Cv_pT(B71,D71) -> 0.9752369016 | G71: btu/(lb F) | H71: Specific isochoric heat capacity as a function of pressure and temperature.
A72: Cv_ph | B72: 100 | C72: psi | D72: 200 | E72: btu/lb | F72: =Cv_ph(B72,D72) -> 0.8867422172 | G72: btu/(lb F) | H72: Specific isochoric heat capacity as a function of pressure and enthalpy
A73: Cv_ps | B73: 100 | C73: psi | D73: =D65 -> 0.1851252476 | E73: btu/(lb F) | F73: =Cv_ps(B73,D73) -> 0.9541207319 | G73: btu/(lb F) | H73: Specific isochoric heat capacity as a function of pressure and entropy.
A74: Speed of sound
A75: wV_p | B75: 1 | C75: psi | F75: =wV_p(B75) -> 1430.023344 | G75: ft/s | H75: Saturated vapour speed of sound
A76: wL_p | B76: 1 | C76: psi | F76: =wL_p(B76) -> 5016.126591 | G76: ft/s | H76: Saturated liquid speed of sound
A77: wV_T | B77: 100 | C77: deg F | F77: =wV_T(B77) -> 1427.980732 | G77: ft/s | H77: Saturated vapour speed of sound
A78: wL_T | B78: 100 | C78: deg F | F78: =wL_T(B78) -> 5010.524066 | G78: ft/s | H78: Saturated liquid speed of sound
A79: w_pT | B79: 1 | C79: psi | D79: 100 | E79: deg F | F79: =w_pT(B79,D79) -> 5010.525873 | G79: ft/s | H79: Speed of sound as a function of pressure and temperature.
A80: w_ph | B80: 100 | C80: psi | D80: 100 | E80: btu/lb | F80: =w_ph(B80,D80) -> 5090.517797 | G80: ft/s | H80: Speed of sound as a function of pressure and enthalpy
A81: w_ps | B81: 100 | C81: psi | D81: =D73 -> 0.1851252476 | E81: btu/(lb F) | F81: =w_ps(B81,D81) -> 5090.919366 | G81: ft/s | H81: Speed of sound as a function of pressure and entropy.
A82: Dynamic Viscosity
A83: Viscosity is not part of IAPWS Steam IF97. Equations from ""Revised Release on the IAPWS Formulation 1985 for the Viscosity of Ordinary Water Substance"", 2003 are used.
A84: Viscosity in the mixed region (4) is interpolated according to the density. This is not true since it will be two fases.
A85: my_pT | B85: 1 | C85: psi | D85: 100 | E85: deg F | F85: =my_pT(B85,D85) -> 1.647817811 | G85: lb/ft/hr | H85: Viscosity as a function of pressure and temperature.
A86: my_ph | B86: 100 | C86: psi | D86: 100 | E86: btu/lb | F86: =my_ph(B86,D86) -> 1.211118873 | G86: lb/ft/hr | H86: Viscosity as a function of pressure and enthalpy
A87: my_ps | B87: 100 | C87: psi | D87: =D81 -> 0.1851252476 | E87: btu/(lb F) | F87: =my_ps(B87,D87) -> 1.208179571 | G87: lb/ft/hr | H87: Viscosity as a function of pressure and entropy.
A88: Prandtl
A89: Calcualted as Cp*my/tc
A90: pr_pT | B90: 1 | C90: psi | D90: 200 | E90: deg F | F90: =pr_pT(B90,D90) -> 0.9701202438 | G90: -
A91: pr_ph | B91: 1 | C91: psi | D91: 0.19 | E91: btu/lb | F91: =pr_ph(B91,D91) -> 13.40562938 | G91: -
A92: Thermal Conductivity
A93: Revised release on the IAPS Formulation 1985 for the Thermal Conductivity of ordinary water substance (IAPWS 1998)
A94: tcL_p | B94: 1 | C94: psi | F94: =tcL_p(B94) -> 0.3622261387 | G94: btu/(h*ft*F) | H94: Saturated vapour thermal conductivity
A95: tcV_p | B95: 1 | C95: psi | F95: =tcV_p(B95) -> 0.01119774893 | G95: btu/(h*ft*F) | H95: Saturated liquid thermal conductivity
A96: tcL_T | B96: 50 | C96: deg F | F96: =tcL_T(B96) -> 0.3362266821 | G96: btu/(h*ft*F) | H96: Saturated vapour thermal conductivity
A97: tcV_T | B97: 50 | C97: deg F | F97: =tcV_T(B97) -> 0.009946376555 | G97: btu/(h*ft*F) | H97: Saturated liquid thermal conductivity
A98: tc_pT | B98: 1 | C98: psi | D98: 50 | E98: deg F | F98: =tc_pt(B98,D98) -> 0.3362285212 | G98: btu/(h*ft*F) | H98: Thermal conductivity as a function of pressure and temperature.
A99: tc_ph | B99: 1 | C99: psi | D99: 100 | E99: btu/(lb F) | F99: =tc_ph(B99,D99) -> 0.020136752 | G99: btu/(h*ft*F) | H99: Thermal conductivity as a function of pressure and enthalpy
A100: tc_hs | B100: 100 | C100: btu/lb | D100: =D73 -> 0.1851252476 | E100: btu/(lb F) | F100: =tc_hs(B100,D100) -> 0.373481961 | G100: btu/(h*ft*F) | H100: Thermal conductivity as a function of enthalpy and entropy
A101: Surface Tension
A102: IAPWS Release on Surface Tension of Ordinary Water Substance, September 1994
A103: st_T | B103: 100 | C103: deg F | F103: =st_T(B104) -> 0.005342277531 | G103: lb/ft | H103: Surface tension for two phase water/steam as a function of T
A104: st_p | B104: 1 | C104: psi | F104: =st_p(B104) -> 0.00478309732 | G104: lb/ft | H104: Surface tension for two phase water/steam as a function of T
A105: Vapour fraction
A106: x_ph | B106: 1 | C106: psi | D106: 1000 | E106: btu/lb | F106: =x_ph(B106,D106) -> 0.8981961874 | H106: Vapour fraction as a function of pressure and enthalpy
A107: x_ps | B107: 1 | C107: psi | D107: 4 | E107: btu/(lb F) | F107: =x_ps(B107,D107) -> 1 | H107: Vapour fraction as a function of pressure and entropy.
A108: Vapour Volume Fraction
A109: Observe that vapour volume fraction is very sensitive. Vapour volume is about 1000 times greater than liquid volume and therfore vapour volume fraction
A110: gets close to the accurancy of steam IF-97
A111: vx_ph | B111: 1 | C111: psi | D111: 418 | E111: btu/lb | F111: =vx_ph(B111,D111) -> 0.9999045037 | H111: Vapour volume fraction as a function of pressure and enthalpy
A112: vx_ps | B112: 1 | C112: psi | D112: 4 | E112: btu/(lb F) | F112: =vx_ps(B112,D112) -> 1 | H112: Vapour volume fraction as a function of pressure and entropy.
A115: Copy Rights: Not to be copied or distributed without specific permission from Inveno Engineering LLC; kelly.paffel@invenoeng.com

Sheet Abbreviations (2)
B1: ABBREVIATION TABLES | F1: STEAM TYPE
B2: APPLICATION | F2: SUP | G2: Superheat
B3: DP | C3: Drip | F3: SAT | G3: Saturated
B4: UH | C4: Unit Heater
B5: AH | C5: Air Handler Coil
B6: HX | C6: Heat Exchanger | F6: OPERATION STATUS
B7: TR | C7: Tracing | F7: PO | G7: Proper Operation
B8: FL | C8: Flash Tank | F8: BLW | G8: Blowing Failure Mode
B9: PC | C9: Process Coil | F9: LL | G9: Large Leak
B10: SS | C10: Steam Separator | F10: SL | G10: Small Leak
B11: OTH | C11: Others | F11: PRI | G11: Loss of Prime (IB Only)
F12: LNK | G12: Linkage
B13: SIZE | F13: CHK | G13: Check Valve Problem
B14: 3/8 | C14: 3/8" | F14: ACC | G14: Could Not Access
B15: 1/2 | C15: 1/2" | F15: SBD | G15: Steam binding
B16: 3/4 | C16: 3/4" | F16: CLD | G16: Cold - (below op temp)
B17: 1 | C17: 1" | F17: NIS | G17: Not in Service (steam on)
B18: 1 1/4 | C18: 1 1/4" | F18: OFF | G18: Steam service was off
B19: 1 1/2 | C19: 1.5"
B20: 2.0 | C20: 2.0"
B21: 2 1/4 | C21: 2 1/4" | F21: STEAM TRAP TYPE
B22: 2 1/2 | C22: 2 1/2" | F22: IB | G22: Inverted Bucket
B23: 3 | C23: 3" | F23: FT | G23: Float & Thermostatic
F24: FF | G24: Free Float
B25: MANUFACTURER | F25: TD | G25: Thermodynamic
B26: ARM | C26: Armstrong | F26: TS | G26: Thermostatic
B27: BLO | C27: Blok Gouda | F27: BM | G27: Bi-metallic
B28: COL | C28: Colton | F28: O | G28: Orifice
B29: ERW | C29: Erwell
B30: GES | C30: Gestra | F30: CONNECTION TYPE
B31: HOF | C31: Hoffman | F31: NPT | G31: Threaded
B32: NIC | C32: Nicholson | F32: SW | G32: Socket Weld
B33: JUK | C33: Jucker | F33: FLG | G33: Flanged
B34: SPI | C34: Spirax Sarco | F34: CMP | G34: Compression
B35: TLV | C35: TLV
B36: UNK | C36: Unknown or illegible | F36: YES NO
B37: TRA | C37: Trane | F37: Y | G37: Yes
B38: VEL | C38: Velan | F38: N | G38: No
B39: WLW | C39: Watlow | F39: N/A | G39: N/A
B40: YAR | C40: Yarway
B49: ORIFACE DIAMETER
B50: 1/32 | C50: 0.03125
B51: 1/16 | C51: 0.0625
B52: 3/32 | C52: 0.09375
B53: 1/8 | C53: 0.125
B54: 5/32 | C54: 0.15625
B55: 3/16 | C55: 0.1875
B56: 7/32 | C56: 0.21875
B57: 1/4 | C57: 0.25
B58: 9/32 | C58: 0.28125
B59: 5/16 | C59: 0.3125
B60: 11/32 | C60: 0.34375
B61: 3/8 | C61: 0.375
B62: 13/32 | C62: 0.40625
B63: 7/16 | C63: 0.4375
B64: 15/32 | C64: 0.46875
B65: 1/2 | C65: 0.5
B66: Copy Rights: Not to be copied or distributed without specific permission from Inveno Engineering LLC; kelly.paffel@invenoeng.com
